Service Area,Service Division,Expense Type,Expense Code,Detailed Expense Type,Payment Date,Transaction Number,Amount Exc VAT,Supplier Name
Regeneration Economy and Growth,Business Durham CL0850,Supplies and Services,336005,Advertising E336,01/02/2022,3962558-1229,732.00,REDACTED - PAYMENT TO INDIVIDUAL
Regeneration Economy and Growth,Culture Sport and Tourism,Supplies and Services,338099,Services,01/02/2022,3962497-9442,"87,500.00",ALLIANCE LEISURE SERVICES LTD.
Regeneration Economy and Growth,Culture Sport and Tourism,Construction work A908,908105,Construction work,01/02/2022,3962497-9402,"186,502.83",ALLIANCE LEISURE SERVICES LTD.
Neighbourhoods and Climate Change,Technical Services CM0300,Stock A926,926900,Stock in hand-Inventory system,01/02/2022,3962500-SIN491685,580.00,ATF SUPPLIES LTD.
Dedicated Schools Grant BG0015,DSG High Needs Block,Central Support and Other Recharges,689989,Unclassified E690,01/02/2022,3962510-CAS-01-2022-158,"25,650.00",BISHOP CHADWICK CATHOLIC EDUCATION TRUST (NSCET).
Regeneration Economy and Growth,Culture Sport and Tourism,Supplies and Services,304359,Equipment and Materials,01/02/2022,3962511-BMPR/787/SKIPS,673.05,BISHOP MIDDLEHAM PLANT & RECYCLING LTD.
Neighbourhoods and Climate Change,Environmental Services,Supplies and Services,384199,Miscellaneous Expenses,01/02/2022,3962522-425602,522.00,CARRS BILLINGTON AGRICULTURE.
Neighbourhoods and Climate Change,Environmental Services,Supplies and Services,304221,Equipment and Materials,01/02/2022,3962522-425634,963.00,CARRS BILLINGTON AGRICULTURE.
Regeneration Economy and Growth,Corporate Property and Land,Third Party Payments,430100,Rendered by Private Contractors,01/02/2022,3962524-6971,"4,550.00",CENTURY FABRICATIONS LTD.
Neighbourhoods and Climate Change,Environmental Services,Third Party Payments,430100,Rendered by Private Contractors,01/02/2022,3962526-183315,"2,792.24",CG ROBINSON LTD.
Neighbourhoods and Climate Change,Community Protection,Supplies and Services,304999,Equipment and Materials,01/02/2022,3962528-72416,"2,230.00",CIRRUS RESEARCH PLC.
Regeneration Economy and Growth,Development and Housing,Supplies and Services,338035,Services,01/02/2022,3962530-805941908,605.00,CITY & GUILDS OF LONDON INSTITUTE.
Children and Young Peoples Services,Head of Childrens Social Care,Third Party Payments,440038,Other third party payments E440,01/02/2022,3962532-SI-54977,800.00,CITY OF SUNDERLAND YMCA LTD.
Children and Young Peoples Services,Head of Childrens Social Care,Third Party Payments,440038,Other third party payments E440,01/02/2022,3962532-SI-54980,800.00,CITY OF SUNDERLAND YMCA LTD.
Children and Young Peoples Services,Head of Childrens Social Care,Third Party Payments,440038,Other third party payments E440,01/02/2022,3962532-SI-55031,800.00,CITY OF SUNDERLAND YMCA LTD.
Children and Young Peoples Services,Head of Childrens Social Care,Third Party Payments,440038,Other third party payments E440,01/02/2022,3962532-SI-55034,800.00,CITY OF SUNDERLAND YMCA LTD.
Children and Young Peoples Services,Head of Childrens Social Care,Third Party Payments,440038,Other third party payments E440,01/02/2022,3962532-SI-55051,800.00,CITY OF SUNDERLAND YMCA LTD.
Children and Young Peoples Services,Head of Childrens Social Care,Third Party Payments,440038,Other third party payments E440,01/02/2022,3962532-SI-55054,800.00,CITY OF SUNDERLAND YMCA LTD.
Children and Young Peoples Services,Head of Childrens Social Care,Third Party Payments,440038,Other third party payments E440,01/02/2022,3962532-SI-55057,685.68,CITY OF SUNDERLAND YMCA LTD.
Children and Young Peoples Services,Head of Childrens Social Care,Third Party Payments,440038,Other third party payments E440,01/02/2022,3962532-SI-55070,800.00,CITY OF SUNDERLAND YMCA LTD.
Children and Young Peoples Services,Head of Childrens Social Care,Third Party Payments,440038,Other third party payments E440,01/02/2022,3962532-SI-55079,800.00,CITY OF SUNDERLAND YMCA LTD.
Children and Young Peoples Services,Head of Childrens Social Care,Third Party Payments,440038,Other third party payments E440,01/02/2022,3962532-SI-55082,800.00,CITY OF SUNDERLAND YMCA LTD.
Children and Young Peoples Services,Head of Childrens Social Care,Third Party Payments,440038,Other third party payments E440,01/02/2022,3962532-SI-55085,800.00,CITY OF SUNDERLAND YMCA LTD.
Children and Young Peoples Services,Head of Childrens Social Care,Third Party Payments,440038,Other third party payments E440,01/02/2022,3962532-SI-55093,800.00,CITY OF SUNDERLAND YMCA LTD.
Children and Young Peoples Services,Head of Childrens Social Care,Third Party Payments,440038,Other third party payments E440,01/02/2022,3962532-SI-55100,800.00,CITY OF SUNDERLAND YMCA LTD.
Children and Young Peoples Services,Head of Childrens Social Care,Third Party Payments,440038,Other third party payments E440,01/02/2022,3962532-SI-55103,800.00,CITY OF SUNDERLAND YMCA LTD.
Children and Young Peoples Services,Head of Childrens Social Care,Third Party Payments,440038,Other third party payments E440,01/02/2022,3962532-SI-55110,800.00,CITY OF SUNDERLAND YMCA LTD.
Children and Young Peoples Services,Head of Childrens Social Care,Third Party Payments,440038,Other third party payments E440,01/02/2022,3962532-SI-55118,"1,028.52",CITY OF SUNDERLAND YMCA LTD.
Children and Young Peoples Services,Head of Childrens Social Care,Third Party Payments,440038,Other third party payments E440,01/02/2022,3962532-SI-55124,800.00,CITY OF SUNDERLAND YMCA LTD.
Children and Young Peoples Services,Head of Childrens Social Care,Third Party Payments,440038,Other third party payments E440,01/02/2022,3962532-SI-55125,800.00,CITY OF SUNDERLAND YMCA LTD.
Children and Young Peoples Services,Head of Childrens Social Care,Third Party Payments,440038,Other third party payments E440,01/02/2022,3962532-SI-55132,800.00,CITY OF SUNDERLAND YMCA LTD.
Children and Young Peoples Services,Head of Childrens Social Care,Third Party Payments,440038,Other third party payments E440,01/02/2022,3962532-SI-55134,800.00,CITY OF SUNDERLAND YMCA LTD.
Children and Young Peoples Services,Head of Childrens Social Care,Third Party Payments,440038,Other third party payments E440,01/02/2022,3962532-SI-55136,800.00,CITY OF SUNDERLAND YMCA LTD.
Children and Young Peoples Services,Head of Childrens Social Care,Third Party Payments,440038,Other third party payments E440,01/02/2022,3962532-SI-55148,800.00,CITY OF SUNDERLAND YMCA LTD.
Children and Young Peoples Services,Head of Childrens Social Care,Third Party Payments,440038,Other third party payments E440,01/02/2022,3962532-SI-55149,800.00,CITY OF SUNDERLAND YMCA LTD.
Children and Young Peoples Services,Head of Childrens Social Care,Third Party Payments,440038,Other third party payments E440,01/02/2022,3962532-SI-55155,800.00,CITY OF SUNDERLAND YMCA LTD.
Children and Young Peoples Services,Head of Childrens Social Care,Third Party Payments,440038,Other third party payments E440,01/02/2022,3962532-SI-55157,800.00,CITY OF SUNDERLAND YMCA LTD.
Children and Young Peoples Services,Head of Childrens Social Care,Third Party Payments,440038,Other third party payments E440,01/02/2022,3962532-SI-55163,800.00,CITY OF SUNDERLAND YMCA LTD.
Children and Young Peoples Services,Head of Childrens Social Care,Third Party Payments,440038,Other third party payments E440,01/02/2022,3962532-SI-55170,800.00,CITY OF SUNDERLAND YMCA LTD.
Children and Young Peoples Services,Head of Childrens Social Care,Third Party Payments,440038,Other third party payments E440,01/02/2022,3962532-SI-55171,800.00,CITY OF SUNDERLAND YMCA LTD.
Children and Young Peoples Services,Head of Childrens Social Care,Third Party Payments,440038,Other third party payments E440,01/02/2022,3962532-SI-55177,800.00,CITY OF SUNDERLAND YMCA LTD.
Children and Young Peoples Services,Head of Childrens Social Care,Third Party Payments,440038,Other third party payments E440,01/02/2022,3962532-SI-55179,800.00,CITY OF SUNDERLAND YMCA LTD.
Children and Young Peoples Services,Head of Childrens Social Care,Third Party Payments,440038,Other third party payments E440,01/02/2022,3962532-SI-55184,800.00,CITY OF SUNDERLAND YMCA LTD.
Children and Young Peoples Services,Head of Childrens Social Care,Third Party Payments,440038,Other third party payments E440,01/02/2022,3962532-SI-55186,800.00,CITY OF SUNDERLAND YMCA LTD.
Children and Young Peoples Services,Head of Childrens Social Care,Third Party Payments,440038,Other third party payments E440,01/02/2022,3962532-SI-55201,800.00,CITY OF SUNDERLAND YMCA LTD.
Children and Young Peoples Services,Head of Childrens Social Care,Third Party Payments,440038,Other third party payments E440,01/02/2022,3962532-SI-55203,800.00,CITY OF SUNDERLAND YMCA LTD.
Children and Young Peoples Services,Head of Childrens Social Care,Third Party Payments,440038,Other third party payments E440,01/02/2022,3962532-SI-55208,800.00,CITY OF SUNDERLAND YMCA LTD.
Children and Young Peoples Services,Head of Childrens Social Care,Third Party Payments,440038,Other third party payments E440,01/02/2022,3962532-SI-55210,800.00,CITY OF SUNDERLAND YMCA LTD.
Children and Young Peoples Services,Head of Childrens Social Care,Third Party Payments,440039,Other third party payments E440,01/02/2022,3962532-SI-54973,800.00,CITY OF SUNDERLAND YMCA LTD.
Children and Young Peoples Services,Head of Childrens Social Care,Third Party Payments,440039,Other third party payments E440,01/02/2022,3962532-SI-55027,800.00,CITY OF SUNDERLAND YMCA LTD.
Children and Young Peoples Services,Head of Childrens Social Care,Third Party Payments,440039,Other third party payments E440,01/02/2022,3962532-SI-55047,800.00,CITY OF SUNDERLAND YMCA LTD.
Children and Young Peoples Services,Head of Childrens Social Care,Third Party Payments,440039,Other third party payments E440,01/02/2022,3962532-SI-55075,800.00,CITY OF SUNDERLAND YMCA LTD.
Children and Young Peoples Services,Head of Childrens Social Care,Third Party Payments,440039,Other third party payments E440,01/02/2022,3962532-SI-55097,800.00,CITY OF SUNDERLAND YMCA LTD.
Children and Young Peoples Services,Head of Childrens Social Care,Third Party Payments,440039,Other third party payments E440,01/02/2022,3962532-SI-55129,800.00,CITY OF SUNDERLAND YMCA LTD.
Children and Young Peoples Services,Head of Childrens Social Care,Third Party Payments,440039,Other third party payments E440,01/02/2022,3962532-SI-55153,800.00,CITY OF SUNDERLAND YMCA LTD.
Children and Young Peoples Services,Head of Childrens Social Care,Third Party Payments,440039,Other third party payments E440,01/02/2022,3962532-SI-55175,800.00,CITY OF SUNDERLAND YMCA LTD.
Children and Young Peoples Services,Head of Childrens Social Care,Third Party Payments,440039,Other third party payments E440,01/02/2022,3962532-SI-55199,800.00,CITY OF SUNDERLAND YMCA LTD.
Regeneration Economy and Growth,Corporate Property and Land,Supplies and Services,304221,Equipment and Materials,01/02/2022,3962533-2852ABK898,533.55,CITY PLUMBING SUPPLIES HOLDINGS LTD.
Neighbourhoods and Climate Change,Community Protection,Supplies and Services,304259,Equipment and Materials,01/02/2022,3962534-C/HR234639,"4,944.00",CIVICA UK LTD.
Regeneration Economy and Growth,Corporate Property and Land,Third Party Payments,430100,Rendered by Private Contractors,01/02/2022,3962542-54458,"1,652.25",COMPLETE DETECTION SYSTEMS LTD.
Regeneration Economy and Growth,Corporate Property and Land,Third Party Payments,430100,Rendered by Private Contractors,01/02/2022,3962542-54550,"1,062.11",COMPLETE DETECTION SYSTEMS LTD.
Neighbourhoods and Climate Change,Partnerships & Community Engagement Div.,Supplies and Services,308011,Furniture,01/02/2022,3962546-RND0011,"6,949.00",COUNTY DURHAM FURNITURE HELP SCHEME (CDFHS).
Neighbourhoods and Climate Change,Technical Services CM0300,Third Party Payments,430127,Rendered by Private Contractors,01/02/2022,3962553-INV-0174,"2,383.80",D & L HOPPS.
Resources BK0010,Digital and Customer Services,Vehicles Equipment Furniture and Fittings,912701,Computer equipment,01/02/2022,3962560-7402780252,"8,150.74",DELL COMPUTER CORPORATION LTD.
Regeneration Economy and Growth,Culture Sport and Tourism,Supplies and Services,384700,Miscellaneous Expenses,01/02/2022,3962562-NEI-HCL-01-2022-10,"11,275.00",DIGITAL VOICE FOR COMMUNITIES CIC.
Regeneration Economy and Growth,Culture Sport and Tourism,Supplies and Services,384700,Miscellaneous Expenses,01/02/2022,3962572-NEI-HCL-01-2022-20,"18,630.82",DURHAM MUSIC TRUST.
Neighbourhoods and Climate Change,Environmental Services,Supplies and Services,384199,Miscellaneous Expenses,01/02/2022,3962574-10089,"15,000.00",DURHAM WILDLIFE TRUST LTD.
Dedicated Schools Grant BG0015,DSG High Needs Block,Supplies and Services,384302,Miscellaneous Expenses,01/02/2022,3962578-SESI35,"3,825.00",EDEN LEARNING TRUST T/A SEAHAM HIGH SCHOOL.
Regeneration Economy and Growth,Corporate Property and Land,Supplies and Services,304221,Equipment and Materials,01/02/2022,3962579-059-294763,542.71,EDMUNDSON ELECTRICAL LTD.
Dedicated Schools Grant BG0015,DSG Schools Block,Supplies and Services,338075,Services,01/02/2022,3962586-283,"3,760.00",ENTERPRISE EDUCATION (NORTH EAST).
Neighbourhoods and Climate Change,Technical Services CM0300,Supplies and Services,304221,Equipment and Materials,01/02/2022,3962587-2201\145,764.83,EPPLETON QUARRY PRODUCTS LTD.
Neighbourhoods and Climate Change,Environmental Services,Supplies and Services,304221,Equipment and Materials,01/02/2022,3962588-6904986,"2,055.00",ESE WORLD LTD.
Neighbourhoods and Climate Change,Environmental Services,Supplies and Services,304221,Equipment and Materials,01/02/2022,3962588-6906050,"4,795.00",ESE WORLD LTD.
Neighbourhoods and Climate Change,Environmental Services,Supplies and Services,304221,Equipment and Materials,01/02/2022,3962588-6906305,"12,673.20",ESE WORLD LTD.
Dedicated Schools Grant BG0015,DSG High Needs Block,Supplies and Services,384302,Miscellaneous Expenses,01/02/2022,3962590-0000000697,"15,359.50",EXCEL ACADEMY PARTNERSHIP T/A FRAMWELLGATE SCHOOL DURHAM.
Children and Young Peoples Services,Head of Childrens Social Care,Supplies and Services,384500,Miscellaneous Expenses,01/02/2022,3962597-2501,"1,900.00",FUTURE STEPS CONSULTANCY SERVICE LTD.
Neighbourhoods and Climate Change,Technical Services CM0300,Supplies and Services,304357,Equipment and Materials,01/02/2022,3962600-DCC020122,"18,634.72",GAP GROUP LTD.
Neighbourhoods and Climate Change,Technical Services CM0300,Supplies and Services,304357,Equipment and Materials,01/02/2022,3962600-DCC090122,"12,500.93",GAP GROUP LTD.
Adult and Health Services,Head of Adults,Supplies and Services,338365,Services,01/02/2022,3962610-0000057457,"2,996.00",HEARING PRODUCTS INTERNATIONAL LTD.
Regeneration Economy and Growth,Culture Sport and Tourism,Supplies and Services,384199,Miscellaneous Expenses,01/02/2022,3962617-6742/1738,525.00,INDIGO MULTIMEDIA LTD.
Neighbourhoods and Climate Change,Technical Services CM0300,Third Party Payments,460109,Contract Payments,01/02/2022,3962618-INS2418,"1,080.00",INSPECTORATE LTD T/A ROCH NDT SERVICES.
Neighbourhoods and Climate Change,Technical Services CM0300,Stock A926,926900,Stock in hand-Inventory system,01/02/2022,3962619-817381,"2,531.76",INSTARMAC GROUP PLC.
Neighbourhoods and Climate Change,Technical Services CM0300,Construction work A908,908105,Construction work,01/02/2022,3962624-25988,"2,450.94",JACK COUPE & SONS LTD T/A COUPE LINE.
Neighbourhoods and Climate Change,Technical Services CM0300,Construction work A908,908105,Construction work,01/02/2022,3962624-25990,"1,512.56",JACK COUPE & SONS LTD T/A COUPE LINE.
Regeneration Economy and Growth,Transport and Contracted Services,Third Party Payments,430106,Rendered by Private Contractors,01/02/2022,3962630-20-CONTRACT3976,"2,269.00",JOHN CRAKE & SONS MINI BUSES LTD.
Regeneration Economy and Growth,Corporate Property and Land,Supplies and Services,304221,Equipment and Materials,01/02/2022,3962635-0120/00555131,"1,316.98",JT DOVE LTD.
Regeneration Economy and Growth,Corporate Property and Land,Supplies and Services,304221,Equipment and Materials,01/02/2022,3962635-0120/00558475,667.80,JT DOVE LTD.
Dedicated Schools Grant BG0015,DSG Schools Block,Supplies and Services,338075,Services,01/02/2022,3962642-61-21/22,504.35,LEARNING TRADES LTD.
Regeneration Economy and Growth,Development and Housing,Construction work A908,908105,Construction work,01/02/2022,3962648-151071,880.00,LUCION ENVIRONMENTAL LLP LTD.
Resources BK0010,Digital and Customer Services,Vehicles Equipment Furniture and Fittings,912701,Computer equipment,01/02/2022,3962650-12650963,"20,410.00",MAINTEL EUROPE LTD.
Regeneration Economy and Growth,Business Durham CL0850,Supplies and Services,338066,Services,01/02/2022,3962655-INV-0508,660.00,MCDONOUGH MARKETING COMMUNICATIONS LTD T/A MMC.
Neighbourhoods and Climate Change,Environmental Services,Fees,901001,Internal fees,01/02/2022,3962657-MER0013,"47,538.25",MER CHARGING UK LIMITED.
Children and Young Peoples Services,Head of Education and Skills,Supplies and Services,338027,Services,01/02/2022,3962673-1682,"1,000.00",MUSLIM LEARNER SERVICES.
Dedicated Schools Grant BG0015,DSG High Needs Block,Supplies and Services,384302,Miscellaneous Expenses,01/02/2022,3962682-NDASI12,"8,000.00",NORTH DURHAM ACADEMY.
Children and Young Peoples Services,Head of Childrens Social Care,Supplies and Services,384500,Miscellaneous Expenses,01/02/2022,3962683-2842,700.00,NORTH EAST ADOPTION THERAPY SERVICES LTD (NEATS).
Neighbourhoods and Climate Change,Partnerships & Community Engagement Div.,Supplies and Services,384999,Miscellaneous Expenses,01/02/2022,3962685-131,"4,740.67",NORTH EAST LAW CENTRE.
Children and Young Peoples Services,Head of Early Help Inclusion & Vulnerable Children.,Supplies and Services,308011,Furniture,01/02/2022,3962690-0000179781,"1,147.70",ONLINE ERGONOMICS LTD.
Regeneration Economy and Growth,Corporate Property and Land,Third Party Payments,430100,Rendered by Private Contractors,01/02/2022,3962691-11297-49,"1,147.12",OPUS BUILDING SERVICES LTD.
Regeneration Economy and Growth,Corporate Property and Land,Third Party Payments,430100,Rendered by Private Contractors,01/02/2022,3962691-11297-50,"1,089.27",OPUS BUILDING SERVICES LTD.
Regeneration Economy and Growth,Corporate Property and Land,Third Party Payments,430100,Rendered by Private Contractors,01/02/2022,3962691-11297-51,923.20,OPUS BUILDING SERVICES LTD.
Regeneration Economy and Growth,Corporate Property and Land,Third Party Payments,430100,Rendered by Private Contractors,01/02/2022,3962691-11297-52,898.03,OPUS BUILDING SERVICES LTD.
Regeneration Economy and Growth,Corporate Property and Land,Third Party Payments,430100,Rendered by Private Contractors,01/02/2022,3962691-11297-57,"1,778.63",OPUS BUILDING SERVICES LTD.
Regeneration Economy and Growth,Corporate Property and Land,Third Party Payments,430100,Rendered by Private Contractors,01/02/2022,3962691-11297-44,"1,128.38",OPUS BUILDING SERVICES LTD.
Regeneration Economy and Growth,Corporate Property and Land,Third Party Payments,430100,Rendered by Private Contractors,01/02/2022,3962691-11297-45,"1,128.38",OPUS BUILDING SERVICES LTD.
Regeneration Economy and Growth,Corporate Property and Land,Third Party Payments,430100,Rendered by Private Contractors,01/02/2022,3962691-11297-47,"1,191.67",OPUS BUILDING SERVICES LTD.
Regeneration Economy and Growth,Corporate Property and Land,Third Party Payments,430100,Rendered by Private Contractors,01/02/2022,3962691-11297-48,"1,166.47",OPUS BUILDING SERVICES LTD.
Regeneration Economy and Growth,Corporate Property and Land,Third Party Payments,430100,Rendered by Private Contractors,01/02/2022,3962691-11297-53,"1,162.42",OPUS BUILDING SERVICES LTD.
Regeneration Economy and Growth,Corporate Property and Land,Supplies and Services,304221,Equipment and Materials,01/02/2022,3962694-XL280713,"1,218.44",PARK ELECTRICAL DISTRIBUTORS LTD.
Neighbourhoods and Climate Change,Technical Services CM0300,Stock A926,926900,Stock in hand-Inventory system,01/02/2022,3962694-XL280943,"2,023.00",PARK ELECTRICAL DISTRIBUTORS LTD.
Neighbourhoods and Climate Change,Technical Services CM0300,Stock A926,926900,Stock in hand-Inventory system,01/02/2022,3962694-XL280944,"2,260.00",PARK ELECTRICAL DISTRIBUTORS LTD.
Neighbourhoods and Climate Change,Technical Services CM0300,Stock A926,926900,Stock in hand-Inventory system,01/02/2022,3962694-XL280991,"4,198.00",PARK ELECTRICAL DISTRIBUTORS LTD.
Neighbourhoods and Climate Change,Technical Services CM0300,Stock A926,926900,Stock in hand-Inventory system,01/02/2022,3962694-XL280992,"10,893.70",PARK ELECTRICAL DISTRIBUTORS LTD.
Regeneration Economy and Growth,Culture Sport and Tourism,Supplies and Services,384700,Miscellaneous Expenses,01/02/2022,3962698-NEI-HCL-01-2022-17,"17,200.00",PEOPLE INTO ENTERPRISE LTD T/A CREATE NORTH.
Neighbourhoods and Climate Change,Technical Services CM0300,Third Party Payments,430128,Rendered by Private Contractors,01/02/2022,3962699-16892,"1,781.00",PETER MONKHOUSE HAULAGE.
Regeneration Economy and Growth,Culture Sport and Tourism,Supplies and Services,384700,Miscellaneous Expenses,01/02/2022,3962701-NEI-HCL-01-2022-19,"5,519.00",PETERLEE TOWN COUNCIL.
Children and Young Peoples Services,Head of Education and Skills,Supplies and Services,312011,Newspapers books and periodicals E312,01/02/2022,3962702-1883242,783.88,PETERS LTD.
Resources BK0010,Digital and Customer Services,Supplies and Services,332029,Printing Stationery and Gen Off Exps,01/02/2022,3962705-701417,"1,594.00",POTTS PRINTERS LTD.
Children and Young Peoples Services,Head of Childrens Social Care,Supplies and Services,338089,Services,01/02/2022,3962706-P17689,"1,650.00",PRACTIVE LTD.
Neighbourhoods and Climate Change,Technical Services CM0300,Third Party Payments,430100,Rendered by Private Contractors,01/02/2022,3962708-PF0041,"4,304.80",PROTEK FENCING LTD.
Regeneration Economy and Growth,Culture Sport and Tourism,Supplies and Services,384700,Miscellaneous Expenses,01/02/2022,3962716-NEI-HCL-01-2022-18,"19,900.00",REDACTED - PAYMENT TO INDIVIDUAL
Regeneration Economy and Growth,Business Durham CL0850,Supplies and Services,338027,Services,01/02/2022,3962643-17,800.00,REDACTED - PAYMENT TO INDIVIDUAL
Children and Young Peoples Services,Head of Childrens Social Care,Third Party Payments,440038,Other third party payments E440,01/02/2022,3962722-5881,"7,280.00",ROC FAMILY SUPPORT LTD.
Children and Young Peoples Services,Head of Childrens Social Care,Third Party Payments,440038,Other third party payments E440,01/02/2022,3962722-5882,"7,280.00",ROC FAMILY SUPPORT LTD.
Children and Young Peoples Services,Head of Childrens Social Care,Third Party Payments,440038,Other third party payments E440,01/02/2022,3962722-5932,"7,922.20",ROC FAMILY SUPPORT LTD.
Children and Young Peoples Services,Head of Childrens Social Care,Third Party Payments,440038,Other third party payments E440,01/02/2022,3962723-5933,"5,840.40",ROC FAMILY SUPPORT LTD.
Children and Young Peoples Services,Head of Childrens Social Care,Third Party Payments,440038,Other third party payments E440,01/02/2022,3962723-5934,"2,382.20",ROC FAMILY SUPPORT LTD.
Children and Young Peoples Services,Head of Childrens Social Care,Third Party Payments,440038,Other third party payments E440,01/02/2022,3962723-5935,"14,880.00",ROC FAMILY SUPPORT LTD.
Neighbourhoods and Climate Change,Environmental Services,Supplies and Services,384199,Miscellaneous Expenses,01/02/2022,3962729-2201,"2,748.20",SANDERSON & BELL.
Adult and Health Services,Head of Adults,Supplies and Services,338066,Services,01/02/2022,3962735-SHAH276,525.00,SHAH MEDICAL SERVICES LTD.
Regeneration Economy and Growth,Corporate Property and Land,Supplies and Services,304221,Equipment and Materials,01/02/2022,3962737-0000131876,"2,120.00",SHORTS INDUSTRIES LTD T/A SHORTS LIFTS.
Neighbourhoods and Climate Change,Technical Services CM0300,Stock A926,926900,Stock in hand-Inventory system,01/02/2022,3962742-534,"4,676.40",SNAPFAST LTD.
Neighbourhoods and Climate Change,Environmental Services,Supplies and Services,304221,Equipment and Materials,01/02/2022,3962749-9221,597.95,STREETMASTER ( SOUTH WALES) LTD.
Resources BK0010,Digital and Customer Services,Supplies and Services,344135,Telephones,01/02/2022,3962757-139349,"1,268.01",SWITCHSHOP LTD.
Neighbourhoods and Climate Change,Technical Services CM0300,Supplies and Services,304221,Equipment and Materials,01/02/2022,3962760-9044701578,781.73,TARMAC TRADING LTD.
Children and Young Peoples Services,Head of Childrens Social Care,Third Party Payments,440999,Other third party payments E440,01/02/2022,3962764-CAS-01-2022-157,"4,950.00",THE LUCY FAITHFULL FOUNDATION.
Neighbourhoods and Climate Change,Technical Services CM0300,Stock A926,926900,Stock in hand-Inventory system,01/02/2022,3962767-NSIN00069156,604.00,THOMAS OWEN & SONS (NEWCASTLE) LTD.
Adult and Health Services,Commissioning inc Supporting People,Supplies and Services,336005,Advertising E336,01/02/2022,3962768-2631,"5,913.00",THREE MOTION MEDIA LTD.
Adult and Health Services,Commissioning inc Supporting People,Supplies and Services,336005,Advertising E336,01/02/2022,3962768-2637,"1,764.00",THREE MOTION MEDIA LTD.
Adult and Health Services,Commissioning inc Supporting People,Supplies and Services,384540,Miscellaneous Expenses,01/02/2022,3962768-2647,"6,354.00",THREE MOTION MEDIA LTD.
Regeneration Economy and Growth,Business Durham CL0850,Premises,120021,Energy Costs,01/02/2022,3962769-253859600/21,624.13,TOTAL GAS & POWER LTD.
Regeneration Economy and Growth,Corporate Property and Land,Supplies and Services,304221,Equipment and Materials,01/02/2022,3962771-36051,647.00,TOTAL PUMP SOLUTIONS LTD.
Neighbourhoods and Climate Change,Technical Services CM0300,Supplies and Services,304221,Equipment and Materials,01/02/2022,3962779-229971,"1,589.56",TYNEDALE ROADSTONE LTD.
Neighbourhoods and Climate Change,Environmental Services,Supplies and Services,342215,Computers and Communications,01/02/2022,3962781-51203,"4,240.92",UK TELEMATICS LTD.
Regeneration Economy and Growth,Culture Sport and Tourism,Supplies and Services,384199,Miscellaneous Expenses,01/02/2022,3962783-INV-14270,"26,660.00",UMI COMMERCIAL LTD.
Resources BK0010,Digital and Customer Services,Supplies and Services,344015,Telephones,01/02/2022,3962787-PZ14240,"3,033.00",VODAFONE LTD.
Children and Young Peoples Services,Head of Education and Skills,Transport,230005,Contract Hire,01/02/2022,3962791-17297,"1,098.00",WEARDALE MOTOR SERVICES LTD.
Regeneration Economy and Growth,Business Durham CL0850,Supplies and Services,336005,Advertising E336,01/02/2022,3962792-UOTR4863679,"5,106.84",WESTERN UNION BUSINESS SOLUTIONS.
Neighbourhoods and Climate Change,Environmental Services,Supplies and Services,384899,Miscellaneous Expenses,01/02/2022,3962792-UOTR4863678,"1,371.39",WESTERN UNION BUSINESS SOLUTIONS.
Neighbourhoods and Climate Change,Environmental Services,Supplies and Services,304999,Equipment and Materials,01/02/2022,3962793-0000814884,546.84,WICKSTEED LEISURE LTD.
Neighbourhoods and Climate Change,Environmental Services,Supplies and Services,304221,Equipment and Materials,01/02/2022,3962795-55440,"1,688.12",WILLOWCRETE MANUFACTURING COMPANY LTD (MFG).
Resources BK0010,Digital and Customer Services,Stock A926,926900,Stock in hand-Inventory system,01/02/2022,3962798-LA98534,509.22,XMA LTD.
Neighbourhoods and Climate Change,Technical Services CM0300,Stock A926,926900,Stock in hand-Inventory system,01/02/2022,3962801-869448,503.95,YOUR NRG LTD.
Neighbourhoods and Climate Change,Technical Services CM0300,Third Party Payments,430100,Rendered by Private Contractors,01/02/2022,3962802-145458695,"6,444.00",ZG LIGHTING (UK) LTD.
Neighbourhoods and Climate Change,Technical Services CM0300,Stock A926,926900,Stock in hand-Inventory system,01/02/2022,3962802-145458696,"2,337.09",ZG LIGHTING (UK) LTD.
Neighbourhoods and Climate Change,Technical Services CM0300,Stock A926,926900,Stock in hand-Inventory system,01/02/2022,3962802-145459090,"8,538.34",ZG LIGHTING (UK) LTD.
Children and Young Peoples Services,Head of Education and Skills,Transport,230006,Contract Hire,02/02/2022,3962904-005JAN22,606.00,REDACTED - PAYMENT TO INDIVIDUAL
Neighbourhoods and Climate Change,Environmental Services,Third Party Payments,430100,Rendered by Private Contractors,02/02/2022,3963073-1212,"1,380.00",REDACTED - PAYMENT TO INDIVIDUAL
Neighbourhoods and Climate Change,Environmental Services,Supplies and Services,384199,Miscellaneous Expenses,02/02/2022,3963073-1217,"1,040.00",REDACTED - PAYMENT TO INDIVIDUAL
Children and Young Peoples Services,Head of Education and Skills,Transfer Payments,510034,School Children,02/02/2022,3962803-LACPPSPRING21-22,"1,200.00",1EXCELLENCE MAT.
Children and Young Peoples Services,Head of Education and Skills,Premises,145052,Cleaning and Domestic Supplies,02/02/2022,3962805-6531,570.00,A & B INDUSTRIAL CLEANING LTD.
Children and Young Peoples Services,Head of Education and Skills,Transfer Payments,510034,School Children,02/02/2022,3962809-LACPPSPRING21-22,600.00,ACKLAM GRANGE SCHOOL.
Children and Young Peoples Services,Head of Education and Skills,Transfer Payments,510034,School Children,02/02/2022,3962810-LACPPSPRING21-22,"2,400.00",ADVANCE LEARNING PARTNERSHIP.
Children and Young Peoples Services,Head of Education and Skills,Transfer Payments,510034,School Children,02/02/2022,3962811-LACPPSPRING21-22,"1,800.00",ADVANCE LEARNING PARTNERSHIP.
Children and Young Peoples Services,Head of Education and Skills,Transfer Payments,510034,School Children,02/02/2022,3962812-LACPPSPRING21-22,"1,800.00",ADVANCE LEARNING PARTNERSHIP.
Children and Young Peoples Services,Head of Education and Skills,Transfer Payments,510034,School Children,02/02/2022,3962813-LACPPSPRING21-22,"1,800.00",ADVANCE LEARNING PARTNERSHIP.
Children and Young Peoples Services,Head of Education and Skills,Transfer Payments,510034,School Children,02/02/2022,3962814-LACPPSPRING21-22,"3,600.00",ADVANCE LEARNING PARTNERSHIP.
Children and Young Peoples Services,Head of Childrens Social Care,Supplies and Services,338044,Services,02/02/2022,3962815-MWCJ1060122,779.63,ADVANCED CHILD CARE ASSESSMENTS LTD.
Neighbourhoods and Climate Change,Technical Services CM0300,Supplies and Services,304221,Equipment and Materials,02/02/2022,3962816-32556936,931.63,AGGREGATE INDUSTRIES UK LTD.
Children and Young Peoples Services,Head of Education and Skills,Transfer Payments,510034,School Children,02/02/2022,3962817-LACPPSPRING21-22,600.00,AIM HIGH ACADEMY TRUST.
Children and Young Peoples Services,Head of Education and Skills,Transfer Payments,510034,School Children,02/02/2022,3962822-LACPPSPRING21-22,"1,200.00",APOLLO SCHOOLS TRUST T/A ENDEAVOUR ACADEMY.
Regeneration Economy and Growth,Culture Sport and Tourism,Supplies and Services,312013,Newspapers books and periodicals E312,02/02/2022,3962823-6633502,661.19,ASKEWS & HOLTS LIBRARY SERVICES LTD.
Regeneration Economy and Growth,Culture Sport and Tourism,Supplies and Services,312013,Newspapers books and periodicals E312,02/02/2022,3962823-6633653,628.12,ASKEWS & HOLTS LIBRARY SERVICES LTD.
Regeneration Economy and Growth,Culture Sport and Tourism,Supplies and Services,312013,Newspapers books and periodicals E312,02/02/2022,3962823-6633818,743.22,ASKEWS & HOLTS LIBRARY SERVICES LTD.
Regeneration Economy and Growth,Culture Sport and Tourism,Supplies and Services,312013,Newspapers books and periodicals E312,02/02/2022,3962823-6638631,595.08,ASKEWS & HOLTS LIBRARY SERVICES LTD.
Regeneration Economy and Growth,Culture Sport and Tourism,Supplies and Services,312017,Newspapers books and periodicals E312,02/02/2022,3962823-6637674,710.37,ASKEWS & HOLTS LIBRARY SERVICES LTD.
Dedicated Schools Grant BG0015,DSG Schools Block,Supplies and Services,338075,Services,02/02/2022,3962824-158,"4,720.00",ASPIRE ALTERNATIVE EDUCATION LTD.
Neighbourhoods and Climate Change,Technical Services CM0300,Stock A926,926900,Stock in hand-Inventory system,02/02/2022,3962825-SIN491540,"1,108.62",ATF SUPPLIES LTD.
Children and Young Peoples Services,Head of Education and Skills,Transport,230010,Contract Hire,02/02/2022,3962826-070,"2,812.00",AUCKLAND TRAVEL.
Children and Young Peoples Services,Head of Education and Skills,Transport,230006,Contract Hire,02/02/2022,3962826-074,"1,206.00",AUCKLAND TRAVEL.
Children and Young Peoples Services,Head of Education and Skills,Transport,230008,Contract Hire,02/02/2022,3962826-072,"2,428.20",AUCKLAND TRAVEL.
Children and Young Peoples Services,Head of Education and Skills,Transport,230008,Contract Hire,02/02/2022,3962826-073,"3,002.00",AUCKLAND TRAVEL.
Children and Young Peoples Services,Head of Education and Skills,Transport,230008,Contract Hire,02/02/2022,3962826-069,"3,002.00",AUCKLAND TRAVEL.
Children and Young Peoples Services,Head of Education and Skills,Transport,230007,Contract Hire,02/02/2022,3962827-311022,"2,200.00",AVALON TAXIS.
Adult and Health Services,Head of Adults,Transport,230005,Contract Hire,02/02/2022,3962827-31122,"1,200.00",AVALON TAXIS.
Children and Young Peoples Services,Head of Education and Skills,Transport,230034,Contract Hire,02/02/2022,3962827-310122,"1,722.00",AVALON TAXIS.
Neighbourhoods and Climate Change,Technical Services CM0300,Fees,901002,Professional fees,02/02/2022,3962829-400170471,"4,628.50",BAM NUTTALL LTD.
Children and Young Peoples Services,Head of Education and Skills,Transport,230003,Contract Hire,02/02/2022,3962832-STJOHNS0122803,"2,800.00",BELL BROTHERS TRAVEL.
Regeneration Economy and Growth,Corporate Property and Land,Third Party Payments,430100,Rendered by Private Contractors,02/02/2022,3962833-SI-6980,818.00,BELL CONTROL SOLUTIONS LTD.
Neighbourhoods and Climate Change,Environmental Services,Transport,210057,Repair and Maintenance of Vehicles,02/02/2022,3962834-35216485,812.87,BELL TRUCK SALES LTD T/A BELL TRUCK & VAN.
Neighbourhoods and Climate Change,Environmental Services,Transport,210057,Repair and Maintenance of Vehicles,02/02/2022,3962834-35216955,885.08,BELL TRUCK SALES LTD T/A BELL TRUCK & VAN.
Neighbourhoods and Climate Change,Environmental Services,Transport,210057,Repair and Maintenance of Vehicles,02/02/2022,3962834-15196967,552.00,BELL TRUCK SALES LTD T/A BELL TRUCK & VAN.
Neighbourhoods and Climate Change,Environmental Services,Transport,210057,Repair and Maintenance of Vehicles,02/02/2022,3962834-15197748,811.44,BELL TRUCK SALES LTD T/A BELL TRUCK & VAN.
Children and Young Peoples Services,Head of Education and Skills,Transport,230006,Contract Hire,02/02/2022,3962835-30,"2,099.02",BELMONT TAXIS.
Children and Young Peoples Services,Head of Education and Skills,Transfer Payments,510034,School Children,02/02/2022,3962836-LACPPSPRING21-22,"2,000.00",BENFIELD SCHOOL.
Children and Young Peoples Services,Head of Education and Skills,Transport,230006,Contract Hire,02/02/2022,3962839-1-JAN22,"2,400.00",BH TRAVEL.
Children and Young Peoples Services,Head of Education and Skills,Transfer Payments,510034,School Children,02/02/2022,3962840-LACPPSPRING21-22,600.00,BIDDICK ACADEMY.
Neighbourhoods and Climate Change,Environmental Services,Third Party Payments,430114,Rendered by Private Contractors,02/02/2022,3962841-509M00401,"45,469.65",BIFFA WASTE SERVICES LTD.
Children and Young Peoples Services,Head of Education and Skills,Transfer Payments,510034,School Children,02/02/2022,3962842-LACPPSPRING21-22,"3,000.00",BISHOP AUCKLAND COLLEGE.
Children and Young Peoples Services,Head of Education and Skills,Transfer Payments,510034,School Children,02/02/2022,3962844-LACPPSPRING21-22,"2,400.00",BISHOP CHADWICK CATHOLIC EDUCATION TRUST (NSCET).
Children and Young Peoples Services,Head of Education and Skills,Transfer Payments,510034,School Children,02/02/2022,3962845-LACPPSPRING21-22,600.00,BISHOP CHADWICK CATHOLIC EDUCATION TRUST (NSCET).
Children and Young Peoples Services,Head of Education and Skills,Transfer Payments,510034,School Children,02/02/2022,3962846-LACPPSPRING21-22,"1,800.00",BISHOP CHADWICK CATHOLIC EDUCATION TRUST (NSCET).
Children and Young Peoples Services,Head of Education and Skills,Transfer Payments,510034,School Children,02/02/2022,3962847-LACPPSPRING21-22,600.00,BISHOP CHADWICK CATHOLIC EDUCATION TRUST (NSCET).
Children and Young Peoples Services,Head of Education and Skills,Transfer Payments,510034,School Children,02/02/2022,3962848-LACPPSPRING21-22,600.00,BISHOP CHADWICK CATHOLIC EDUCATION TRUST (NSCET).
Children and Young Peoples Services,Head of Education and Skills,Transfer Payments,510034,School Children,02/02/2022,3962849-LACPPSPRING21-22,"3,600.00",BISHOP HOGARTH CATHOLIC EDUCATION TRUST T/A  ST JOHN`S SCHOOL & SIXTH FORM COLLEGE.
Children and Young Peoples Services,Head of Education and Skills,Transfer Payments,510034,School Children,02/02/2022,3962850-LACPPSPRING21-22,600.00,BISHOP HOGARTH CATHOLIC EDUCATION TRUST.
Children and Young Peoples Services,Head of Education and Skills,Transfer Payments,510034,School Children,02/02/2022,3962851-LACPPSPRING21-22,600.00,BISHOP HOGARTH CATHOLIC EDUCATION TRUST.
Children and Young Peoples Services,Head of Education and Skills,Transfer Payments,510034,School Children,02/02/2022,3962853-LACPPSPRING21-22,600.00,BISHOP IAN RAMSEY C OF E PRIMARY SCHOOL.
Children and Young Peoples Services,Head of Education and Skills,Transfer Payments,510034,School Children,02/02/2022,3962856-LACPPSPRING21-22,600.00,BISHOP WILKINSON CE TRUST.
Children and Young Peoples Services,Head of Education and Skills,Transfer Payments,510034,School Children,02/02/2022,3962857-LACPPSPRING21-22,600.00,BISHOP WILKINSON CE TRUST.
Children and Young Peoples Services,Head of Education and Skills,Transfer Payments,510034,School Children,02/02/2022,3962858-LACPPSPRING21-22,"4,800.00",BISHOP WILKINSON CE TRUST.
Children and Young Peoples Services,Head of Education and Skills,Transfer Payments,510034,School Children,02/02/2022,3962859-LACPPSPRING21-22,600.00,BISHOP WILKINSON CE TRUST.
Children and Young Peoples Services,Head of Education and Skills,Transfer Payments,510034,School Children,02/02/2022,3962860-LACPPSPRING21-22,"1,200.00",BISHOP WILKINSON CE TRUST.
Children and Young Peoples Services,Head of Education and Skills,Transfer Payments,510034,School Children,02/02/2022,3962861-LACPPSPRING21-22,600.00,BISHOP WILKINSON CE TRUST.
Children and Young Peoples Services,Head of Education and Skills,Transport,230008,Contract Hire,02/02/2022,3962863-091,"1,600.00",BL CARS.
Regeneration Economy and Growth,Culture Sport and Tourism,Supplies and Services,338066,Services,02/02/2022,3962864-SIN030099,"11,560.00",BLOOM PROCUREMENT SERVICES LTD (FORMERLY NEPRO LTD).
Regeneration Economy and Growth,Culture Sport and Tourism,Supplies and Services,338066,Services,02/02/2022,3962864-SIN030137,"11,560.00",BLOOM PROCUREMENT SERVICES LTD (FORMERLY NEPRO LTD).
Adult and Health Services,Public Health CC0450,Supplies and Services,338066,Services,02/02/2022,3962864-SIN030330,"84,716.08",BLOOM PROCUREMENT SERVICES LTD (FORMERLY NEPRO LTD).
Children and Young Peoples Services,Head of Education and Skills,Transport,230007,Contract Hire,02/02/2022,3962865-E,"2,869.00",BOBS TAXIS.
Children and Young Peoples Services,Head of Education and Skills,Transport,230007,Contract Hire,02/02/2022,3962865-D1JAN22,516.00,BOBS TAXIS.
Children and Young Peoples Services,Head of Education and Skills,Transport,230008,Contract Hire,02/02/2022,3962867-052,"3,200.00",BON VOYAGE TAXIS LTD.
Children and Young Peoples Services,Head of Education and Skills,Transport,230008,Contract Hire,02/02/2022,3962867-053,"2,661.18",BON VOYAGE TAXIS LTD.
Children and Young Peoples Services,Head of Education and Skills,Transport,230008,Contract Hire,02/02/2022,3962871-BZ00390,"1,140.00",BREZ`S TAXIS.
Children and Young Peoples Services,Head of Education and Skills,Transport,230008,Contract Hire,02/02/2022,3962871-BZ00391,"1,740.40",BREZ`S TAXIS.
Regeneration Economy and Growth,Corporate Property and Land,Third Party Payments,430100,Rendered by Private Contractors,02/02/2022,3962873-4100750849,"3,136.00",BRIAN YOUNGER T/A B & E YOUNGER FLOORING.
Regeneration Economy and Growth,Corporate Property and Land,Third Party Payments,430100,Rendered by Private Contractors,02/02/2022,3962873-4100754257,586.50,BRIAN YOUNGER T/A B & E YOUNGER FLOORING.
Children and Young Peoples Services,Head of Education and Skills,Transport,230008,Contract Hire,02/02/2022,3962878-W046027,"2,033.64",C & R TAXIS.
Children and Young Peoples Services,Head of Education and Skills,Transport,230008,Contract Hire,02/02/2022,3962878-W030027,"2,349.36",C & R TAXIS.
Children and Young Peoples Services,Head of Education and Skills,Transport,230008,Contract Hire,02/02/2022,3962878-W112030,"1,800.00",C & R TAXIS.
Adult and Health Services,Commissioning inc Supporting People,Supplies and Services,342053,Computers and Communications,02/02/2022,3962880-25JAN2022,"1,221.00",CARE FRIENDS LTD.
Children and Young Peoples Services,Head of Education and Skills,Transfer Payments,510034,School Children,02/02/2022,3962882-LACPPSPRING21-22,"2,400.00",CARMEL COLLEGE.*
Neighbourhoods and Climate Change,Environmental Services,Transport,210057,Repair and Maintenance of Vehicles,02/02/2022,3962883-254122,554.40,CARRS BILLINGTON AGRICULTURE.
Neighbourhoods and Climate Change,Environmental Services,Transport,210057,Repair and Maintenance of Vehicles,02/02/2022,3962883-254126,907.85,CARRS BILLINGTON AGRICULTURE.
Neighbourhoods and Climate Change,Environmental Services,Transport,210057,Repair and Maintenance of Vehicles,02/02/2022,3962883-254133,525.19,CARRS BILLINGTON AGRICULTURE.
Neighbourhoods and Climate Change,Environmental Services,Transport,210057,Repair and Maintenance of Vehicles,02/02/2022,3962883-254142,554.40,CARRS BILLINGTON AGRICULTURE.
Neighbourhoods and Climate Change,Environmental Services,Transport,210057,Repair and Maintenance of Vehicles,02/02/2022,3962883-254144,568.69,CARRS BILLINGTON AGRICULTURE.
Children and Young Peoples Services,Head of Childrens Social Care,Third Party Payments,440046,Other third party payments E440,02/02/2022,3962884-21285,"6,720.00",CASTLE VIEW GROUP TRAINING.
Children and Young Peoples Services,Head of Childrens Social Care,Third Party Payments,440046,Other third party payments E440,02/02/2022,3962884-21326,"5,760.00",CASTLE VIEW GROUP TRAINING.
Children and Young Peoples Services,Head of Childrens Social Care,Third Party Payments,440046,Other third party payments E440,02/02/2022,3962884-21360,"7,690.00",CASTLE VIEW GROUP TRAINING.
Children and Young Peoples Services,Head of Childrens Social Care,Third Party Payments,440046,Other third party payments E440,02/02/2022,3962884-21363,"4,320.00",CASTLE VIEW GROUP TRAINING.
Children and Young Peoples Services,Head of Childrens Social Care,Third Party Payments,440046,Other third party payments E440,02/02/2022,3962884-21400,"6,720.00",CASTLE VIEW GROUP TRAINING.
Children and Young Peoples Services,Head of Education and Skills,Transfer Payments,510034,School Children,02/02/2022,3962885-LACPPSPRING21-22,600.00,CATCOTE ACADEMY.
Regeneration Economy and Growth,Corporate Property and Land,Supplies and Services,304221,Equipment and Materials,02/02/2022,3962889-6974,690.00,CENTURY FABRICATIONS LTD.
Regeneration Economy and Growth,Corporate Property and Land,Third Party Payments,430100,Rendered by Private Contractors,02/02/2022,3962889-6943,510.00,CENTURY FABRICATIONS LTD.
Regeneration Economy and Growth,Corporate Property and Land,Third Party Payments,430100,Rendered by Private Contractors,02/02/2022,3962889-6972,"1,620.00",CENTURY FABRICATIONS LTD.
Regeneration Economy and Growth,Corporate Property and Land,Third Party Payments,430100,Rendered by Private Contractors,02/02/2022,3962889-6973,690.00,CENTURY FABRICATIONS LTD.
Children and Young Peoples Services,Head of Education and Skills,Transport,230008,Contract Hire,02/02/2022,3962891-070,"2,541.06",CHANNER`S CABS.
Children and Young Peoples Services,Head of Education and Skills,Transport,230006,Contract Hire,02/02/2022,3962892-04JAN22,"1,320.00",CHAPMAN TRAVEL.
Children and Young Peoples Services,Head of Education and Skills,Transport,230008,Contract Hire,02/02/2022,3962899-CE0122,"2,480.00",CJ`S EXECUTIVE TRAVEL LTD.
Children and Young Peoples Services,Head of Education and Skills,Transport,230008,Contract Hire,02/02/2022,3962899-SP0122,"2,131.00",CJ`S EXECUTIVE TRAVEL LTD.
Children and Young Peoples Services,Head of Education and Skills,Transport,230008,Contract Hire,02/02/2022,3962899-KC0122,"3,412.02",CJ`S EXECUTIVE TRAVEL LTD.
Children and Young Peoples Services,Head of Education and Skills,Transport,230008,Contract Hire,02/02/2022,3962899-AA0122,"2,171.70",CJ`S EXECUTIVE TRAVEL LTD.
Children and Young Peoples Services,Head of Education and Skills,Transfer Payments,510034,School Children,02/02/2022,3962901-LACPPSPRING21-22,"3,600.00",CLEVES CROSS LEARNING TRUST T/A ROSA STREET PRIMARY SCHOOL.
Adult and Health Services,Head of Adults,Third Party Payments,478151,Purchase of Care,02/02/2022,3962906-421R180707,"14,860.80",COMMUNITY INTEGRATED CARE LTD.
Adult and Health Services,Head of Adults,Third Party Payments,478151,Purchase of Care,02/02/2022,3962906-421R181795,"8,049.60",COMMUNITY INTEGRATED CARE LTD.
Adult and Health Services,Public Health CC0450,Third Party Payments,460803,Contract Payments,02/02/2022,3962912-3910019510,"60,000.00",COUNTY DURHAM & DARLINGTON NHS FOUNDATION TRUST (CDDFT).
Neighbourhoods and Climate Change,Environmental Services,Supplies and Services,304221,Equipment and Materials,02/02/2022,3962915-INV0120302,"35,061.00",CROMWELL POLYTHENE LTD.
Children and Young Peoples Services,Head of Education and Skills,Transfer Payments,510034,School Children,02/02/2022,3962916-LACPPSPRING21-22,600.00,CROOKSBARN PRIMARY SCHOOL.
Neighbourhoods and Climate Change,Environmental Services,Third Party Payments,430100,Rendered by Private Contractors,02/02/2022,3962918-104536,747.73,D&F ASSOCIATES LTD.
Children and Young Peoples Services,Head of Education and Skills,Transfer Payments,510034,School Children,02/02/2022,3962921-LACPPSPRING21-22,600.00,DALES ACADEMIES TRUST T/A THORNABY C OF E PRIMARY SCHOOL.
Children and Young Peoples Services,Head of Education and Skills,Transport,230007,Contract Hire,02/02/2022,3962922-29,"3,591.00",DANNY`S TRAVEL.
Children and Young Peoples Services,Head of Education and Skills,Transport,230003,Contract Hire,02/02/2022,3962922-292,"1,912.00",DANNY`S TRAVEL.
Regeneration Economy and Growth,Transport and Contracted Services,Supplies and Services,384899,Miscellaneous Expenses,02/02/2022,3962923-4055934,"5,000.00",DARLINGTON BOROUGH COUNCIL.
Children and Young Peoples Services,Head of Education and Skills,Transfer Payments,510034,School Children,02/02/2022,3962923-LACPPSPRING21-22,600.00,DARLINGTON BOROUGH COUNCIL.
Children and Young Peoples Services,Head of Education and Skills,Transport,230008,Contract Hire,02/02/2022,3962924-3684,"2,098.80",DAVES MINIBUSES.
Children and Young Peoples Services,Head of Education and Skills,Transport,230008,Contract Hire,02/02/2022,3962924-3685,"1,836.00",DAVES MINIBUSES.
Children and Young Peoples Services,Head of Education and Skills,Transport,230008,Contract Hire,02/02/2022,3962924-3686,"1,657.44",DAVES MINIBUSES.
Children and Young Peoples Services,Head of Education and Skills,Transport,230008,Contract Hire,02/02/2022,3962924-3683,"2,295.20",DAVES MINIBUSES.
Children and Young Peoples Services,Head of Education and Skills,Transport,230008,Contract Hire,02/02/2022,3962924-3688,"1,862.00",DAVES MINIBUSES.
Children and Young Peoples Services,Head of Education and Skills,Transport,230008,Contract Hire,02/02/2022,3962924-3687,"1,728.00",DAVES MINIBUSES.
Regeneration Economy and Growth,Corporate Property and Land,Third Party Payments,430100,Rendered by Private Contractors,02/02/2022,3962919-N525038,560.00,D-DRILL (MASTER DRILLERS) LTD.
Adult and Health Services,Head of Adults,Third Party Payments,478151,Purchase of Care,02/02/2022,3962927-INV-1025,"2,502.72",DEACONSTAR LTD.
Regeneration Economy and Growth,Corporate Property and Land,Third Party Payments,430100,Rendered by Private Contractors,02/02/2022,3962929-NE21204,"1,097.00",DELTA WIRING SOLUTIONS LTD.
Regeneration Economy and Growth,Corporate Property and Land,Third Party Payments,430100,Rendered by Private Contractors,02/02/2022,3962929-NE21205,"3,000.00",DELTA WIRING SOLUTIONS LTD.
Dedicated Schools Grant BG0015,DSG High Needs Block,Supplies and Services,384302,Miscellaneous Expenses,02/02/2022,3962930-DESI41,975.00,DENE ACADEMY.
Dedicated Schools Grant BG0015,DSG High Needs Block,Supplies and Services,384302,Miscellaneous Expenses,02/02/2022,3962930-DESI42,"4,165.77",DENE ACADEMY.
Children and Young Peoples Services,Head of Education and Skills,Transfer Payments,510034,School Children,02/02/2022,3962930-LACPPSPRING21-22,"1,200.00",DENE ACADEMY.
Children and Young Peoples Services,Head of Education and Skills,Transfer Payments,510034,School Children,02/02/2022,3962931-LACPPSPRING21-22,600.00,DENE HOUSE PRIMARY SCHOOL (ACADEMY).
Children and Young Peoples Services,Head of Education and Skills,Transfer Payments,510034,School Children,02/02/2022,3962938-LACPPSPRING21-22,"2,400.00",EDEN LEARNING TRUST T/A FERRYHILL BUSINESS & ENTERPRISE COLLEGE.
Children and Young Peoples Services,Head of Education and Skills,Transfer Payments,510034,School Children,02/02/2022,3962939-LACPPSPRING21-22,"7,200.00",EDEN LEARNING TRUST T/A SEAHAM HIGH SCHOOL.
Children and Young Peoples Services,Head of Education and Skills,Transfer Payments,510034,School Children,02/02/2022,3962940-LACPPSPRING21-22,"2,400.00",EDEN LEARNING TRUST T/A TANFIELD SCHOOL.
Children and Young Peoples Services,Head of Education and Skills,Transfer Payments,510034,School Children,02/02/2022,3962941-LACPPSPRING21-22,"7,200.00",EDEN LEARNING TRUST T/A WOODHAM ACADEMY.
Regeneration Economy and Growth,Corporate Property and Land,Supplies and Services,304221,Equipment and Materials,02/02/2022,3962942-059-295209,849.78,EDMUNDSON ELECTRICAL LTD.
Children and Young Peoples Services,Head of Education and Skills,Transfer Payments,510034,School Children,02/02/2022,3962946-LACPPSPRING21-22,600.00,ELDON GROVE ACADEMY.
Regeneration Economy and Growth,Corporate Property and Land,Supplies and Services,304221,Equipment and Materials,02/02/2022,3962949-SIN019389,"6,673.63",ENERGY CONSERVATION SOLUTIONS LTD (ECSL).
Regeneration Economy and Growth,Corporate Property and Land,Supplies and Services,304221,Equipment and Materials,02/02/2022,3962949-SIN019390,"6,967.37",ENERGY CONSERVATION SOLUTIONS LTD (ECSL).
Regeneration Economy and Growth,Corporate Property and Land,Supplies and Services,304221,Equipment and Materials,02/02/2022,3962949-SIN019393,"6,069.76",ENERGY CONSERVATION SOLUTIONS LTD (ECSL).
Children and Young Peoples Services,Head of Childrens Social Care,Third Party Payments,425021,Rendered by Voluntary Organisations,02/02/2022,3962950-1741,"7,071.30",ENHANCED YOUNG PERSONS` CARE LTD.
Neighbourhoods and Climate Change,Environmental Services,Supplies and Services,304221,Equipment and Materials,02/02/2022,3962953-6907307,859.20,ESE WORLD LTD.
Neighbourhoods and Climate Change,Environmental Services,Supplies and Services,304221,Equipment and Materials,02/02/2022,3962953-6907416,"12,888.00",ESE WORLD LTD.
Neighbourhoods and Climate Change,Environmental Services,Supplies and Services,304221,Equipment and Materials,02/02/2022,3962953-6907308,859.20,ESE WORLD LTD.
Children and Young Peoples Services,Head of Education and Skills,Transfer Payments,510034,School Children,02/02/2022,3962957-LACPPSPRING21-22,"4,800.00",EXCEL ACADEMY PARTNERSHIP T/A FRAMWELLGATE SCHOOL DURHAM.
Children and Young Peoples Services,Head of Early Help Inclusion & Vulnerable Children.,Supplies and Services,384700,Miscellaneous Expenses,02/02/2022,3962965-555478,500.00,FRANKS THE FLOORING STORE.
Children and Young Peoples Services,Head of Education and Skills,Transfer Payments,510034,School Children,02/02/2022,3962969-LACPPSPRING21-22,600.00,GALILEO MULTI ACADEMY TRUST LTD.
Children and Young Peoples Services,Head of Education and Skills,Transport,230007,Contract Hire,02/02/2022,3962970-23287,"5,724.00",GARNETTS LTD (COACHES).
Children and Young Peoples Services,Head of Education and Skills,Transport,230007,Contract Hire,02/02/2022,3962970-23295,"2,831.00",GARNETTS LTD (COACHES).
Children and Young Peoples Services,Head of Education and Skills,Transport,230007,Contract Hire,02/02/2022,3962970-23286,"4,655.00",GARNETTS LTD (COACHES).
Children and Young Peoples Services,Head of Education and Skills,Transport,230007,Contract Hire,02/02/2022,3962970-23289-3007,"2,812.00",GARNETTS LTD (COACHES).
Children and Young Peoples Services,Head of Education and Skills,Transport,230007,Contract Hire,02/02/2022,3962970-23289-3315,"2,641.00",GARNETTS LTD (COACHES).
Children and Young Peoples Services,Head of Education and Skills,Transport,230007,Contract Hire,02/02/2022,3962970-23289-3435,"3,572.00",GARNETTS LTD (COACHES).
Children and Young Peoples Services,Head of Education and Skills,Transport,230007,Contract Hire,02/02/2022,3962970-23290-4034,"2,641.00",GARNETTS LTD (COACHES).
Children and Young Peoples Services,Head of Education and Skills,Transport,230007,Contract Hire,02/02/2022,3962970-23290-4035,"2,755.00",GARNETTS LTD (COACHES).
Children and Young Peoples Services,Head of Education and Skills,Transport,230007,Contract Hire,02/02/2022,3962970-23290-4037,"5,282.00",GARNETTS LTD (COACHES).
Children and Young Peoples Services,Head of Education and Skills,Transport,230007,Contract Hire,02/02/2022,3962970-23290-4038,"3,135.00",GARNETTS LTD (COACHES).
Children and Young Peoples Services,Head of Education and Skills,Transport,230003,Contract Hire,02/02/2022,3962970-23293-3004,"4,080.00",GARNETTS LTD (COACHES).
Children and Young Peoples Services,Head of Education and Skills,Transport,230003,Contract Hire,02/02/2022,3962970-23293-3005,"5,960.00",GARNETTS LTD (COACHES).
Children and Young Peoples Services,Head of Education and Skills,Transport,230003,Contract Hire,02/02/2022,3962970-23293-3008,"3,380.00",GARNETTS LTD (COACHES).
Children and Young Peoples Services,Head of Education and Skills,Transport,230003,Contract Hire,02/02/2022,3962970-23293-3203,"3,180.00",GARNETTS LTD (COACHES).
Children and Young Peoples Services,Head of Education and Skills,Transport,230003,Contract Hire,02/02/2022,3962970-23293-3223,"6,360.00",GARNETTS LTD (COACHES).
Children and Young Peoples Services,Head of Education and Skills,Transport,230003,Contract Hire,02/02/2022,3962970-23293-3262,"3,740.00",GARNETTS LTD (COACHES).
Children and Young Peoples Services,Head of Education and Skills,Transport,230003,Contract Hire,02/02/2022,3962970-23293-3333,"3,360.00",GARNETTS LTD (COACHES).
Children and Young Peoples Services,Head of Education and Skills,Transport,230007,Contract Hire,02/02/2022,3962970-23291,"2,717.00",GARNETTS LTD (COACHES).
Children and Young Peoples Services,Head of Education and Skills,Transport,230007,Contract Hire,02/02/2022,3962970-23291-3199,"2,584.00",GARNETTS LTD (COACHES).
Children and Young Peoples Services,Head of Education and Skills,Transport,230003,Contract Hire,02/02/2022,3962970-23291-3020,"2,736.00",GARNETTS LTD (COACHES).
Children and Young Peoples Services,Head of Education and Skills,Transport,230003,Contract Hire,02/02/2022,3962970-23291-3024,"2,261.00",GARNETTS LTD (COACHES).
Children and Young Peoples Services,Head of Education and Skills,Transport,230003,Contract Hire,02/02/2022,3962970-23291-3027,"2,413.00",GARNETTS LTD (COACHES).
Children and Young Peoples Services,Head of Education and Skills,Transport,230003,Contract Hire,02/02/2022,3962970-23291-3028,"2,641.00",GARNETTS LTD (COACHES).
Children and Young Peoples Services,Head of Education and Skills,Transport,230007,Contract Hire,02/02/2022,3962970-23285,"4,731.00",GARNETTS LTD (COACHES).
Children and Young Peoples Services,Head of Education and Skills,Transport,230008,Contract Hire,02/02/2022,3962970-23294,"2,808.00",GARNETTS LTD (COACHES).
Children and Young Peoples Services,Head of Education and Skills,Transport,230008,Contract Hire,02/02/2022,3962970-23296,"5,008.79",GARNETTS LTD (COACHES).
Children and Young Peoples Services,Head of Education and Skills,Transfer Payments,510034,School Children,02/02/2022,3962972-LACPPSPRING21-22,600.00,GATESHEAD COUNCIL.
Children and Young Peoples Services,Head of Childrens Social Care,Employees,080025,Agency Staff,02/02/2022,3962974-2456368,"160,517.52",GEOMETRIC RESULTS INTERNATIONAL.
Children and Young Peoples Services,Head of Education and Skills,Transfer Payments,510034,School Children,02/02/2022,3962978-LACPPSPRING21-22,600.00,GIBSIDE SCHOOL.
Children and Young Peoples Services,Head of Education and Skills,Transport,230007,Contract Hire,02/02/2022,3962981-78132,"7,704.00",GO GATESHEAD LTD.
Children and Young Peoples Services,Head of Education and Skills,Transport,230008,Contract Hire,02/02/2022,3962982-85,"2,214.00",GP TAXIS.
Neighbourhoods and Climate Change,Partnerships & Community Engagement Div.,Cap Exp on Grants & Other Financial Assistance (REFCUS),918004,Contributions to other bodies 918004,02/02/2022,3962983-VOUCHER20NB-CHES048,"2,430.00",GRANGE VILLA COMMUNITY ENTERPRISE CENTRE.
Children and Young Peoples Services,Head of Education and Skills,Supplies and Services,384199,Miscellaneous Expenses,02/02/2022,3962987-0000014345,"2,049.30",GROUNDWORK NE & CUMBRIA.
Children and Young Peoples Services,Head of Early Help Inclusion & Vulnerable Children.,Supplies and Services,384302,Miscellaneous Expenses,02/02/2022,3962988-0000014350,"19,680.00",GROUNDWORK NORTH EAST.
Neighbourhoods and Climate Change,Environmental Services,Supplies and Services,304221,Equipment and Materials,02/02/2022,3962989-181850,"1,992.00",GUSTHARTS LTD.
Resources BK0010,Digital and Customer Services,Supplies and Services,304303,Equipment and Materials,02/02/2022,3962990-INV0185493,"1,945.00",GVAV LTD.
Children and Young Peoples Services,Head of Education and Skills,Transfer Payments,510034,School Children,02/02/2022,3962991-LACPPSPRING21-22,600.00,HADNALL C OF E PRIMARY SCHOOL.
Resources BK0010,Digital and Customer Services,Supplies and Services,342051,Computers and Communications,02/02/2022,3962992-INV-20233,"10,120.00",HALO SERVICE SOLUTIONS LTD.
Neighbourhoods and Climate Change,Environmental Services,Supplies and Services,304221,Equipment and Materials,02/02/2022,3962994-SI-7213,672.63,HARELAW SAWMILL LTD.
Neighbourhoods and Climate Change,Environmental Services,Supplies and Services,304221,Equipment and Materials,02/02/2022,3962994-SI-7224,"1,545.17",HARELAW SAWMILL LTD.
Children and Young Peoples Services,Head of Education and Skills,Transfer Payments,510034,School Children,02/02/2022,3962996-LACPPSPRING21-22,600.00,HARTLEPOOL BOROUGH COUNCIL.
Children and Young Peoples Services,Head of Education and Skills,Transfer Payments,510034,School Children,02/02/2022,3962997-LACPPSPRING21-22,600.00,HARTLEPOOL BOROUGH COUNCIL.
Children and Young Peoples Services,Head of Education and Skills,Transfer Payments,510034,School Children,02/02/2022,3962998-LACPPSPRING21-22,"1,200.00",HARTSIDE PRIMARY ACADEMY.
Regeneration Economy and Growth,Corporate Property and Land,Supplies and Services,304221,Equipment and Materials,02/02/2022,3963000-4723165,"1,128.35",HEADLAM (FLOORCOVERING DISTRIBUTORS) LTD.
Children and Young Peoples Services,Head of Education and Skills,Transfer Payments,510034,School Children,02/02/2022,3963001-LACPPSPRING21-22,"1,200.00",HETTON COMPREHENSIVE SCHOOL.
Children and Young Peoples Services,Head of Education and Skills,Transfer Payments,510034,School Children,02/02/2022,3963002-LACPPSPRING21-22,"1,200.00",HETTON PRIMARY SCHOOL.
Children and Young Peoples Services,Head of Education and Skills,Transfer Payments,510034,School Children,02/02/2022,317443-LACPPSPRING21-22,600.00,HEWORTH GRANGE COMPREHENSIVE SCHOOL.
Children and Young Peoples Services,Head of Education and Skills,Transfer Payments,510034,School Children,02/02/2022,3963003-LACPPSPRING21-22,600.00,HEXHAM MIDDLE SCHOOL .
Children and Young Peoples Services,Head of Education and Skills,Transfer Payments,510034,School Children,02/02/2022,3963004-LACPPSPRING21-22,"1,200.00",HIGH SPEN PRIMARY SCHOOL.
Children and Young Peoples Services,Head of Education and Skills,Transfer Payments,510034,School Children,02/02/2022,3963005-LACPPSPRING21-22,"1,200.00",HIGH TUNSTALL COLLEGE OF SCIENCE.
Children and Young Peoples Services,Head of Education and Skills,Transfer Payments,510034,School Children,02/02/2022,3963006-LACPPSPRING21-22,600.00,HIGHLAND COUNCIL T/A CHARLESTON ACADEMY.
Children and Young Peoples Services,Head of Education and Skills,Transfer Payments,510034,School Children,02/02/2022,3963007-LACPPSPRING21-22,600.00,HIGHLAND COUNCIL.
Regeneration Economy and Growth,Culture Sport and Tourism,Supplies and Services,338047,Services,02/02/2022,3963008-003145,700.00,HILARITY BITES COMEDY CLUB.
Children and Young Peoples Services,Head of Education and Skills,Transfer Payments,510034,School Children,02/02/2022,3963011-LACPPSPRING21-22,"1,200.00",HOLME COMMUNITY SCHOOL.
Children and Young Peoples Services,Head of Education and Skills,Transfer Payments,510034,School Children,02/02/2022,3963013-LACPPSPRING21-22,"3,350.00",HOPE WOOD ACADEMY.
Children and Young Peoples Services,Head of Education and Skills,Transfer Payments,510034,School Children,02/02/2022,3963015-LACPPSPRING21-22,600.00,HORNCASTLE EDUCATION TRUST.
Children and Young Peoples Services,Head of Education and Skills,Third Party Payments,440999,Other third party payments E440,02/02/2022,3963016-586/22/0724,"10,530.00",HUMANKIND CHARITY.
Adult and Health Services,Public Health CC0450,Third Party Payments,460802,Contract Payments,02/02/2022,3963016-585/22/1207,"11,750.00",HUMANKIND CHARITY.
Children and Young Peoples Services,Head of Education and Skills,Transfer Payments,510034,School Children,02/02/2022,3963017-LACPPSPRING21-22,"1,200.00",HUMMERSKNOTT ACADEMY.
Children and Young Peoples Services,Head of Education and Skills,Transfer Payments,510034,School Children,02/02/2022,3963018-LACPPSPRING21-22,"3,600.00",HURWORTH ACADEMY.
Resources BK0010,Digital and Customer Services,Vehicles Equipment Furniture and Fittings,912701,Computer equipment,02/02/2022,3963021-2100105108-22,"1,763.63",INSIGHT DIRECT (UK) LTD.
Children and Young Peoples Services,Head of Education and Skills,Transfer Payments,510034,School Children,02/02/2022,3963022-LACPPSPRING21-22,600.00,INSPIRE EDUCATION TRUST.
Neighbourhoods and Climate Change,Technical Services CM0300,Third Party Payments,430127,Rendered by Private Contractors,02/02/2022,3963027-5306370,"2,917.50",JA GILSON (AGRICULTURAL CONTRACTORS) LTD.
Neighbourhoods and Climate Change,Technical Services CM0300,Third Party Payments,430127,Rendered by Private Contractors,02/02/2022,3963027-5306371,"2,982.00",JA GILSON (AGRICULTURAL CONTRACTORS) LTD.
Neighbourhoods and Climate Change,Technical Services CM0300,Third Party Payments,430127,Rendered by Private Contractors,02/02/2022,3963027-5306376,"1,176.00",JA GILSON (AGRICULTURAL CONTRACTORS) LTD.
Neighbourhoods and Climate Change,Technical Services CM0300,Third Party Payments,430127,Rendered by Private Contractors,02/02/2022,3963027-5306377,"1,390.00",JA GILSON (AGRICULTURAL CONTRACTORS) LTD.
Neighbourhoods and Climate Change,Technical Services CM0300,Third Party Payments,430127,Rendered by Private Contractors,02/02/2022,3963027-5306385,"1,760.00",JA GILSON (AGRICULTURAL CONTRACTORS) LTD.
Neighbourhoods and Climate Change,Technical Services CM0300,Third Party Payments,430127,Rendered by Private Contractors,02/02/2022,3963027-5306386,"1,692.00",JA GILSON (AGRICULTURAL CONTRACTORS) LTD.
Neighbourhoods and Climate Change,Technical Services CM0300,Third Party Payments,430127,Rendered by Private Contractors,02/02/2022,3963027-5306392,"1,150.00",JA GILSON (AGRICULTURAL CONTRACTORS) LTD.
Neighbourhoods and Climate Change,Technical Services CM0300,Third Party Payments,430127,Rendered by Private Contractors,02/02/2022,3963027-5306397,"1,306.50",JA GILSON (AGRICULTURAL CONTRACTORS) LTD.
Neighbourhoods and Climate Change,Technical Services CM0300,Third Party Payments,430127,Rendered by Private Contractors,02/02/2022,3963027-5306398,"1,477.50",JA GILSON (AGRICULTURAL CONTRACTORS) LTD.
Neighbourhoods and Climate Change,Technical Services CM0300,Third Party Payments,430127,Rendered by Private Contractors,02/02/2022,3963027-5306401,"3,382.50",JA GILSON (AGRICULTURAL CONTRACTORS) LTD.
Neighbourhoods and Climate Change,Technical Services CM0300,Third Party Payments,430127,Rendered by Private Contractors,02/02/2022,3963027-5306402,"2,813.50",JA GILSON (AGRICULTURAL CONTRACTORS) LTD.
Adult and Health Services,Head of Adults,Transport,230005,Contract Hire,02/02/2022,3963028-0840,"2,120.00",JACKSON`S TAXI.
Children and Young Peoples Services,Head of Education and Skills,Transport,230008,Contract Hire,02/02/2022,3963028-0842,"2,042.64",JACKSON`S TAXI.
Children and Young Peoples Services,Head of Education and Skills,Transport,230008,Contract Hire,02/02/2022,3963028-0844,"2,552.00",JACKSON`S TAXI.
Children and Young Peoples Services,Head of Education and Skills,Transport,230009,Contract Hire,02/02/2022,3963028-0843,"1,140.00",JACKSON`S TAXI.
Adult and Health Services,Head of Adults,Transport,230005,Contract Hire,02/02/2022,3963028-0845,770.00,JACKSON`S TAXI.
Children and Young Peoples Services,Head of Education and Skills,Transport,230008,Contract Hire,02/02/2022,3963028-0841,"1,935.72",JACKSON`S TAXI.
Regeneration Economy and Growth,Culture Sport and Tourism,Supplies and Services,304252,Equipment and Materials,02/02/2022,3963030-49061,540.00,JBL SERVICES LTD.
Neighbourhoods and Climate Change,Environmental Services,Transport,210057,Repair and Maintenance of Vehicles,02/02/2022,3963032-149750,"1,597.81",JG PAXTON & SONS LTD.
Children and Young Peoples Services,Head of Education and Skills,Transfer Payments,510034,School Children,02/02/2022,3963033-LACPPSPRING21-22,600.00,JIGSAW LEARNING TRUST.
Adult and Health Services,Head of Adults,Transport,230005,Contract Hire,02/02/2022,3963036-16-JAN22,"1,200.00",JOHN CRAKE & SONS MINI BUSES LTD.
Regeneration Economy and Growth,Corporate Property and Land,Supplies and Services,304221,Equipment and Materials,02/02/2022,3963040-0120/00562929,"1,256.59",JT DOVE LTD.
Regeneration Economy and Growth,Corporate Property and Land,Third Party Payments,430100,Rendered by Private Contractors,02/02/2022,3963041-9-30/9/21,"1,324.30",JTL SCAFFOLDING LTD.
Resources BK0010,Finance & Transactional Services,Third Party Payments,440999,Other third party payments E440,02/02/2022,3963042-CAS-01-2022-152,"2,000.00",JUNCTION 7.
Neighbourhoods and Climate Change,Technical Services CM0300,Supplies and Services,304221,Equipment and Materials,02/02/2022,3963043-346756,"2,397.86",KAEFER LTD.
Children and Young Peoples Services,Head of Education and Skills,Transport,230008,Contract Hire,02/02/2022,3963044-5-JAN22,"2,340.00",KD TAXIS.
Children and Young Peoples Services,Head of Education and Skills,Transport,230006,Contract Hire,02/02/2022,3963045-005-JAN22,"1,200.00",KELLY`S.
Children and Young Peoples Services,Head of Education and Skills,Transfer Payments,510034,School Children,02/02/2022,3963046-LACPPSPRING21-22,600.00,KENTON SCHOOL.
Children and Young Peoples Services,Head of Education and Skills,Transfer Payments,510034,School Children,02/02/2022,3963047-LACPPSPRING21-22,"1,800.00",KING JAMES I ACADEMY.
Children and Young Peoples Services,Head of Early Help Inclusion & Vulnerable Children.,Supplies and Services,384302,Miscellaneous Expenses,02/02/2022,3963048-939,"1,687.50",KINGSWAY ADVENTURE CENTRE.
Children and Young Peoples Services,Head of Education and Skills,Transport,230008,Contract Hire,02/02/2022,3963049-N096-DEC21,742.50,KINGSWAY CABS LTD.
Children and Young Peoples Services,Head of Education and Skills,Transfer Payments,510034,School Children,02/02/2022,3963055-LACPPSPRING21-22,600.00,LAIDLAW SCHOOLS TRUST T/A ACADEMY 360.
Children and Young Peoples Services,Head of Education and Skills,Transport,230007,Contract Hire,02/02/2022,3963056-1986,"1,152.00",LD TAXIS.
Children and Young Peoples Services,Head of Education and Skills,Transport,230034,Contract Hire,02/02/2022,3963056-1975,"1,400.00",LD TAXIS.
Children and Young Peoples Services,Head of Education and Skills,Transport,230006,Contract Hire,02/02/2022,3963056-1976,"1,400.00",LD TAXIS.
Children and Young Peoples Services,Head of Education and Skills,Transport,230008,Contract Hire,02/02/2022,3963056-1980,"1,663.26",LD TAXIS.
Children and Young Peoples Services,Head of Education and Skills,Transport,230008,Contract Hire,02/02/2022,3963056-1982,"2,000.00",LD TAXIS.
Children and Young Peoples Services,Head of Education and Skills,Transfer Payments,510034,School Children,02/02/2022,3963057-LACPPSPRING21-22,600.00,LEARNING COMMUNITY TRUST T/A ERCALL ACADEMY.
Children and Young Peoples Services,Head of Education and Skills,Transfer Payments,510034,School Children,02/02/2022,3963061-LACPPSPRING21-22,600.00,LORD LAWSON OF BEAMISH ACADEMY.
Children and Young Peoples Services,Head of Education and Skills,Transfer Payments,510034,School Children,02/02/2022,3963068-LACPPSPRING21-22,600.00,MARCHBANK FREE SCHOOL.
Regeneration Economy and Growth,Culture Sport and Tourism,Supplies and Services,304337,Equipment and Materials,02/02/2022,3963069-4236000346,"1,197.46",MARES SPA.
Regeneration Economy and Growth,Culture Sport and Tourism,Supplies and Services,304337,Equipment and Materials,02/02/2022,3963069-4236026760,"1,300.90",MARES SPA.
Regeneration Economy and Growth,Culture Sport and Tourism,Supplies and Services,304337,Equipment and Materials,02/02/2022,3963069-4236026945,940.80,MARES SPA.
Children and Young Peoples Services,Head of Education and Skills,Transfer Payments,510034,School Children,02/02/2022,3963075-LACPPSPRING21-22,600.00,MELROSE LEARNING TRUST.
Adult and Health Services,Head of Adults,Third Party Payments,470101,Purchase of Care,02/02/2022,3963076-WAGEUPLIFTFUND306,"1,150.36",MERRYWELL CARE (BELMONT GRANGE) LTD.
Children and Young Peoples Services,Childrens Services Operational Support,Supplies and Services,338089,Services,02/02/2022,3963088-104801,650.00,NATIONAL AUTISTIC SOCIETY.
Children and Young Peoples Services,Head of Education and Skills,Transfer Payments,510034,School Children,02/02/2022,3963092-LACPPSPRING21-22,"3,000.00",NEW COLLEGE ACADEMIES TRUST - CONSETT ACADEMY.
Resources BK0010,Digital and Customer Services,Supplies and Services,342033,Computers and Communications,02/02/2022,3963096-0000003218,765.94,NOMINET UK.
Children and Young Peoples Services,Head of Education and Skills,Transfer Payments,510034,School Children,02/02/2022,3963097-LACPPSPRING21-22,"2,600.00",NORTH DURHAM ACADEMY.
Children and Young Peoples Services,Head of Education and Skills,Transfer Payments,510034,School Children,02/02/2022,3963098-LACPPSPRING21-22,"2,400.00",NORTH EAST LEARNING TRUST (NELT).
Children and Young Peoples Services,Head of Education and Skills,Transfer Payments,510034,School Children,02/02/2022,3963098-LACPPSPRING21-22EAS,"3,600.00",NORTH EAST LEARNING TRUST (NELT).
Children and Young Peoples Services,Head of Education and Skills,Transfer Payments,510034,School Children,02/02/2022,3963098-LACPPSPRING21-22HERM,"3,000.00",NORTH EAST LEARNING TRUST (NELT).
Children and Young Peoples Services,Head of Education and Skills,Transfer Payments,510034,School Children,02/02/2022,3963098-LACPPSPRING21-22SACR,"1,200.00",NORTH EAST LEARNING TRUST (NELT).
Children and Young Peoples Services,Head of Education and Skills,Transfer Payments,510034,School Children,02/02/2022,3963098-LACPPSPRING21-22SHOTT,"4,800.00",NORTH EAST LEARNING TRUST (NELT).
Children and Young Peoples Services,Head of Education and Skills,Transfer Payments,510034,School Children,02/02/2022,3963098-LACPPSPRING21-22TEES,"1,800.00",NORTH EAST LEARNING TRUST (NELT).
Children and Young Peoples Services,Head of Childrens Social Care,Third Party Payments,440038,Other third party payments E440,02/02/2022,3963099-ST5,"5,820.00",NORTH EAST SUPPORTED TENANCIES (NEST).
Resources - C A C,Centrally Administered costs 069006,Supplies and Services,384899,Miscellaneous Expenses,02/02/2022,3963101-100081LR,"65,714.29",NORTH OF TYNE COMBINED AUTHORITY.
Resources - C A C,Centrally Administered costs 069006,Supplies and Services,384899,Miscellaneous Expenses,02/02/2022,3963101-100088LR,"2,533.65",NORTH OF TYNE COMBINED AUTHORITY.
Neighbourhoods and Climate Change,Community Protection,Third Party Payments,430100,Rendered by Private Contractors,02/02/2022,3963102-250004047,995.00,NORTH YORKSHIRE COUNTY COUNCIL.
Children and Young Peoples Services,Head of Education and Skills,Transfer Payments,510034,School Children,02/02/2022,3963103-LACPPSPRING21-22DYKEHS,"1,800.00",NORTHERN EDUCATION TRUST T/A  DYKE HOUSE SPORTS & TECHNOLOGY COLLEGE.
Children and Young Peoples Services,Head of Education and Skills,Transfer Payments,510034,School Children,02/02/2022,3963103-LACPPSPRING21-22NTHSHORE,900.00,NORTHERN EDUCATION TRUST T/A  DYKE HOUSE SPORTS & TECHNOLOGY COLLEGE.
Regeneration Economy and Growth,Corporate Property and Land,Supplies and Services,304259,Equipment and Materials,02/02/2022,3963105-739622,"1,302.00",NORTHERN TOOLS & ACCESSORIES.
Children and Young Peoples Services,Head of Education and Skills,Transfer Payments,510034,School Children,02/02/2022,3963106-LACPPSPRING21-22,600.00,NORTHUMBERLAND COUNTY COUNCIL.
Children and Young Peoples Services,Head of Education and Skills,Transfer Payments,510034,School Children,02/02/2022,3963107-LACPPSPRING21-22,600.00,NORTHUMBERLAND COUNTY COUNCIL.
Dedicated Schools Grant BG0015,DSG High Needs Block,Third Party Payments,410037,Rendered by Other Local Authorities,02/02/2022,3963106-234797,735.90,NORTHUMBERLAND COUNTY COUNCIL.
Regeneration Economy and Growth,Culture Sport and Tourism,Supplies and Services,304259,Equipment and Materials,02/02/2022,3963108-65485,"1,722.00",NORTHWEST RADIO COMMUNICATIONS LTD.
Regeneration Economy and Growth,Corporate Property and Land,Third Party Payments,430100,Rendered by Private Contractors,02/02/2022,3963114-11297-46,"1,160.62",OPUS BUILDING SERVICES LTD.
Regeneration Economy and Growth,Corporate Property and Land,Third Party Payments,430100,Rendered by Private Contractors,02/02/2022,3963114-11297-54,"1,166.92",OPUS BUILDING SERVICES LTD.
Regeneration Economy and Growth,Corporate Property and Land,Third Party Payments,430100,Rendered by Private Contractors,02/02/2022,3963114-11297-55,"1,128.38",OPUS BUILDING SERVICES LTD.
Regeneration Economy and Growth,Corporate Property and Land,Third Party Payments,430100,Rendered by Private Contractors,02/02/2022,3963114-11297-56,"1,128.38",OPUS BUILDING SERVICES LTD.
Children and Young Peoples Services,Head of Education and Skills,Transfer Payments,510034,School Children,02/02/2022,3963116-LACPPSPRING21-22,900.00,OUTWOOD ACADEMY BISHOPSGARTH.
Children and Young Peoples Services,Head of Education and Skills,Transfer Payments,510034,School Children,02/02/2022,317457-LACPPSPRING21-22,"1,200.00",OXCLOSE COMMUNITY ACADEMY.
Adult and Health Services,Head of Adults,Supplies and Services,342051,Computers and Communications,02/02/2022,3963117-17489,"3,169.67",OXFORD COMPUTER CONSULTANTS LTD.
Adult and Health Services,Head of Adults,Supplies and Services,342051,Computers and Communications,02/02/2022,3963117-17491,"13,594.27",OXFORD COMPUTER CONSULTANTS LTD.
Resources BK0010,Finance & Transactional Services,Third Party Payments,440999,Other third party payments E440,02/02/2022,3963119-CAS-01-2022-153,"2,000.00",PACT HOUSE STANLEY.
Regeneration Economy and Growth,Corporate Property and Land,Supplies and Services,304221,Equipment and Materials,02/02/2022,3963121-XL280860,"1,149.29",PARK ELECTRICAL DISTRIBUTORS LTD.
Neighbourhoods and Climate Change,Technical Services CM0300,Stock A926,926900,Stock in hand-Inventory system,02/02/2022,3963121-XL280990,"3,390.00",PARK ELECTRICAL DISTRIBUTORS LTD.
Neighbourhoods and Climate Change,Technical Services CM0300,Stock A926,926900,Stock in hand-Inventory system,02/02/2022,3963121-XL281087,"2,420.00",PARK ELECTRICAL DISTRIBUTORS LTD.
Children and Young Peoples Services,Head of Education and Skills,Transfer Payments,510034,School Children,02/02/2022,3963122-LACPPSPRING21-22,"4,800.00",PARK VIEW ACADEMY.
Regeneration Economy and Growth,Transport and Contracted Services,Third Party Payments,430100,Rendered by Private Contractors,02/02/2022,3963124-2430,"3,146.70",PATROL (PARKING & TRAFFIC REGULATIONS OUTSIDE LONDON).
Regeneration Economy and Growth,Transport and Contracted Services,Third Party Payments,430100,Rendered by Private Contractors,02/02/2022,3963124-2477,825.60,PATROL (PARKING & TRAFFIC REGULATIONS OUTSIDE LONDON).
Children and Young Peoples Services,Head of Childrens Social Care,Third Party Payments,425021,Rendered by Voluntary Organisations,02/02/2022,3963128-320719,"16,628.83",PEARTREE PROJECTS LTD.
Children and Young Peoples Services,Head of Education and Skills,Transfer Payments,510034,School Children,02/02/2022,3963128-LACPPSPRING21-22,"1,000.00",PEARTREE PROJECTS LTD.
Children and Young Peoples Services,Head of Education and Skills,Transport,230007,Contract Hire,02/02/2022,3963131-2088-JAN22,950.00,PETER`S TAXIS.
Children and Young Peoples Services,Head of Education and Skills,Transport,230034,Contract Hire,02/02/2022,3963131-3422-JAN22,950.00,PETER`S TAXIS.
Children and Young Peoples Services,Head of Education and Skills,Transport,230006,Contract Hire,02/02/2022,3963131-F789-JAN22,"1,600.00",PETER`S TAXIS.
Children and Young Peoples Services,Head of Education and Skills,Transport,230034,Contract Hire,02/02/2022,3963131-5294-JAN22,720.00,PETER`S TAXIS.
Dedicated Schools Grant BG0015,DSG High Needs Block,Supplies and Services,304259,Equipment and Materials,02/02/2022,3963133-2593252187,"1,018.55",PHONAK UK LTD.
Children and Young Peoples Services,Head of Education and Skills,Transfer Payments,510034,School Children,02/02/2022,3963135-LACPPSPRING21-22,600.00,PLYMOUTH CITY COUNCIL.
Adult and Health Services,Public Health CC0450,Supplies and Services,304259,Equipment and Materials,02/02/2022,3963136-900949065,688.98,PORTAKABIN LTD.
Adult and Health Services,Head of Adults,Third Party Payments,478151,Purchase of Care,02/02/2022,3963137-3041,"19,864.80",POSITIVE INDIVIDUAL PROACTIVE SUPPORT LTD.
Neighbourhoods and Climate Change,Technical Services CM0300,Third Party Payments,460224,Contract Payments,02/02/2022,3963138-NE/IN293116,"2,073.56",PQS SURVEY LTD.
Adult and Health Services,Head of Adults,Supplies and Services,338089,Services,02/02/2022,3963139-4193,"2,700.00",PRICE TRAINING LTD.
Adult and Health Services,Head of Adults,Supplies and Services,338089,Services,02/02/2022,3963139-4254,"1,860.00",PRICE TRAINING LTD.
Children and Young Peoples Services,Head of Education and Skills,Transfer Payments,510034,School Children,02/02/2022,3963143-LACPPSPRING21-22,600.00,PROSPER LEARNING TRUST.
Neighbourhoods and Climate Change,Technical Services CM0300,Third Party Payments,430100,Rendered by Private Contractors,02/02/2022,3963146-13854,"1,169.28",QUANTUM POWER CONNECTIONS LTD.
Neighbourhoods and Climate Change,Technical Services CM0300,Third Party Payments,430100,Rendered by Private Contractors,02/02/2022,3963146-13860,"2,586.80",QUANTUM POWER CONNECTIONS LTD.
Neighbourhoods and Climate Change,Technical Services CM0300,Third Party Payments,430100,Rendered by Private Contractors,02/02/2022,3963146-13862,584.64,QUANTUM POWER CONNECTIONS LTD.
Neighbourhoods and Climate Change,Technical Services CM0300,Third Party Payments,430100,Rendered by Private Contractors,02/02/2022,3963146-13863,974.40,QUANTUM POWER CONNECTIONS LTD.
Children and Young Peoples Services,Head of Education and Skills,Transfer Payments,510034,School Children,02/02/2022,3963147-LACPPSPRING21-22,"1,200.00",QUEEN ELIZABETH HIGH SCHOOL.
Adult and Health Services,Head of Adults,Transport,230005,Contract Hire,02/02/2022,3963149-22011,"1,384.00",RAPID MINIBUSES.
Children and Young Peoples Services,Head of Education and Skills,Transport,230016,Contract Hire,02/02/2022,3963149-22017,700.00,RAPID MINIBUSES.
Children and Young Peoples Services,Head of Education and Skills,Transport,230008,Contract Hire,02/02/2022,3963149-22012,"2,400.00",RAPID MINIBUSES.
Children and Young Peoples Services,Head of Education and Skills,Transport,230008,Contract Hire,02/02/2022,3963149-22013,"1,960.00",RAPID MINIBUSES.
Children and Young Peoples Services,Head of Education and Skills,Transport,230008,Contract Hire,02/02/2022,3963149-22014,"1,924.00",RAPID MINIBUSES.
Adult and Health Services,Head of Adults,Transport,230005,Contract Hire,02/02/2022,3963149-22010,980.00,RAPID MINIBUSES.
Children and Young Peoples Services,Head of Education and Skills,Transport,230012,Contract Hire,02/02/2022,3963080-E045-5,"2,071.00",REDACTED - PAYMENT TO INDIVIDUAL
Children and Young Peoples Services,Head of Education and Skills,Transport,230008,Contract Hire,02/02/2022,3963224-7-JAN22,"2,580.00",REDACTED - PAYMENT TO INDIVIDUAL
Children and Young Peoples Services,Head of Education and Skills,Transport,230034,Contract Hire,02/02/2022,3963151-007,"1,428.00",REDACTED - PAYMENT TO INDIVIDUAL
Children and Young Peoples Services,Head of Education and Skills,Transport,230007,Contract Hire,02/02/2022,3963070-INV01/012022,"1,140.00",REDACTED - PAYMENT TO INDIVIDUAL
Children and Young Peoples Services,Head of Education and Skills,Transport,230007,Contract Hire,02/02/2022,3963070-INV01/202202,920.00,REDACTED - PAYMENT TO INDIVIDUAL
Children and Young Peoples Services,Head of Education and Skills,Transport,230007,Contract Hire,02/02/2022,3963070-INV01/202204,741.00,REDACTED - PAYMENT TO INDIVIDUAL
Adult and Health Services,Head of Adults,Transport,230005,Contract Hire,02/02/2022,3962993-04JAN22,760.00,REDACTED - PAYMENT TO INDIVIDUAL
Adult and Health Services,Head of Adults,Transport,230005,Contract Hire,02/02/2022,3963224-3-JAN22,"1,185.60",REDACTED - PAYMENT TO INDIVIDUAL
Children and Young Peoples Services,Head of Education and Skills,Transport,230008,Contract Hire,02/02/2022,3963029-54-JAN22,"3,052.14",REDACTED - PAYMENT TO INDIVIDUAL
Children and Young Peoples Services,Head of Education and Skills,Transport,230008,Contract Hire,02/02/2022,3962967-16JAN22,"1,260.00",REDACTED - PAYMENT TO INDIVIDUAL
Children and Young Peoples Services,Head of Education and Skills,Transport,230008,Contract Hire,02/02/2022,3963085-3206,"1,327.20",REDACTED - PAYMENT TO INDIVIDUAL
Children and Young Peoples Services,Head of Education and Skills,Transport,230009,Contract Hire,02/02/2022,3963079-FRAM101-22,"1,489.60",REDACTED - PAYMENT TO INDIVIDUAL
Children and Young Peoples Services,Head of Education and Skills,Transport,230008,Contract Hire,02/02/2022,3963079-CROFT101-22,"1,851.84",REDACTED - PAYMENT TO INDIVIDUAL
Children and Young Peoples Services,Head of Education and Skills,Transport,230008,Contract Hire,02/02/2022,3963029-55,"3,800.00",REDACTED - PAYMENT TO INDIVIDUAL
Children and Young Peoples Services,Head of Education and Skills,Transport,230008,Contract Hire,02/02/2022,3963081-236,"2,242.00",REDACTED - PAYMENT TO INDIVIDUAL
Children and Young Peoples Services,Head of Education and Skills,Transport,230034,Contract Hire,02/02/2022,3963082-5-JAN22,"2,498.50",REDACTED - PAYMENT TO INDIVIDUAL
Children and Young Peoples Services,Head of Education and Skills,Transport,230006,Contract Hire,02/02/2022,3963151-006,"1,935.00",REDACTED - PAYMENT TO INDIVIDUAL
Children and Young Peoples Services,Head of Education and Skills,Transport,230016,Contract Hire,02/02/2022,3963224-1-JAN22,"2,705.42",REDACTED - PAYMENT TO INDIVIDUAL
Children and Young Peoples Services,Head of Education and Skills,Transport,230006,Contract Hire,02/02/2022,3962976-11C,"2,478.00",REDACTED - PAYMENT TO INDIVIDUAL
Children and Young Peoples Services,Head of Education and Skills,Transport,230006,Contract Hire,02/02/2022,3962993-01JAN22,948.00,REDACTED - PAYMENT TO INDIVIDUAL
Children and Young Peoples Services,Head of Education and Skills,Transport,230006,Contract Hire,02/02/2022,3962993-59,"1,893.80",REDACTED - PAYMENT TO INDIVIDUAL
Children and Young Peoples Services,Head of Education and Skills,Transport,230006,Contract Hire,02/02/2022,3963083-F117-05,"1,350.00",REDACTED - PAYMENT TO INDIVIDUAL
Children and Young Peoples Services,Head of Education and Skills,Transport,230012,Contract Hire,02/02/2022,3962872-5-A015-JAN22,"2,500.00",REDACTED - PAYMENT TO INDIVIDUAL
Regeneration Economy and Growth,Culture Sport and Tourism,Supplies and Services,304259,Equipment and Materials,02/02/2022,3963038-130448,"1,537.00",REDACTED - PAYMENT TO INDIVIDUAL
Children and Young Peoples Services,Head of Education and Skills,Transport,230010,Contract Hire,02/02/2022,3962821-4JAN22,"1,203.49",REDACTED - PAYMENT TO INDIVIDUAL
Children and Young Peoples Services,Head of Education and Skills,Transport,230010,Contract Hire,02/02/2022,3963020-WOOD005-B016-JAN22,"2,060.28",REDACTED - PAYMENT TO INDIVIDUAL
Children and Young Peoples Services,Head of Education and Skills,Transport,230010,Contract Hire,02/02/2022,3963200-00799,"1,639.03",REDACTED - PAYMENT TO INDIVIDUAL
Children and Young Peoples Services,Head of Education and Skills,Transport,230007,Contract Hire,02/02/2022,3963081-237,"1,320.50",REDACTED - PAYMENT TO INDIVIDUAL
Children and Young Peoples Services,Head of Education and Skills,Transport,230013,Contract Hire,02/02/2022,3963053-004-JAN22,"1,280.00",REDACTED - PAYMENT TO INDIVIDUAL
Children and Young Peoples Services,Head of Education and Skills,Transport,230008,Contract Hire,02/02/2022,3963029-51-JAN22,"3,040.00",REDACTED - PAYMENT TO INDIVIDUAL
Children and Young Peoples Services,Head of Education and Skills,Transport,230008,Contract Hire,02/02/2022,3963029-53-JAN22,"1,900.00",REDACTED - PAYMENT TO INDIVIDUAL
Children and Young Peoples Services,Head of Education and Skills,Transport,230008,Contract Hire,02/02/2022,3963085-3208,"4,180.00",REDACTED - PAYMENT TO INDIVIDUAL
Children and Young Peoples Services,Head of Education and Skills,Transport,230008,Contract Hire,02/02/2022,3963223-0002319,"3,400.00",REDACTED - PAYMENT TO INDIVIDUAL
Children and Young Peoples Services,Head of Education and Skills,Transport,230007,Contract Hire,02/02/2022,3963086-ACD0122,"1,120.00",REDACTED - PAYMENT TO INDIVIDUAL
Adult and Health Services,Head of Adults,Transport,230005,Contract Hire,02/02/2022,3963224-2-JAN22,"1,200.00",REDACTED - PAYMENT TO INDIVIDUAL
Adult and Health Services,Head of Adults,Transport,230005,Contract Hire,02/02/2022,3963224-5-JAN22,552.00,REDACTED - PAYMENT TO INDIVIDUAL
Adult and Health Services,Head of Adults,Transport,230005,Contract Hire,02/02/2022,3963224-8-JAN22,"2,400.00",REDACTED - PAYMENT TO INDIVIDUAL
Children and Young Peoples Services,Head of Education and Skills,Transport,230009,Contract Hire,02/02/2022,3962821-3JAN22,960.01,REDACTED - PAYMENT TO INDIVIDUAL
Children and Young Peoples Services,Head of Education and Skills,Transport,230008,Contract Hire,02/02/2022,3963082-11-JAN22,"1,392.02",REDACTED - PAYMENT TO INDIVIDUAL
Children and Young Peoples Services,Head of Education and Skills,Transport,230008,Contract Hire,02/02/2022,3963079-OAK201-22,"2,102.40",REDACTED - PAYMENT TO INDIVIDUAL
Children and Young Peoples Services,Head of Education and Skills,Transport,230008,Contract Hire,02/02/2022,3963223-0002317,"4,230.00",REDACTED - PAYMENT TO INDIVIDUAL
Children and Young Peoples Services,Head of Education and Skills,Transport,230008,Contract Hire,02/02/2022,3963223-0002318,"1,710.00",REDACTED - PAYMENT TO INDIVIDUAL
Children and Young Peoples Services,Head of Education and Skills,Transport,230008,Contract Hire,02/02/2022,3963079-THPK01-22,"1,789.88",REDACTED - PAYMENT TO INDIVIDUAL
Children and Young Peoples Services,Head of Education and Skills,Transport,230006,Contract Hire,02/02/2022,3963125-N061-JAN22,"1,330.00",REDACTED - PAYMENT TO INDIVIDUAL
Children and Young Peoples Services,Head of Education and Skills,Transport,230008,Contract Hire,02/02/2022,3963029-50-JAN22,"1,600.00",REDACTED - PAYMENT TO INDIVIDUAL
Children and Young Peoples Services,Head of Education and Skills,Transport,230008,Contract Hire,02/02/2022,3963067-5JAN22,"2,280.00",REDACTED - PAYMENT TO INDIVIDUAL
Children and Young Peoples Services,Head of Education and Skills,Transport,230008,Contract Hire,02/02/2022,3963085-3207,"2,375.00",REDACTED - PAYMENT TO INDIVIDUAL
Children and Young Peoples Services,Head of Education and Skills,Transport,230008,Contract Hire,02/02/2022,3963127-M014-JAN22,"2,831.00",REDACTED - PAYMENT TO INDIVIDUAL
Children and Young Peoples Services,Head of Education and Skills,Transport,230008,Contract Hire,02/02/2022,3962925-11,"3,100.00",REDACTED - PAYMENT TO INDIVIDUAL
Children and Young Peoples Services,Head of Education and Skills,Transport,230009,Contract Hire,02/02/2022,3963224-4-JAN22,980.00,REDACTED - PAYMENT TO INDIVIDUAL
Children and Young Peoples Services,Head of Education and Skills,Transport,230008,Contract Hire,02/02/2022,3963084-5-N109,"2,220.30",REDACTED - PAYMENT TO INDIVIDUAL
Children and Young Peoples Services,Head of Education and Skills,Transport,230008,Contract Hire,02/02/2022,3963152-092-DEC21,"1,140.00",REDZ PRIVATE HIRE.
Children and Young Peoples Services,Head of Education and Skills,Transfer Payments,510034,School Children,02/02/2022,3963155-LACPPSPRING21-22,600.00,RIBBON ACADEMY TRUST.
Children and Young Peoples Services,Head of Education and Skills,Transport,230008,Contract Hire,02/02/2022,3963159-001-E045-JAN22,"2,394.00",RONS TAXI (CHESTER LE ST).
Regeneration Economy and Growth,Development and Housing,Supplies and Services,384199,Miscellaneous Expenses,02/02/2022,3963161-TEC590484,"5,289.00",RPS CONSULTING SERVICES LTD.
Neighbourhoods and Climate Change,Partnerships & Community Engagement Div.,Supplies and Services,384086,Miscellaneous Expenses,02/02/2022,3963163-VOUCHERWALE05-21,500.00,SACRISTON YOUTH PROJECT.
Children and Young Peoples Services,Head of Education and Skills,Transport,230007,Contract Hire,02/02/2022,3963166-SKS2122-22,"1,000.00",SAMUEL KINGS SCHOOL.
Regeneration Economy and Growth,Transport and Contracted Services,Third Party Payments,430106,Rendered by Private Contractors,02/02/2022,3963169-3146,"113,503.96",SCARLET BAND BUS & COACH LTD.
Children and Young Peoples Services,Head of Education and Skills,Transfer Payments,510034,School Children,02/02/2022,3963171-LACPPSPRING21-22,"6,600.00",SEDGEFIELD COMMUNITY COLLEGE.
Children and Young Peoples Services,Head of Education and Skills,Transfer Payments,510034,School Children,02/02/2022,3963172-LACPPSPRING21-22,"1,200.00",SHIELD ROW ACADEMY.
Regeneration Economy and Growth,Corporate Property and Land,Supplies and Services,304221,Equipment and Materials,02/02/2022,3963174-36061699,516.81,SIG AIR HANDLING UK LTD T/A SK SALES.
Neighbourhoods and Climate Change,Environmental Services,Transport,230710,Contract Hire,02/02/2022,3963180-105/22/2001,"12,630.00",SOCIETE GENERALE EQUIPMENT FINANCE LTD.
Children and Young Peoples Services,Head of Education and Skills,Transfer Payments,510034,School Children,02/02/2022,3963184-LACPPSPRING21-22,"1,200.00",SOUTHMOOR ACADEMY.
Children and Young Peoples Services,Head of Education and Skills,Transfer Payments,510034,School Children,02/02/2022,3963186-LACPPSPRING21-22,600.00,ST AIDAN`S CE ACADEMY.
Children and Young Peoples Services,Head of Education and Skills,Transfer Payments,510034,School Children,02/02/2022,3963187-LACPPSPRING21-22,600.00,ST ANTHONY`S GIRLS SCHOOL.
Children and Young Peoples Services,Head of Education and Skills,Transfer Payments,510034,School Children,02/02/2022,3963188-LACPPSPRING21-22,"6,000.00",ST BEDES CATHOLIC ACADEMY (LANCHESTER).
Children and Young Peoples Services,Head of Education and Skills,Transfer Payments,510034,School Children,02/02/2022,3963189-LACPPSPRING21-22,600.00,ST HILD`S CHURCH OF ENGLAND SCHOOL.
Children and Young Peoples Services,Head of Education and Skills,Transfer Payments,510034,School Children,02/02/2022,3963190-LACPPSPRING21-22,600.00,ST JOHN THE BAPTIST PRIMARY SCHOOL.
Children and Young Peoples Services,Head of Education and Skills,Transfer Payments,510034,School Children,02/02/2022,3963191-LACPPSPRING21-22,600.00,ST JOSEPH`S RC MIDDLE SCHOOL (HEXHAM).
Children and Young Peoples Services,Head of Education and Skills,Transfer Payments,510034,School Children,02/02/2022,3963192-LACPPSPRING21-22,600.00,ST MARY`S RC PRIMARY SCHOOL (SUNDERLAND).
Children and Young Peoples Services,Head of Education and Skills,Transfer Payments,510034,School Children,02/02/2022,3963194-LACPPSPRING21-22,"3,000.00",ST ROBERTS NEWMINSTER RC SCHOOL & 6TH FORM COLLEGE.
Children and Young Peoples Services,Head of Education and Skills,Transfer Payments,510034,School Children,02/02/2022,3963195-LACPPSPRING21-22,"1,200.00",STAINDROP ACADEMY.
Children and Young Peoples Services,Head of Education and Skills,Transfer Payments,510034,School Children,02/02/2022,3963196-LACPPSPRING21-22,600.00,STANLEY LEARNING PARTNERSHIP.
Children and Young Peoples Services,Head of Education and Skills,Transfer Payments,510034,School Children,02/02/2022,3963197-LACPPSPRING21-22GREEN,600.00,STANLEY LEARNING PARTNERSHIP.
Children and Young Peoples Services,Head of Education and Skills,Transfer Payments,510034,School Children,02/02/2022,3963197-LACPPSPRING21-22STAN,600.00,STANLEY LEARNING PARTNERSHIP.
Neighbourhoods and Climate Change,Environmental Services,Supplies and Services,338078,Services,02/02/2022,3963199-17855,"3,444.48",STEADFAST SECURITY SOLUTIONS LTD.
Children and Young Peoples Services,Head of Education and Skills,Transfer Payments,510034,School Children,02/02/2022,3963201-LACPPSPRING21-22,"3,000.00",STEPHENSON WAY ACADEMY & NURSERY SCHOOL.
Children and Young Peoples Services,Head of Education and Skills,Transfer Payments,510034,School Children,02/02/2022,3963202-LACPPSPRING21-22,600.00,STOCKTON ON TEES BOROUGH COUNCIL.
Children and Young Peoples Services,Head of Education and Skills,Transfer Payments,510034,School Children,02/02/2022,3963204-LACPPSPRING21-22SUNNINGDALE,600.00,SUNDERLAND CITY COUNCIL.
Children and Young Peoples Services,Head of Education and Skills,Transfer Payments,510034,School Children,02/02/2022,3963204-LACPPSPRING21-22THELINK,600.00,SUNDERLAND CITY COUNCIL.
Children and Young Peoples Services,Head of Education and Skills,Transfer Payments,510034,School Children,02/02/2022,3963205-LACPPSPRING21-22,600.00,SUNDERLAND CITY COUNCIL.
Neighbourhoods and Climate Change,Technical Services CM0300,Supplies and Services,338066,Services,02/02/2022,3963206-33640,"1,490.00",SURVEY OPERATIONS LTD.
Resources BK0010,Digital and Customer Services,Vehicles Equipment Furniture and Fittings,912701,Computer equipment,02/02/2022,3963207-VSL10875,"51,510.00",SYXSENSE LTD.
Regeneration Economy and Growth,Corporate Property and Land,Supplies and Services,304221,Equipment and Materials,02/02/2022,3963208-729350,"5,187.73",T CROSSLING & CO LTD.
Regeneration Economy and Growth,Corporate Property and Land,Supplies and Services,304221,Equipment and Materials,02/02/2022,3963208-730223,542.22,T CROSSLING & CO LTD.
Regeneration Economy and Growth,Corporate Property and Land,Supplies and Services,304221,Equipment and Materials,02/02/2022,3963208-731326,802.24,T CROSSLING & CO LTD.
Neighbourhoods and Climate Change,Environmental Services,Third Party Payments,430116,Rendered by Private Contractors,02/02/2022,3963210-1094,"4,965.00",TAYLORED ENVIRONMENTAL ENGINEERING LTD.
Neighbourhoods and Climate Change,Environmental Services,Premises,108099,Service Repairs and Maintenance,02/02/2022,3963210-1095,"4,365.00",TAYLORED ENVIRONMENTAL ENGINEERING LTD.
Children and Young Peoples Services,Head of Education and Skills,Transport,230007,Contract Hire,02/02/2022,3963214-4055-JAN22,"3,240.00",TED WILFORD COACHES.
Children and Young Peoples Services,Head of Education and Skills,Transport,230003,Contract Hire,02/02/2022,3963214-5030-JAN22,"3,600.00",TED WILFORD COACHES.
Children and Young Peoples Services,Head of Education and Skills,Transport,230003,Contract Hire,02/02/2022,3963214-5300-JAN22,"3,000.00",TED WILFORD COACHES.
Children and Young Peoples Services,Head of Education and Skills,Transfer Payments,510034,School Children,02/02/2022,3963216-LACPPSPRING21-22,"1,800.00",TELFORD & WREKIN COUNCIL..
Children and Young Peoples Services,Head of Education and Skills,Transfer Payments,510034,School Children,02/02/2022,3963217-LACPPSPRING21-22,600.00,THE DOVE ACADEMY TRUST - ST MARY`S COCKERTON CE PRIMARY SCHOOL.
Children and Young Peoples Services,Head of Education and Skills,Transfer Payments,510034,School Children,02/02/2022,3963218-LACPPSPRING21-22,"1,200.00",THE HARPER BELL 7TH DAY ADVENTIST SCHOOL.
Neighbourhoods and Climate Change,Environmental Services,Supplies and Services,304221,Equipment and Materials,02/02/2022,3963221-NSIN00068936,791.78,THOMAS OWEN & SONS (NEWCASTLE) LTD.
Children and Young Peoples Services,Head of Education and Skills,Transfer Payments,510034,School Children,02/02/2022,3963222-LACPPSPRING21-22,600.00,THORNTREE PRIMARY SCHOOL (GLASGOW).
Neighbourhoods and Climate Change,Partnerships & Community Engagement Div.,Cap Exp on Grants & Other Financial Assistance (REFCUS),918004,Contributions to other bodies 918004,02/02/2022,3963227-VOUCHER21NB-3TWN007,"3,500.00",TOW LAW TOWN AFC.
Children and Young Peoples Services,Head of Education and Skills,Transfer Payments,510034,School Children,02/02/2022,3963235-LACPPSPRING21-22,600.00,TUDHOE LEARNING TRUST T/A SOUTH HETTON PRIMARY SCHOOL.
Children and Young Peoples Services,Head of Education and Skills,Transfer Payments,510034,School Children,02/02/2022,3963236-LACPPSPRING21-22,"1,200.00",TUDHOE LEARNING TRUST T/A TUDHOE COLLIERY PRIMARY SCHOOL.
Children and Young Peoples Services,Head of Education and Skills,Transfer Payments,510034,School Children,02/02/2022,3963238-LACPPSPRING21-22,"1,200.00",TYNE COAST ACADEMY TRUST.
Children and Young Peoples Services,Head of Education and Skills,Transfer Payments,510034,School Children,02/02/2022,3963239-LACPPSPRING21-22,600.00,TYNE COMMUNITY LEARNING TRUST.
Neighbourhoods and Climate Change,Technical Services CM0300,Supplies and Services,304221,Equipment and Materials,02/02/2022,3963240-229888,"1,232.17",TYNEDALE ROADSTONE LTD.
Regeneration Economy and Growth,Corporate Property and Land,Third Party Payments,430100,Rendered by Private Contractors,02/02/2022,3963242-INV-1669,"1,940.00",UK VENTILATION LTD.
Regeneration Economy and Growth,Culture Sport and Tourism,Supplies and Services,338047,Services,02/02/2022,3963243-22314422874-1,"1,031.20",UNIVERSAL PICTURES INTERNATIONAL UK & EIRE LTD.
Children and Young Peoples Services,Head of Education and Skills,Transfer Payments,510034,School Children,02/02/2022,3963245-LACPPSPRING21-22,600.00,VENERABLE BEDE CHURCH OF ENGLAND ACADEMY.
Neighbourhoods and Climate Change,Environmental Services,Transport,210057,Repair and Maintenance of Vehicles,02/02/2022,3963246-33452,"2,048.88",VERSALIFT DISTRIBUTORS (UK) LTD.
Neighbourhoods and Climate Change,Partnerships & Community Engagement Div.,Cap Exp on Grants & Other Financial Assistance (REFCUS),918004,Contributions to other bodies 918004,02/02/2022,3963247-VOUCHER21AB-GAMP011,"17,662.00",VETERANS WOOD CRAFT CIC.
Resources BK0010,Digital and Customer Services,Supplies and Services,342033,Computers and Communications,02/02/2022,3963249-0035,"2,084.00",VIKING PRODUCTIONS LTD.
Children and Young Peoples Services,Head of Education and Skills,Transfer Payments,510034,School Children,02/02/2022,3963250-LACPPSPRING21-22,600.00,VISION ACADEMY LEARNING TRUST T/A WHINSTONE PRIMARY SCHOOL.
Adult and Health Services,Commissioning inc Supporting People,Third Party Payments,442002,Supporting People E442,02/02/2022,3963255-140,"5,500.00",WADDINGTON STREET CENTRE LTD.
Children and Young Peoples Services,Head of Education and Skills,Transfer Payments,510034,School Children,02/02/2022,3963258-LACPPSPRING21-22,600.00,WARWICKSHIRE COUNTY COUNCIL.
Children and Young Peoples Services,Head of Education and Skills,Transport,230008,Contract Hire,02/02/2022,3963260-0003240,"1,987.20",WATSON OF SPENNYMOOR.
Children and Young Peoples Services,Head of Education and Skills,Transport,230008,Contract Hire,02/02/2022,3963260-0003241,"2,271.60",WATSON OF SPENNYMOOR.
Children and Young Peoples Services,Head of Childrens Social Care,Third Party Payments,440046,Other third party payments E440,02/02/2022,3963262-INV-2316,700.00,WE CARE RECRUITMENT SOLUTIONS LTD.
Children and Young Peoples Services,Head of Childrens Social Care,Third Party Payments,440046,Other third party payments E440,02/02/2022,3963262-INV-2517,"1,324.00",WE CARE RECRUITMENT SOLUTIONS LTD.
Children and Young Peoples Services,Head of Childrens Social Care,Third Party Payments,440046,Other third party payments E440,02/02/2022,3963262-INV-2531,"3,464.16",WE CARE RECRUITMENT SOLUTIONS LTD.
Children and Young Peoples Services,Head of Childrens Social Care,Third Party Payments,440046,Other third party payments E440,02/02/2022,3963262-INV-2532,"2,099.60",WE CARE RECRUITMENT SOLUTIONS LTD.
Children and Young Peoples Services,Head of Childrens Social Care,Third Party Payments,440046,Other third party payments E440,02/02/2022,3963262-INV-2537,"3,464.16",WE CARE RECRUITMENT SOLUTIONS LTD.
Children and Young Peoples Services,Head of Childrens Social Care,Third Party Payments,440046,Other third party payments E440,02/02/2022,3963262-INV-2540,"3,464.16",WE CARE RECRUITMENT SOLUTIONS LTD.
Children and Young Peoples Services,Head of Childrens Social Care,Third Party Payments,440046,Other third party payments E440,02/02/2022,3963262-INV-2547,"3,464.16",WE CARE RECRUITMENT SOLUTIONS LTD.
Children and Young Peoples Services,Head of Childrens Social Care,Third Party Payments,440046,Other third party payments E440,02/02/2022,3963262-INV-2554,"3,464.16",WE CARE RECRUITMENT SOLUTIONS LTD.
Children and Young Peoples Services,Head of Childrens Social Care,Third Party Payments,440046,Other third party payments E440,02/02/2022,3963262-INV-2555,"3,464.16",WE CARE RECRUITMENT SOLUTIONS LTD.
Children and Young Peoples Services,Head of Childrens Social Care,Third Party Payments,440046,Other third party payments E440,02/02/2022,3963262-INV-2564,"1,324.00",WE CARE RECRUITMENT SOLUTIONS LTD.
Children and Young Peoples Services,Head of Childrens Social Care,Third Party Payments,440046,Other third party payments E440,02/02/2022,3963262-INV-2584,"4,206.48",WE CARE RECRUITMENT SOLUTIONS LTD.
Children and Young Peoples Services,Head of Childrens Social Care,Third Party Payments,440046,Other third party payments E440,02/02/2022,3963262-INV-2585,"2,082.62",WE CARE RECRUITMENT SOLUTIONS LTD.
Children and Young Peoples Services,Head of Childrens Social Care,Third Party Payments,440046,Other third party payments E440,02/02/2022,3963262-INV-2587,"4,618.88",WE CARE RECRUITMENT SOLUTIONS LTD.
Children and Young Peoples Services,Head of Childrens Social Care,Third Party Payments,486020,Service level agreements E486,02/02/2022,3963262-INV-2365,600.00,WE CARE RECRUITMENT SOLUTIONS LTD.
Children and Young Peoples Services,Head of Education and Skills,Transfer Payments,510034,School Children,02/02/2022,3963264-LACPPSPRING21-22,"1,200.00",WEST PARK ACADEMY.
Children and Young Peoples Services,Head of Education and Skills,Transfer Payments,510034,School Children,02/02/2022,3963265-LACPPSPRING21-22,600.00,WESTGATE HILL PRIMARY ACADEMY.
Neighbourhoods and Climate Change,Technical Services CM0300,Transport,210057,Repair and Maintenance of Vehicles,02/02/2022,3963267-ENQA10322,"5,390.00",WHITES MATERIAL HANDLING LTD.
Children and Young Peoples Services,Head of Education and Skills,Transfer Payments,510034,School Children,02/02/2022,3963268-LACPPSPRING21-22,"3,000.00",WHITWORTH PARK SCHOOL.*
Children and Young Peoples Services,Head of Education and Skills,Transfer Payments,510034,School Children,02/02/2022,3963271-LACPPSPRING21-22,600.00,WITHERSLACK GROUP LTD T/A ASHBROOKE SCHOOL.
Children and Young Peoples Services,Head of Education and Skills,Transfer Payments,510034,School Children,02/02/2022,3963272-LACPPSPRING21-22,800.00,WITHERSLACK GROUP LTD.
Resources BK0010,Finance & Transactional Services,Third Party Payments,440999,Other third party payments E440,02/02/2022,3963273-CAS-01-2022-151,"2,000.00",WOODHOUSE CLOSE CHURCH COMMUNITY CENTRE.
Resources BK0010,Digital and Customer Services,Supplies and Services,304639,Equipment and Materials,02/02/2022,3963275-LA96203,538.30,XMA LTD.
Children and Young Peoples Services,Head of Childrens Social Care,Third Party Payments,425021,Rendered by Voluntary Organisations,02/02/2022,3963278-07758,"21,480.00",YOUNG FOUNDATIONS LTD.
Neighbourhoods and Climate Change,Environmental Services,Transport,215005,Running Costs of Vehicles,02/02/2022,3963279-868740,"2,408.80",YOUR NRG LTD.
Neighbourhoods and Climate Change,Technical Services CM0300,Stock A926,926900,Stock in hand-Inventory system,02/02/2022,3963280-145459317,"3,187.10",ZG LIGHTING (UK) LTD.
Neighbourhoods and Climate Change,Technical Services CM0300,Stock A926,926900,Stock in hand-Inventory system,02/02/2022,3963280-145459321,"1,365.90",ZG LIGHTING (UK) LTD.
Neighbourhoods and Climate Change,Technical Services CM0300,Stock A926,926900,Stock in hand-Inventory system,02/02/2022,3963280-145459322,"2,367.00",ZG LIGHTING (UK) LTD.
Children and Young Peoples Services,Head of Education and Skills,Transport,230008,Contract Hire,03/02/2022,3963700-M003310122,"1,987.17",REDACTED - PAYMENT TO INDIVIDUAL
Children and Young Peoples Services,Head of Education and Skills,Transport,230009,Contract Hire,03/02/2022,3963705-7381-JAN22,"1,691.00",REDACTED - PAYMENT TO INDIVIDUAL
Adult and Health Services,Head of Adults,Transport,230005,Contract Hire,03/02/2022,3963705-SLD011/JAN22,"1,620.00",REDACTED - PAYMENT TO INDIVIDUAL
Children and Young Peoples Services,Head of Education and Skills,Transport,230008,Contract Hire,03/02/2022,3963705-N097-JAN22,"3,044.56",REDACTED - PAYMENT TO INDIVIDUAL
Children and Young Peoples Services,Head of Education and Skills,Transport,230008,Contract Hire,03/02/2022,3963705-E007-JAN22,"1,960.00",REDACTED - PAYMENT TO INDIVIDUAL
Children and Young Peoples Services,Head of Education and Skills,Transport,230008,Contract Hire,03/02/2022,3963705-E014-JAN22,"2,306.00",REDACTED - PAYMENT TO INDIVIDUAL
Children and Young Peoples Services,Head of Education and Skills,Transport,230008,Contract Hire,03/02/2022,3963705-E025-JAN22,"2,428.00",REDACTED - PAYMENT TO INDIVIDUAL
Children and Young Peoples Services,Head of Education and Skills,Transport,230008,Contract Hire,03/02/2022,3963705-E051-JAN22,"2,700.00",REDACTED - PAYMENT TO INDIVIDUAL
Children and Young Peoples Services,Head of Education and Skills,Transport,230008,Contract Hire,03/02/2022,3963705-E061-JAN22,"3,846.40",REDACTED - PAYMENT TO INDIVIDUAL
Children and Young Peoples Services,Head of Education and Skills,Transport,230008,Contract Hire,03/02/2022,3963705-A059-JAN22,"1,428.00",REDACTED - PAYMENT TO INDIVIDUAL
Children and Young Peoples Services,Head of Education and Skills,Transport,230008,Contract Hire,03/02/2022,3963705-A191-JAN22,"4,050.00",REDACTED - PAYMENT TO INDIVIDUAL
Children and Young Peoples Services,Head of Education and Skills,Transport,230008,Contract Hire,03/02/2022,3963705-M066-JAN22,"2,071.00",REDACTED - PAYMENT TO INDIVIDUAL
Children and Young Peoples Services,Head of Education and Skills,Transport,230008,Contract Hire,03/02/2022,3963705-N053-JAN22,"1,344.00",REDACTED - PAYMENT TO INDIVIDUAL
Dedicated Schools Grant BG0015,DSG High Needs Block,Supplies and Services,384199,Miscellaneous Expenses,03/02/2022,3963450-152,"1,062.50",REDACTED - PAYMENT TO INDIVIDUAL
Children and Young Peoples Services,Head of Education and Skills,Transport,230008,Contract Hire,03/02/2022,3963626-INV228,"1,306.50",REDACTED - PAYMENT TO INDIVIDUAL
Adult and Health Services,Central/Other,Creditors,952287,Creditor-DHSC Infection Control Grant,03/02/2022,3963752-INFECTIONCONTROLFUND5-2/26,"6,976.17",REDACTED - PAYMENT TO INDIVIDUAL
Adult and Health Services,Central/Other,Creditors,952288,Creditor-DHSC Rapid Testing Fund Grant,03/02/2022,3963752-RAPIDTESTINGFUND5-2/26,"3,890.68",REDACTED - PAYMENT TO INDIVIDUAL
Adult and Health Services,Central/Other,Creditors,952287,Creditor-DHSC Infection Control Grant,03/02/2022,3963282-INFECTIONCONTROLFUND5-2/9,"7,279.48",A CHARLES THOMAS (CARE) LTD.
Adult and Health Services,Central/Other,Creditors,952288,Creditor-DHSC Rapid Testing Fund Grant,03/02/2022,3963282-RAPIDTESTINGFUND5-2/9,"4,059.84",A CHARLES THOMAS (CARE) LTD.
Adult and Health Services,Central/Other,Creditors,952289,Creditor-DHSC Vaccine Control Fund Grant,03/02/2022,3963282-VACCINEFUND-2/9,502.84,A CHARLES THOMAS (CARE) LTD.
Adult and Health Services,Central/Other,Creditors,952287,Creditor-DHSC Infection Control Grant,03/02/2022,3963284-INFECTIONCONTROLFUND5-2/102,"2,451.68",ACCEPT CARE LTD.
Adult and Health Services,Central/Other,Creditors,952289,Creditor-DHSC Vaccine Control Fund Grant,03/02/2022,3963284-VACCINEFUND-2/102,546.78,ACCEPT CARE LTD.
Adult and Health Services,Head of Adults,Third Party Payments,479151,Purchase of Care,03/02/2022,3963284-RAPIDTESTINGFUND5-2/102,"2,269.12",ACCEPT CARE LTD.
Adult and Health Services,Central/Other,Creditors,952287,Creditor-DHSC Infection Control Grant,03/02/2022,3963285-INFECTIONCONTROLFUND5-2/7,909.93,ACTION FOR CARE LTD.
Adult and Health Services,Central/Other,Creditors,952288,Creditor-DHSC Rapid Testing Fund Grant,03/02/2022,3963285-RAPIDTESTINGFUND5-2/7,507.48,ACTION FOR CARE LTD.
Children and Young Peoples Services,Head of Education and Skills,Transport,230008,Contract Hire,03/02/2022,3963287-01/22,"2,196.00",ADVANCE TRAVEL.
Adult and Health Services,Central/Other,Creditors,952287,Creditor-DHSC Infection Control Grant,03/02/2022,3963289-INFECTIONCONTROLFUND5-2/148,"8,341.08",AKARI CARE LTD.
Adult and Health Services,Central/Other,Creditors,952287,Creditor-DHSC Infection Control Grant,03/02/2022,3963290-INFECTIONCONTROLFUND5-2/147,"8,189.42",AKARI CARE LTD.
Adult and Health Services,Central/Other,Creditors,952288,Creditor-DHSC Rapid Testing Fund Grant,03/02/2022,3963289-RAPIDTESTINGFUND5-2/148,"4,651.90",AKARI CARE LTD.
Adult and Health Services,Central/Other,Creditors,952288,Creditor-DHSC Rapid Testing Fund Grant,03/02/2022,3963290-RAPIDTESTINGFUND5-2/147,"4,567.32",AKARI CARE LTD.
Adult and Health Services,Central/Other,Creditors,952289,Creditor-DHSC Vaccine Control Fund Grant,03/02/2022,3963289-VACCINEFUND-2/148,576.18,AKARI CARE LTD.
Adult and Health Services,Central/Other,Creditors,952289,Creditor-DHSC Vaccine Control Fund Grant,03/02/2022,3963290-VACCINEFUND-2/147,565.70,AKARI CARE LTD.
Dedicated Schools Grant BG0015,DSG Schools Block,Supplies and Services,338075,Services,03/02/2022,3963293-1580,"1,010.25",ALD HAIRDRESSING TRAINING ACADEMY LTD.
Adult and Health Services,Central/Other,Creditors,952287,Creditor-DHSC Infection Control Grant,03/02/2022,3963294-INFECTIONCONTROLFUND5-2/47,"11,374.20",ALLIANCE CARE (TRENDLEWOOD) LTD.
Adult and Health Services,Central/Other,Creditors,952288,Creditor-DHSC Rapid Testing Fund Grant,03/02/2022,3963294-RAPIDTESTINGFUND5-2/47,"6,343.50",ALLIANCE CARE (TRENDLEWOOD) LTD.
Adult and Health Services,Central/Other,Creditors,952289,Creditor-DHSC Vaccine Control Fund Grant,03/02/2022,3963294-VACCINEFUND-2/47,785.70,ALLIANCE CARE (TRENDLEWOOD) LTD.
Adult and Health Services,Central/Other,Creditors,952287,Creditor-DHSC Infection Control Grant,03/02/2022,3963295-INFECTIONCONTROLFUND5-2/2,963.16,ALLIED HEALTH-SERVICES LTD T/A ALLIED HEALTHCARE.
Adult and Health Services,Central/Other,Creditors,952287,Creditor-DHSC Infection Control Grant,03/02/2022,3963297-INFECTIONCONTROLFUND5-2/168,"11,525.85",ANCHOR HANOVER GROUP.
Adult and Health Services,Central/Other,Creditors,952288,Creditor-DHSC Rapid Testing Fund Grant,03/02/2022,3963297-RAPIDTESTINGFUND5-2/168,"6,428.08",ANCHOR HANOVER GROUP.
Neighbourhoods and Climate Change,Technical Services CM0300,Supplies and Services,304358,Equipment and Materials,03/02/2022,3963303-0000036324,"1,662.00",AQUAJET DRAIN CLEANING LTD.
Adult and Health Services,Central/Other,Creditors,952287,Creditor-DHSC Infection Control Grant,03/02/2022,3963304-INFECTIONCONTROLFUND5-2/104,"2,189.00",ARCHIE CARE LTD T/A HOME INSTEAD SENIOR CARE DURHAM.
Adult and Health Services,Head of Adults,Third Party Payments,479151,Purchase of Care,03/02/2022,3963304-RAPIDTESTINGFUND5-2/104,652.80,ARCHIE CARE LTD T/A HOME INSTEAD SENIOR CARE DURHAM.
Neighbourhoods and Climate Change,Environmental Services,Supplies and Services,328041,Clothing uniforms and laundry E328,03/02/2022,3963305-942943498,534.01,ARCO LTD.
Resources BK0010,Finance & Transactional Services,Supplies and Services,332047,Printing Stationery and Gen Off Exps,03/02/2022,3963306-004791,688.80,ASAP STAMPS LTD T/A CUSTOMSTAMPSONLINE.
Adult and Health Services,Central/Other,Creditors,952287,Creditor-DHSC Infection Control Grant,03/02/2022,3963307-INFECTIONCONTROLFUND5-2/32,"6,066.24",ASCOT CARE NORTH EAST LTD..
Adult and Health Services,Central/Other,Creditors,952288,Creditor-DHSC Rapid Testing Fund Grant,03/02/2022,3963307-RAPIDTESTINGFUND5-2/32,"3,383.20",ASCOT CARE NORTH EAST LTD..
Adult and Health Services,Central/Other,Creditors,952287,Creditor-DHSC Infection Control Grant,03/02/2022,3963309-INFECTIONCONTROLFUND5-2/78,"1,213.24",ASPIRE CARE GROUP.
Adult and Health Services,Central/Other,Creditors,952287,Creditor-DHSC Infection Control Grant,03/02/2022,3963310-INFECTIONCONTROLFUND5-2/77,"1,364.90",ASPIRE CARE GROUP.
Adult and Health Services,Central/Other,Creditors,952288,Creditor-DHSC Rapid Testing Fund Grant,03/02/2022,3963309-RAPIDTESTINGFUND5-2/78,676.64,ASPIRE CARE GROUP.
Adult and Health Services,Central/Other,Creditors,952288,Creditor-DHSC Rapid Testing Fund Grant,03/02/2022,3963310-RAPIDTESTINGFUND5-2/77,761.22,ASPIRE CARE GROUP.
Regeneration Economy and Growth,Development and Housing,Intangible Assets,917003,Software capitalised implementation fees,03/02/2022,3963312-220126,976.00,AT CREATIVE LTD.
Adult and Health Services,Central/Other,Creditors,952287,Creditor-DHSC Infection Control Grant,03/02/2022,3963313-INFECTIONCONTROLFUND5-2/103,"1,061.59",AUTISM CARE UK (4) LTD.
Adult and Health Services,Central/Other,Creditors,952288,Creditor-DHSC Rapid Testing Fund Grant,03/02/2022,3963313-RAPIDTESTINGFUND5-2/103,592.06,AUTISM CARE UK (4) LTD.
Adult and Health Services,Central/Other,Creditors,952287,Creditor-DHSC Infection Control Grant,03/02/2022,3963321-INFECTIONCONTROLFUND5-2/35,"3,184.77",BEAMISH RESIDENTIAL CARE HOME LTD.
Adult and Health Services,Central/Other,Creditors,952288,Creditor-DHSC Rapid Testing Fund Grant,03/02/2022,3963321-RAPIDTESTINGFUND5-2/35,"1,776.18",BEAMISH RESIDENTIAL CARE HOME LTD.
Adult and Health Services,Central/Other,Creditors,952287,Creditor-DHSC Infection Control Grant,03/02/2022,3963323-INFECTIONCONTROLFUND5-2/183,525.36,BELLEVIE CARE LTD.
Adult and Health Services,Central/Other,Creditors,952287,Creditor-DHSC Infection Control Grant,03/02/2022,3963324-INFECTIONCONTROLFUND5-2/112,"1,971.52",BENTON CARE SERVICES LTD.
Adult and Health Services,Central/Other,Creditors,952288,Creditor-DHSC Rapid Testing Fund Grant,03/02/2022,3963324-RAPIDTESTINGFUND5-2/112,"1,099.54",BENTON CARE SERVICES LTD.
Regeneration Economy and Growth,Development and Housing,Supplies and Services,384700,Miscellaneous Expenses,03/02/2022,3963325-RED-02-2022-003,"38,677.59",BERNICIA GROUP LTD.*
Regeneration Economy and Growth,Culture Sport and Tourism,Supplies and Services,336005,Advertising E336,03/02/2022,3963328-INV-0831,"3,630.00",BEYOND DIGITAL SOLUTIONS LTD.
Adult and Health Services,Central/Other,Creditors,952287,Creditor-DHSC Infection Control Grant,03/02/2022,3963332-INFECTIONCONTROLFUND5-2/192,788.04,BLOSSOM HOME CARE.
Adult and Health Services,Head of Adults,Third Party Payments,479111,Purchase of Care,03/02/2022,3963333-201988,596.75,BLUE SKY TRUST.
Adult and Health Services,Central/Other,Creditors,952287,Creditor-DHSC Infection Control Grant,03/02/2022,3963334-INFECTIONCONTROLFUND5-2/181,919.38,BLUEBIRD CARE DURHAM NORTH.
Children and Young Peoples Services,Head of Education and Skills,Transport,230034,Contract Hire,03/02/2022,3963335-01JAN22,650.00,BON VOYAGE TAXIS LTD.
Adult and Health Services,Central/Other,Creditors,952287,Creditor-DHSC Infection Control Grant,03/02/2022,3963336-INFECTIONCONTROLFUND5-2/146,919.38,BONDCARE WILLINGTON LTD.
Adult and Health Services,Central/Other,Creditors,952287,Creditor-DHSC Infection Control Grant,03/02/2022,3963337-INFECTIONCONTROLFUND5-2/144,"6,066.24",BONDCARE WILLINGTON LTD.
Adult and Health Services,Central/Other,Creditors,952287,Creditor-DHSC Infection Control Grant,03/02/2022,3963338-INFECTIONCONTROLFUND5-2/143,"7,431.14",BONDCARE WILLINGTON LTD.
Adult and Health Services,Central/Other,Creditors,952287,Creditor-DHSC Infection Control Grant,03/02/2022,3963339-INFECTIONCONTROLFUND5-2/145,"7,431.14",BONDCARE WILLINGTON LTD.
Adult and Health Services,Central/Other,Creditors,952288,Creditor-DHSC Rapid Testing Fund Grant,03/02/2022,3963337-RAPIDTESTINGFUND5-2/144,"3,383.20",BONDCARE WILLINGTON LTD.
Adult and Health Services,Central/Other,Creditors,952288,Creditor-DHSC Rapid Testing Fund Grant,03/02/2022,3963338-RAPIDTESTINGFUND5-2/143,"4,144.42",BONDCARE WILLINGTON LTD.
Adult and Health Services,Central/Other,Creditors,952288,Creditor-DHSC Rapid Testing Fund Grant,03/02/2022,3963339-RAPIDTESTINGFUND5-2/145,"4,144.42",BONDCARE WILLINGTON LTD.
Adult and Health Services,Central/Other,Creditors,952289,Creditor-DHSC Vaccine Control Fund Grant,03/02/2022,3963338-VACCINEFUND-2/143,513.32,BONDCARE WILLINGTON LTD.
Adult and Health Services,Central/Other,Creditors,952289,Creditor-DHSC Vaccine Control Fund Grant,03/02/2022,3963339-VACCINEFUND-2/145,513.32,BONDCARE WILLINGTON LTD.
Adult and Health Services,Head of Adults,Third Party Payments,479151,Purchase of Care,03/02/2022,3963336-RAPIDTESTINGFUND5-2/146,"1,630.14",BONDCARE WILLINGTON LTD.
Children and Young Peoples Services,Head of Education and Skills,Transport,230007,Contract Hire,03/02/2022,3963340-005-4393,720.00,BOWBURN TAXIS.
Children and Young Peoples Services,Head of Education and Skills,Transport,230034,Contract Hire,03/02/2022,3963340-004-2072,"2,146.40",BOWBURN TAXIS.
Children and Young Peoples Services,Head of Education and Skills,Transport,230008,Contract Hire,03/02/2022,3963341-N098JAN22,"2,249.60",BOWES TRAVEL.
Adult and Health Services,Central/Other,Creditors,952287,Creditor-DHSC Infection Control Grant,03/02/2022,3963347-INFECTIONCONTROLFUND5-2/95,"5,156.30",BROOMHOUSE CARE LTD.
Adult and Health Services,Central/Other,Creditors,952288,Creditor-DHSC Rapid Testing Fund Grant,03/02/2022,3963347-RAPIDTESTINGFUND5-2/95,"2,875.72",BROOMHOUSE CARE LTD.
Adult and Health Services,Central/Other,Creditors,952287,Creditor-DHSC Infection Control Grant,03/02/2022,3963354-INFECTIONCONTROLFUND5-2/131,"6,369.55",CARE UK COMMUNITY PARTNERSHIPS LTD.
Adult and Health Services,Central/Other,Creditors,952287,Creditor-DHSC Infection Control Grant,03/02/2022,3963355-INFECTIONCONTROLFUND5-2/134,"10,767.57",CARE UK COMMUNITY PARTNERSHIPS LTD.
Adult and Health Services,Central/Other,Creditors,952287,Creditor-DHSC Infection Control Grant,03/02/2022,3963356-INFECTIONCONTROLFUND5-2/133,"5,611.27",CARE UK COMMUNITY PARTNERSHIPS LTD.
Adult and Health Services,Central/Other,Creditors,952288,Creditor-DHSC Rapid Testing Fund Grant,03/02/2022,3963354-RAPIDTESTINGFUND5-2/131,"3,552.36",CARE UK COMMUNITY PARTNERSHIPS LTD.
Adult and Health Services,Central/Other,Creditors,952288,Creditor-DHSC Rapid Testing Fund Grant,03/02/2022,3963355-RAPIDTESTINGFUND5-2/134,"6,005.18",CARE UK COMMUNITY PARTNERSHIPS LTD.
Adult and Health Services,Central/Other,Creditors,952288,Creditor-DHSC Rapid Testing Fund Grant,03/02/2022,3963356-RAPIDTESTINGFUND5-2/133,"3,129.46",CARE UK COMMUNITY PARTNERSHIPS LTD.
Adult and Health Services,Central/Other,Creditors,952289,Creditor-DHSC Vaccine Control Fund Grant,03/02/2022,3963355-VACCINEFUND-2/134,743.79,CARE UK COMMUNITY PARTNERSHIPS LTD.
Adult and Health Services,Central/Other,Creditors,952287,Creditor-DHSC Infection Control Grant,03/02/2022,3963357-INFECTIONCONTROLFUND5-2/3,700.48,CARE VANTAGE LTD.
Adult and Health Services,Central/Other,Creditors,952287,Creditor-DHSC Infection Control Grant,03/02/2022,3963358-INFECTIONCONTROLFUND5-2/113,"8,189.42",CAREWELL (HEALTH CARE) LTD.
Adult and Health Services,Central/Other,Creditors,952288,Creditor-DHSC Rapid Testing Fund Grant,03/02/2022,3963358-RAPIDTESTINGFUND5-2/113,"4,567.32",CAREWELL (HEALTH CARE) LTD.
Adult and Health Services,Central/Other,Creditors,952289,Creditor-DHSC Vaccine Control Fund Grant,03/02/2022,3963358-VACCINEFUND-2/113,565.70,CAREWELL (HEALTH CARE) LTD.
Children and Young Peoples Services,Head of Childrens Social Care,Third Party Payments,440046,Other third party payments E440,03/02/2022,3963361-21283,"7,096.22",CASTLE VIEW GROUP TRAINING.
Children and Young Peoples Services,Head of Childrens Social Care,Third Party Payments,440046,Other third party payments E440,03/02/2022,3963361-21284,"12,776.05",CASTLE VIEW GROUP TRAINING.
Children and Young Peoples Services,Head of Childrens Social Care,Third Party Payments,440046,Other third party payments E440,03/02/2022,3963361-21322,"6,915.68",CASTLE VIEW GROUP TRAINING.
Children and Young Peoples Services,Head of Childrens Social Care,Third Party Payments,440046,Other third party payments E440,03/02/2022,3963361-21323,"7,352.55",CASTLE VIEW GROUP TRAINING.
Children and Young Peoples Services,Head of Childrens Social Care,Third Party Payments,440046,Other third party payments E440,03/02/2022,3963361-21324,"15,054.94",CASTLE VIEW GROUP TRAINING.
Children and Young Peoples Services,Head of Childrens Social Care,Third Party Payments,440046,Other third party payments E440,03/02/2022,3963361-21361,"9,310.25",CASTLE VIEW GROUP TRAINING.
Children and Young Peoples Services,Head of Childrens Social Care,Third Party Payments,440046,Other third party payments E440,03/02/2022,3963361-21362,"21,970.95",CASTLE VIEW GROUP TRAINING.
Children and Young Peoples Services,Head of Childrens Social Care,Third Party Payments,440046,Other third party payments E440,03/02/2022,3963361-21397,"8,744.00",CASTLE VIEW GROUP TRAINING.
Children and Young Peoples Services,Head of Childrens Social Care,Third Party Payments,440046,Other third party payments E440,03/02/2022,3963361-21398,"11,440.20",CASTLE VIEW GROUP TRAINING.
Children and Young Peoples Services,Head of Childrens Social Care,Third Party Payments,440046,Other third party payments E440,03/02/2022,3963361-21399,"22,779.40",CASTLE VIEW GROUP TRAINING.
Adult and Health Services,Central/Other,Creditors,952287,Creditor-DHSC Infection Control Grant,03/02/2022,3963362-INFECTIONCONTROLFUND5-2/30,"4,246.36",CASTLEBANK CARE HOME LTD.
Adult and Health Services,Central/Other,Creditors,952288,Creditor-DHSC Rapid Testing Fund Grant,03/02/2022,3963362-RAPIDTESTINGFUND5-2/30,"2,368.24",CASTLEBANK CARE HOME LTD.
Regeneration Economy and Growth,Corporate Property and Land,Third Party Payments,430100,Rendered by Private Contractors,03/02/2022,3963363-9016-JAN22,"3,001.04",CATHEDRAL LOCK & SAFE SERVICES LTD.
Adult and Health Services,Central/Other,Creditors,952287,Creditor-DHSC Infection Control Grant,03/02/2022,3963364-INFECTIONCONTROLFUND5-2/171,"2,057.66",CEL HOMECARE LTD.
Adult and Health Services,Head of Adults,Third Party Payments,479151,Purchase of Care,03/02/2022,3963364-RAPIDTESTINGFUND5-2/171,613.63,CEL HOMECARE LTD.
Children and Young Peoples Services,Head of Education and Skills,Transport,230008,Contract Hire,03/02/2022,3963370-SW5JAN22,"2,026.20",CHIPPERS TAXIS.
Regeneration Economy and Growth,Culture Sport and Tourism,Premises,145023,Cleaning and Domestic Supplies,03/02/2022,3963374-CN30144707,"1,581.45",CITRON HYGIENE UK LTD.
Resources BK0010,Finance & Transactional Services,Supplies and Services,304040,Equipment and Materials,03/02/2022,3963377-C/BN233895,"1,997.24",CIVICA UK LTD.
Neighbourhoods and Climate Change,Environmental Services,Supplies and Services,338066,Services,03/02/2022,3963379-RED-02-2022-001,"5,303.00",COAL AUTHORITY.
Children and Young Peoples Services,Head of Education and Skills,Transport,230007,Contract Hire,03/02/2022,3963380-C/11374,"3,564.00",COCHRANES T/A KELVIN TRAVEL.
Children and Young Peoples Services,Head of Education and Skills,Transport,230003,Contract Hire,03/02/2022,3963380-C/11375,"2,560.00",COCHRANES T/A KELVIN TRAVEL.
Children and Young Peoples Services,Head of Education and Skills,Transport,230003,Contract Hire,03/02/2022,3963380-C/11376,"2,960.00",COCHRANES T/A KELVIN TRAVEL.
Children and Young Peoples Services,Head of Education and Skills,Transport,230003,Contract Hire,03/02/2022,3963380-C/11377,"3,760.00",COCHRANES T/A KELVIN TRAVEL.
Children and Young Peoples Services,Head of Education and Skills,Transport,230007,Contract Hire,03/02/2022,3963380-C/11373,"6,764.00",COCHRANES T/A KELVIN TRAVEL.
Adult and Health Services,Central/Other,Creditors,952287,Creditor-DHSC Infection Control Grant,03/02/2022,3963381-INFECTIONCONTROLFUND5-2/116,"9,587.82",COMFORT CALL LTD.
Adult and Health Services,Central/Other,Creditors,952289,Creditor-DHSC Vaccine Control Fund Grant,03/02/2022,3963381-VACCINEFUND-2/116,"2,138.31",COMFORT CALL LTD.
Adult and Health Services,Head of Adults,Third Party Payments,479151,Purchase of Care,03/02/2022,3963381-RAPIDTESTINGFUND5-2/116,"2,859.26",COMFORT CALL LTD.
Adult and Health Services,Central/Other,Creditors,952287,Creditor-DHSC Infection Control Grant,03/02/2022,3963382-INFECTIONCONTROLFUND5-2/191,"8,580.88",COMMUNITY INTEGRATED CARE LTD.
Adult and Health Services,Central/Other,Creditors,952289,Creditor-DHSC Vaccine Control Fund Grant,03/02/2022,3963382-VACCINEFUND-2/191,"1,913.74",COMMUNITY INTEGRATED CARE LTD.
Adult and Health Services,Head of Adults,Third Party Payments,479151,Purchase of Care,03/02/2022,3963382-RAPIDTESTINGFUND5-2/191,"7,941.92",COMMUNITY INTEGRATED CARE LTD.
Children and Young Peoples Services,Head of Education and Skills,Transport,230006,Contract Hire,03/02/2022,3963384-1755,"2,165.43",CONNORS MINI BUSES.*
Children and Young Peoples Services,Head of Education and Skills,Transport,230008,Contract Hire,03/02/2022,3963384-1757,"1,691.00",CONNORS MINI BUSES.*
Children and Young Peoples Services,Head of Education and Skills,Transport,230007,Contract Hire,03/02/2022,3963385-INV010,"1,795.12",CONSETT EXECUTIVE CABS.
Adult and Health Services,Central/Other,Creditors,952287,Creditor-DHSC Infection Control Grant,03/02/2022,3963389-INFECTIONCONTROLFUND5-2/127,"8,189.42",COUNTRYWIDE CARE HOMES (2) LTD.
Adult and Health Services,Central/Other,Creditors,952287,Creditor-DHSC Infection Control Grant,03/02/2022,3963390-INFECTIONCONTROLFUND5-2/128,"11,677.51",COUNTRYWIDE CARE HOMES (2) LTD.
Adult and Health Services,Central/Other,Creditors,952287,Creditor-DHSC Infection Control Grant,03/02/2022,3963391-INFECTIONCONTROLFUND5-2/126,"5,459.61",COUNTRYWIDE CARE HOMES (2) LTD.
Adult and Health Services,Central/Other,Creditors,952288,Creditor-DHSC Rapid Testing Fund Grant,03/02/2022,3963389-RAPIDTESTINGFUND5-2/127,"4,567.32",COUNTRYWIDE CARE HOMES (2) LTD.
Adult and Health Services,Central/Other,Creditors,952288,Creditor-DHSC Rapid Testing Fund Grant,03/02/2022,3963390-RAPIDTESTINGFUND5-2/128,"6,512.66",COUNTRYWIDE CARE HOMES (2) LTD.
Adult and Health Services,Central/Other,Creditors,952288,Creditor-DHSC Rapid Testing Fund Grant,03/02/2022,3963391-RAPIDTESTINGFUND5-2/126,"3,044.88",COUNTRYWIDE CARE HOMES (2) LTD.
Adult and Health Services,Central/Other,Creditors,952289,Creditor-DHSC Vaccine Control Fund Grant,03/02/2022,3963389-VACCINEFUND-2/127,565.70,COUNTRYWIDE CARE HOMES (2) LTD.
Adult and Health Services,Central/Other,Creditors,952289,Creditor-DHSC Vaccine Control Fund Grant,03/02/2022,3963390-VACCINEFUND-2/128,806.65,COUNTRYWIDE CARE HOMES (2) LTD.
Children and Young Peoples Services,Head of Early Help Inclusion & Vulnerable Children.,Supplies and Services,384700,Miscellaneous Expenses,03/02/2022,3963392-WSFS2008,"4,652.00",COUNTY DURHAM FURNITURE HELP SCHEME (CDFHS).
Adult and Health Services,Central/Other,Creditors,952287,Creditor-DHSC Infection Control Grant,03/02/2022,3963395-INFECTIONCONTROLFUND5-2/115,"6,672.86",CRAIGARRAN LTD.
Adult and Health Services,Central/Other,Creditors,952288,Creditor-DHSC Rapid Testing Fund Grant,03/02/2022,3963395-RAPIDTESTINGFUND5-2/115,"3,721.52",CRAIGARRAN LTD.
Adult and Health Services,Central/Other,Creditors,952287,Creditor-DHSC Infection Control Grant,03/02/2022,3963396-INFECTIONCONTROLFUND5-2/42,"7,355.04",CRESCENT HOMECARE LTD.
Adult and Health Services,Central/Other,Creditors,952289,Creditor-DHSC Vaccine Control Fund Grant,03/02/2022,3963396-VACCINEFUND-2/42,"1,640.35",CRESCENT HOMECARE LTD.
Adult and Health Services,Head of Adults,Third Party Payments,479151,Purchase of Care,03/02/2022,3963396-RAPIDTESTINGFUND5-2/42,"2,193.40",CRESCENT HOMECARE LTD.
Children and Young Peoples Services,Head of Education and Skills,Transport,230016,Contract Hire,03/02/2022,3963397-112266,"1,418.88",CROFT BUSINESS SERVICES LTD T/A CROFT TRAVEL.
Children and Young Peoples Services,Head of Education and Skills,Transport,230008,Contract Hire,03/02/2022,3963397-112277,"1,805.76",CROFT BUSINESS SERVICES LTD T/A CROFT TRAVEL.
Children and Young Peoples Services,Head of Education and Skills,Transport,230006,Contract Hire,03/02/2022,3963397-112261,"2,077.02",CROFT BUSINESS SERVICES LTD T/A CROFT TRAVEL.
Children and Young Peoples Services,Head of Education and Skills,Transport,230006,Contract Hire,03/02/2022,3963397-112262,595.52,CROFT BUSINESS SERVICES LTD T/A CROFT TRAVEL.
Children and Young Peoples Services,Head of Education and Skills,Transport,230006,Contract Hire,03/02/2022,3963397-112263,"2,021.28",CROFT BUSINESS SERVICES LTD T/A CROFT TRAVEL.
Children and Young Peoples Services,Head of Education and Skills,Transport,230006,Contract Hire,03/02/2022,3963397-112254,"3,998.28",CROFT BUSINESS SERVICES LTD T/A CROFT TRAVEL.
Children and Young Peoples Services,Head of Education and Skills,Transport,230008,Contract Hire,03/02/2022,3963397-112255,"3,284.58",CROFT BUSINESS SERVICES LTD T/A CROFT TRAVEL.
Children and Young Peoples Services,Head of Education and Skills,Transport,230008,Contract Hire,03/02/2022,3963397-112256,"2,242.50",CROFT BUSINESS SERVICES LTD T/A CROFT TRAVEL.
Adult and Health Services,Central/Other,Creditors,952287,Creditor-DHSC Infection Control Grant,03/02/2022,3963398-INFECTIONCONTROLFUND5-2/73,"9,099.36",CROFT HOUSE (CARE) LTD.
Adult and Health Services,Central/Other,Creditors,952288,Creditor-DHSC Rapid Testing Fund Grant,03/02/2022,3963398-RAPIDTESTINGFUND5-2/73,"5,074.80",CROFT HOUSE (CARE) LTD.
Adult and Health Services,Central/Other,Creditors,952289,Creditor-DHSC Vaccine Control Fund Grant,03/02/2022,3963398-VACCINEFUND-2/73,628.56,CROFT HOUSE (CARE) LTD.
Adult and Health Services,Central/Other,Creditors,952287,Creditor-DHSC Infection Control Grant,03/02/2022,3963399-INFECTIONCONTROLFUND5-2/108,"13,952.35",CROWN CARE VI LTD.
Adult and Health Services,Central/Other,Creditors,952288,Creditor-DHSC Rapid Testing Fund Grant,03/02/2022,3963399-RAPIDTESTINGFUND5-2/108,"7,781.36",CROWN CARE VI LTD.
Adult and Health Services,Central/Other,Creditors,952289,Creditor-DHSC Vaccine Control Fund Grant,03/02/2022,3963399-VACCINEFUND-2/108,963.79,CROWN CARE VI LTD.
Adult and Health Services,Central/Other,Creditors,952287,Creditor-DHSC Infection Control Grant,03/02/2022,3963400-INFECTIONCONTROLFUND5-2/178,"1,516.56",CYGNET OE LTD.
Adult and Health Services,Central/Other,Creditors,952288,Creditor-DHSC Rapid Testing Fund Grant,03/02/2022,3963400-RAPIDTESTINGFUND5-2/178,845.80,CYGNET OE LTD.
Adult and Health Services,Central/Other,Creditors,952287,Creditor-DHSC Infection Control Grant,03/02/2022,3963402-INFECTIONCONTROLFUND5-2/164,"6,066.24",D3 CARE LTD.
Adult and Health Services,Central/Other,Creditors,952287,Creditor-DHSC Infection Control Grant,03/02/2022,3963403-INFECTIONCONTROLFUND5-2/165,"3,033.12",D3 CARE LTD.
Adult and Health Services,Central/Other,Creditors,952288,Creditor-DHSC Rapid Testing Fund Grant,03/02/2022,3963402-RAPIDTESTINGFUND5-2/164,"3,383.20",D3 CARE LTD.
Adult and Health Services,Central/Other,Creditors,952288,Creditor-DHSC Rapid Testing Fund Grant,03/02/2022,3963403-RAPIDTESTINGFUND5-2/165,"1,691.60",D3 CARE LTD.
Children and Young Peoples Services,Head of Education and Skills,Transport,230008,Contract Hire,03/02/2022,3963404-1759,"1,440.00",DA TAXIS.
Children and Young Peoples Services,Head of Education and Skills,Transport,230008,Contract Hire,03/02/2022,3963404-1760,"1,923.48",DA TAXIS.
Children and Young Peoples Services,Head of Education and Skills,Transport,230008,Contract Hire,03/02/2022,3963404-1761,"1,980.00",DA TAXIS.
Children and Young Peoples Services,Head of Education and Skills,Transport,230006,Contract Hire,03/02/2022,3963405-518,810.00,DA TRAVEL.
Children and Young Peoples Services,Head of Education and Skills,Transport,230006,Contract Hire,03/02/2022,3963405-519,"1,400.00",DA TRAVEL.
Children and Young Peoples Services,Head of Education and Skills,Transport,230008,Contract Hire,03/02/2022,3963405-520,"1,288.62",DA TRAVEL.
Children and Young Peoples Services,Head of Education and Skills,Transport,230008,Contract Hire,03/02/2022,3963405-516,"2,563.60",DA TRAVEL.
Children and Young Peoples Services,Head of Education and Skills,Transport,230008,Contract Hire,03/02/2022,3963405-517,"1,700.00",DA TRAVEL.
Adult and Health Services,Central/Other,Creditors,952287,Creditor-DHSC Infection Control Grant,03/02/2022,3963406-INFECTIONCONTROLFUND5-2/11,"42,729.28",DALE CARE LTD.
Adult and Health Services,Central/Other,Creditors,952289,Creditor-DHSC Vaccine Control Fund Grant,03/02/2022,3963406-VACCINEFUND-2/11,"9,529.66",DALE CARE LTD.
Adult and Health Services,Head of Adults,Third Party Payments,479151,Purchase of Care,03/02/2022,3963406-RAPIDTESTINGFUND5-2/11,"12,742.65",DALE CARE LTD.
Adult and Health Services,Central/Other,Creditors,952287,Creditor-DHSC Infection Control Grant,03/02/2022,3963410-INFECTIONCONTROLFUND5-2/107,744.26,DEACONSTAR LTD.
Adult and Health Services,Head of Adults,Third Party Payments,479150,Purchase of Care,03/02/2022,3963410-INFECTIONCONTROLFUND5-2/205,858.76,DEACONSTAR LTD.
Adult and Health Services,Head of Adults,Third Party Payments,479151,Purchase of Care,03/02/2022,3963410-RAPIDTESTINGFUND5-2/107,688.84,DEACONSTAR LTD.
Adult and Health Services,Head of Adults,Third Party Payments,479151,Purchase of Care,03/02/2022,3963410-RAPIDTESTINGFUND5-2/205,739.38,DEACONSTAR LTD.
Adult and Health Services,Central/Other,Creditors,952287,Creditor-DHSC Infection Control Grant,03/02/2022,3963414-INFECTIONCONTROLFUND5-2/12,"3,791.40",DEVONSHIRE HOUSE CARE LTD.
Adult and Health Services,Central/Other,Creditors,952288,Creditor-DHSC Rapid Testing Fund Grant,03/02/2022,3963414-RAPIDTESTINGFUND5-2/12,"2,114.50",DEVONSHIRE HOUSE CARE LTD.
Neighbourhoods and Climate Change,Environmental Services,Supplies and Services,338066,Services,03/02/2022,3963415-INV-0415,"2,400.00",DIGVENTURES LTD.
Adult and Health Services,Central/Other,Creditors,952287,Creditor-DHSC Infection Control Grant,03/02/2022,3963416-INFECTIONCONTROLFUND5-2/173,"4,202.88",DIMENSIONS PERSONALISED SUPPORT LTD.
Adult and Health Services,Central/Other,Creditors,952289,Creditor-DHSC Vaccine Control Fund Grant,03/02/2022,3963416-VACCINEFUND-2/173,937.34,DIMENSIONS PERSONALISED SUPPORT LTD.
Adult and Health Services,Head of Adults,Third Party Payments,479151,Purchase of Care,03/02/2022,3963416-RAPIDTESTINGFUND5-2/173,"1,253.37",DIMENSIONS PERSONALISED SUPPORT LTD.
Adult and Health Services,Central/Other,Creditors,952287,Creditor-DHSC Infection Control Grant,03/02/2022,3963417-INFECTIONCONTROLFUND5-2/170,"10,615.92",DIPTON CARE HOME LTD.
Adult and Health Services,Central/Other,Creditors,952288,Creditor-DHSC Rapid Testing Fund Grant,03/02/2022,3963417-RAPIDTESTINGFUND5-2/170,"5,920.60",DIPTON CARE HOME LTD.
Adult and Health Services,Central/Other,Creditors,952289,Creditor-DHSC Vaccine Control Fund Grant,03/02/2022,3963417-VACCINEFUND-2/170,733.32,DIPTON CARE HOME LTD.
Neighbourhoods and Climate Change,Technical Services CM0300,Intangible Assets,917001,Software capitalised licence fees,03/02/2022,3963421-DRA1575,"11,035.00",DRAKEWELL LTD.
Neighbourhoods and Climate Change,Community Protection,Third Party Payments,430100,Rendered by Private Contractors,03/02/2022,3963422-10011397,"1,414.44",DURHAM & DARLINGTON FIRE & RESCUE.
Adult and Health Services,Central/Other,Creditors,952287,Creditor-DHSC Infection Control Grant,03/02/2022,3963424-INFECTIONCONTROLFUND5-2/91,"6,217.89",DURHAM CARELINE LTD.
Adult and Health Services,Central/Other,Creditors,952287,Creditor-DHSC Infection Control Grant,03/02/2022,3963425-INFECTIONCONTROLFUND5-2/92,"3,488.08",DURHAM CARELINE LTD.
Adult and Health Services,Central/Other,Creditors,952287,Creditor-DHSC Infection Control Grant,03/02/2022,3963426-INFECTIONCONTROLFUND5-2/94,606.62,DURHAM CARELINE LTD.
Adult and Health Services,Central/Other,Creditors,952287,Creditor-DHSC Infection Control Grant,03/02/2022,3963427-INFECTIONCONTROLFUND5-2/90,"7,582.80",DURHAM CARELINE LTD.
Adult and Health Services,Central/Other,Creditors,952288,Creditor-DHSC Rapid Testing Fund Grant,03/02/2022,3963424-RAPIDTESTINGFUND5-2/91,"3,467.78",DURHAM CARELINE LTD.
Adult and Health Services,Central/Other,Creditors,952288,Creditor-DHSC Rapid Testing Fund Grant,03/02/2022,3963425-RAPIDTESTINGFUND5-2/92,"1,945.34",DURHAM CARELINE LTD.
Adult and Health Services,Central/Other,Creditors,952288,Creditor-DHSC Rapid Testing Fund Grant,03/02/2022,3963427-RAPIDTESTINGFUND5-2/90,"4,229.00",DURHAM CARELINE LTD.
Adult and Health Services,Central/Other,Creditors,952289,Creditor-DHSC Vaccine Control Fund Grant,03/02/2022,3963427-VACCINEFUND-2/90,523.80,DURHAM CARELINE LTD.
Children and Young Peoples Services,Head of Education and Skills,Transport,230006,Contract Hire,03/02/2022,3963432-300602022,"2,805.92",EAST DURHAM TAXIS.
Children and Young Peoples Services,Head of Education and Skills,Transport,230008,Contract Hire,03/02/2022,3963432-300602021,"4,385.96",EAST DURHAM TAXIS.
Children and Young Peoples Services,Head of Education and Skills,Transport,230008,Contract Hire,03/02/2022,3963432-300602023,"2,664.18",EAST DURHAM TAXIS.
Children and Young Peoples Services,Head of Education and Skills,Transport,230008,Contract Hire,03/02/2022,3963432-300602024,"2,679.00",EAST DURHAM TAXIS.
Children and Young Peoples Services,Head of Education and Skills,Transport,230008,Contract Hire,03/02/2022,3963432-300602028,"2,360.00",EAST DURHAM TAXIS.
Children and Young Peoples Services,Head of Education and Skills,Transport,230006,Contract Hire,03/02/2022,3963432-300602026,"3,680.00",EAST DURHAM TAXIS.
Children and Young Peoples Services,Head of Education and Skills,Transport,230008,Contract Hire,03/02/2022,3963432-300602027,"3,760.00",EAST DURHAM TAXIS.
Adult and Health Services,Central/Other,Creditors,952287,Creditor-DHSC Infection Control Grant,03/02/2022,3963434-INFECTIONCONTROLFUND5-2/66,788.04,EBONEY HOME CARE LTD.
Adult and Health Services,Head of Adults,Third Party Payments,479150,Purchase of Care,03/02/2022,3963434-INFECTIONCONTROLFUND5-2/208,"1,557.56",EBONEY HOME CARE LTD.
Adult and Health Services,Head of Adults,Third Party Payments,479151,Purchase of Care,03/02/2022,3963434-RAPIDTESTINGFUND5-2/208,"1,341.04",EBONEY HOME CARE LTD.
Dedicated Schools Grant BG0015,Dedicated Schools Grant CG0050,Central Support and Other Recharges,615208,Support Services,03/02/2022,3963435-RES-02-2022-002,717.65,EDEN LEARNING TRUST T/A WOODHAM ACADEMY.
Regeneration Economy and Growth,Corporate Property and Land,Supplies and Services,304221,Equipment and Materials,03/02/2022,3963436-059-294880,782.00,EDMUNDSON ELECTRICAL LTD.
Regeneration Economy and Growth,Corporate Property and Land,Supplies and Services,304221,Equipment and Materials,03/02/2022,3963436-059-295000,695.32,EDMUNDSON ELECTRICAL LTD.
Adult and Health Services,Central/Other,Creditors,952287,Creditor-DHSC Infection Control Grant,03/02/2022,3963438-INFECTIONCONTROLFUND5-2/21,"1,061.59",EDUCATION & SERVICES FOR PEOPLE WITH AUTISM LTD (ESPA).
Adult and Health Services,Central/Other,Creditors,952287,Creditor-DHSC Infection Control Grant,03/02/2022,3963439-INFECTIONCONTROLFUND5-2/22,"1,364.90",EDUCATION & SERVICES FOR PEOPLE WITH AUTISM LTD (ESPA).
Adult and Health Services,Central/Other,Creditors,952287,Creditor-DHSC Infection Control Grant,03/02/2022,3963440-INFECTIONCONTROLFUND5-2/20,"1,213.24",EDUCATION & SERVICES FOR PEOPLE WITH AUTISM LTD (ESPA).
Adult and Health Services,Central/Other,Creditors,952287,Creditor-DHSC Infection Control Grant,03/02/2022,3963441-INFECTIONCONTROLFUND5-2/24,606.62,EDUCATION & SERVICES FOR PEOPLE WITH AUTISM LTD (ESPA).
Adult and Health Services,Central/Other,Creditors,952288,Creditor-DHSC Rapid Testing Fund Grant,03/02/2022,3963438-RAPIDTESTINGFUND5-2/21,592.06,EDUCATION & SERVICES FOR PEOPLE WITH AUTISM LTD (ESPA).
Adult and Health Services,Central/Other,Creditors,952288,Creditor-DHSC Rapid Testing Fund Grant,03/02/2022,3963439-RAPIDTESTINGFUND5-2/22,761.22,EDUCATION & SERVICES FOR PEOPLE WITH AUTISM LTD (ESPA).
Adult and Health Services,Central/Other,Creditors,952288,Creditor-DHSC Rapid Testing Fund Grant,03/02/2022,3963440-RAPIDTESTINGFUND5-2/20,676.64,EDUCATION & SERVICES FOR PEOPLE WITH AUTISM LTD (ESPA).
Adult and Health Services,Central/Other,Creditors,952287,Creditor-DHSC Infection Control Grant,03/02/2022,3963445-INFECTIONCONTROLFUND5-2/84,"6,672.86",ELBA CARE LTD.
Adult and Health Services,Central/Other,Creditors,952288,Creditor-DHSC Rapid Testing Fund Grant,03/02/2022,3963445-RAPIDTESTINGFUND5-2/84,"3,721.52",ELBA CARE LTD.
Adult and Health Services,Central/Other,Creditors,952287,Creditor-DHSC Infection Control Grant,03/02/2022,3963446-INFECTIONCONTROLFUND5-2/25,656.70,ELITE HOMECARE SERVICE LTD.
Children and Young Peoples Services,Head of Childrens Social Care,Third Party Payments,425021,Rendered by Voluntary Organisations,03/02/2022,3963453-1754,"7,542.72",ENHANCED YOUNG PERSONS` CARE LTD.
Children and Young Peoples Services,Head of Childrens Social Care,Third Party Payments,425021,Rendered by Voluntary Organisations,03/02/2022,3963453-1755,"3,299.94",ENHANCED YOUNG PERSONS` CARE LTD.
Children and Young Peoples Services,Head of Childrens Social Care,Third Party Payments,425021,Rendered by Voluntary Organisations,03/02/2022,3963453-1758,"15,615.01",ENHANCED YOUNG PERSONS` CARE LTD.
Children and Young Peoples Services,Head of Childrens Social Care,Third Party Payments,425021,Rendered by Voluntary Organisations,03/02/2022,3963453-1759,"13,285.67",ENHANCED YOUNG PERSONS` CARE LTD.
Dedicated Schools Grant BG0015,DSG Schools Block,Supplies and Services,338075,Services,03/02/2022,3963454-284,"3,800.00",ENTERPRISE EDUCATION (NORTH EAST).
Neighbourhoods and Climate Change,Environmental Services,Supplies and Services,304221,Equipment and Materials,03/02/2022,3963456-6907415,"12,888.00",ESE WORLD LTD.
Adult and Health Services,Central/Other,Creditors,952287,Creditor-DHSC Infection Control Grant,03/02/2022,3963457-INFECTIONCONTROLFUND5-2/161,"6,369.55",ESSENTIAL CARE & SUPPORT LTD.
Adult and Health Services,Central/Other,Creditors,952287,Creditor-DHSC Infection Control Grant,03/02/2022,3963458-INFECTIONCONTROLFUND5-2/45,"4,903.36",ESSENTIAL CARE & SUPPORT LTD.
Adult and Health Services,Central/Other,Creditors,952288,Creditor-DHSC Rapid Testing Fund Grant,03/02/2022,3963457-RAPIDTESTINGFUND5-2/161,"3,552.36",ESSENTIAL CARE & SUPPORT LTD.
Adult and Health Services,Central/Other,Creditors,952289,Creditor-DHSC Vaccine Control Fund Grant,03/02/2022,3963458-VACCINEFUND-2/45,"1,093.56",ESSENTIAL CARE & SUPPORT LTD.
Adult and Health Services,Head of Adults,Third Party Payments,479151,Purchase of Care,03/02/2022,3963458-RAPIDTESTINGFUND5-2/45,"4,538.24",ESSENTIAL CARE & SUPPORT LTD.
Adult and Health Services,Head of Adults,Third Party Payments,479150,Purchase of Care,03/02/2022,3963459-INFECTIONCONTROLFUND5-2/210,982.59,ETHICARE (DURHAM) LTD.
Adult and Health Services,Head of Adults,Third Party Payments,479151,Purchase of Care,03/02/2022,3963459-RAPIDTESTINGFUND5-2/210,846.00,ETHICARE (DURHAM) LTD.
Children and Young Peoples Services,Head of Childrens Social Care,Supplies and Services,338044,Services,03/02/2022,3963463-NE21C50170,"1,446.97",FAMILY PSYCHOLOGY UK LTD.
Children and Young Peoples Services,Head of Education and Skills,Transport,230008,Contract Hire,03/02/2022,3963469-1555,"1,656.00",FMR SILVA PITA.
Children and Young Peoples Services,Head of Education and Skills,Transport,230009,Contract Hire,03/02/2022,3963469-1557,855.00,FMR SILVA PITA.
Children and Young Peoples Services,Head of Education and Skills,Transport,230006,Contract Hire,03/02/2022,3963469-1558,757.04,FMR SILVA PITA.
Children and Young Peoples Services,Head of Education and Skills,Transport,230009,Contract Hire,03/02/2022,3963469-1556,"1,013.84",FMR SILVA PITA.
Adult and Health Services,Central/Other,Creditors,952287,Creditor-DHSC Infection Control Grant,03/02/2022,3963470-INFECTIONCONTROLFUND5-2/129,"9,099.36",FOUR SEASONS (NO 9) LTD.
Adult and Health Services,Central/Other,Creditors,952288,Creditor-DHSC Rapid Testing Fund Grant,03/02/2022,3963470-RAPIDTESTINGFUND5-2/129,"5,074.80",FOUR SEASONS (NO 9) LTD.
Adult and Health Services,Central/Other,Creditors,952289,Creditor-DHSC Vaccine Control Fund Grant,03/02/2022,3963470-VACCINEFUND-2/129,628.56,FOUR SEASONS (NO 9) LTD.
Adult and Health Services,Central/Other,Creditors,952287,Creditor-DHSC Infection Control Grant,03/02/2022,3963471-INFECTIONCONTROLFUND5-2/10,"7,582.80",FOUR SEASONS HOMES NO 1 LTD.
Adult and Health Services,Central/Other,Creditors,952288,Creditor-DHSC Rapid Testing Fund Grant,03/02/2022,3963471-RAPIDTESTINGFUND5-2/10,"4,229.00",FOUR SEASONS HOMES NO 1 LTD.
Adult and Health Services,Central/Other,Creditors,952289,Creditor-DHSC Vaccine Control Fund Grant,03/02/2022,3963471-VACCINEFUND-2/10,523.80,FOUR SEASONS HOMES NO 1 LTD.
Children and Young Peoples Services,Head of Childrens Social Care,Supplies and Services,338028,Services,03/02/2022,3963474-UKCSTDUR011,"3,284.06",FRONTLINE SECURITY 247 LTD.
Children and Young Peoples Services,Head of Childrens Social Care,Supplies and Services,384500,Miscellaneous Expenses,03/02/2022,3963475-2537,"2,695.00",FUTURE STEPS CONSULTANCY SERVICE LTD.
Adult and Health Services,Central/Other,Creditors,952287,Creditor-DHSC Infection Control Grant,03/02/2022,3963477-INFECTIONCONTROLFUND5-2/57,"9,402.67",GAINFORD CARE HOMES LTD.
Adult and Health Services,Central/Other,Creditors,952287,Creditor-DHSC Infection Control Grant,03/02/2022,3963478-INFECTIONCONTROLFUND5-2/117,"9,554.32",GAINFORD CARE HOMES LTD.
Adult and Health Services,Central/Other,Creditors,952287,Creditor-DHSC Infection Control Grant,03/02/2022,3963479-INFECTIONCONTROLFUND5-2/58,"8,492.73",GAINFORD CARE HOMES LTD.
Adult and Health Services,Central/Other,Creditors,952287,Creditor-DHSC Infection Control Grant,03/02/2022,3963480-INFECTIONCONTROLFUND5-2/54,"8,492.73",GAINFORD CARE HOMES LTD.
Adult and Health Services,Central/Other,Creditors,952287,Creditor-DHSC Infection Control Grant,03/02/2022,3963480-INFECTIONCONTROLFUND5-2/55,"4,549.68",GAINFORD CARE HOMES LTD.
Adult and Health Services,Central/Other,Creditors,952287,Creditor-DHSC Infection Control Grant,03/02/2022,3963481-INFECTIONCONTROLFUND5-2/56,"8,644.39",GAINFORD CARE HOMES LTD.
Adult and Health Services,Central/Other,Creditors,952288,Creditor-DHSC Rapid Testing Fund Grant,03/02/2022,3963477-RAPIDTESTINGFUND5-2/57,"5,243.96",GAINFORD CARE HOMES LTD.
Adult and Health Services,Central/Other,Creditors,952288,Creditor-DHSC Rapid Testing Fund Grant,03/02/2022,3963478-RAPIDTESTINGFUND5-2/117,"5,328.54",GAINFORD CARE HOMES LTD.
Adult and Health Services,Central/Other,Creditors,952288,Creditor-DHSC Rapid Testing Fund Grant,03/02/2022,3963479-RAPIDTESTINGFUND5-2/58,"4,736.48",GAINFORD CARE HOMES LTD.
Adult and Health Services,Central/Other,Creditors,952288,Creditor-DHSC Rapid Testing Fund Grant,03/02/2022,3963480-RAPIDTESTINGFUND5-2/54,"4,736.48",GAINFORD CARE HOMES LTD.
Adult and Health Services,Central/Other,Creditors,952288,Creditor-DHSC Rapid Testing Fund Grant,03/02/2022,3963480-RAPIDTESTINGFUND5-2/55,"2,537.40",GAINFORD CARE HOMES LTD.
Adult and Health Services,Central/Other,Creditors,952288,Creditor-DHSC Rapid Testing Fund Grant,03/02/2022,3963481-RAPIDTESTINGFUND5-2/56,"4,821.06",GAINFORD CARE HOMES LTD.
Adult and Health Services,Central/Other,Creditors,952289,Creditor-DHSC Vaccine Control Fund Grant,03/02/2022,3963477-VACCINEFUND-2/57,649.51,GAINFORD CARE HOMES LTD.
Adult and Health Services,Central/Other,Creditors,952289,Creditor-DHSC Vaccine Control Fund Grant,03/02/2022,3963478-VACCINEFUND-2/117,659.98,GAINFORD CARE HOMES LTD.
Adult and Health Services,Central/Other,Creditors,952289,Creditor-DHSC Vaccine Control Fund Grant,03/02/2022,3963479-VACCINEFUND-2/58,586.65,GAINFORD CARE HOMES LTD.
Adult and Health Services,Central/Other,Creditors,952289,Creditor-DHSC Vaccine Control Fund Grant,03/02/2022,3963480-VACCINEFUND-2/54,586.65,GAINFORD CARE HOMES LTD.
Adult and Health Services,Central/Other,Creditors,952289,Creditor-DHSC Vaccine Control Fund Grant,03/02/2022,3963481-VACCINEFUND-2/56,597.13,GAINFORD CARE HOMES LTD.
Adult and Health Services,Head of Adults,Third Party Payments,479150,Purchase of Care,03/02/2022,3963482-INFECTIONCONTROLFUND5-2/211,"2,629.06",GAPPS DAY SERVICES LTD.
Adult and Health Services,Head of Adults,Third Party Payments,479151,Purchase of Care,03/02/2022,3963482-RAPIDTESTINGFUND5-2/211,"2,263.58",GAPPS DAY SERVICES LTD.
Children and Young Peoples Services,Head of Education and Skills,Transport,230007,Contract Hire,03/02/2022,3963484-23288,"11,324.00",GARNETTS LTD (COACHES).
Neighbourhoods and Climate Change,Technical Services CM0300,Stock A926,926900,Stock in hand-Inventory system,03/02/2022,3963488-SI832078,884.40,GLASDON UK LTD.
Neighbourhoods and Climate Change,Technical Services CM0300,Stock A926,926900,Stock in hand-Inventory system,03/02/2022,3963488-SI832457,"1,474.00",GLASDON UK LTD.
Neighbourhoods and Climate Change,Technical Services CM0300,Stock A926,926900,Stock in hand-Inventory system,03/02/2022,3963493-06/158043,758.58,GREENHAM TRADING LTD.
Neighbourhoods and Climate Change,Technical Services CM0300,Stock A926,926900,Stock in hand-Inventory system,03/02/2022,3963493-06/158908,695.60,GREENHAM TRADING LTD.
Adult and Health Services,Head of Adults,Third Party Payments,479150,Purchase of Care,03/02/2022,3963494-INFECTIONCONTROLFUND5-2/212,574.41,GROWING TOGETHER DURHAM LTD.
Neighbourhoods and Climate Change,Environmental Services,Vehicles Equipment Furniture and Fittings,912529,Purchase-equipment,03/02/2022,3963495-080528,"22,999.00",HAGS-SMP LTD.
Adult and Health Services,Head of Adults,Third Party Payments,479150,Purchase of Care,03/02/2022,3963497-INFECTIONCONTROLFUND5-2/213,575.54,HASWELL & DISTRICT MENCAP SOCIETY.
Adult and Health Services,Central/Other,Creditors,952287,Creditor-DHSC Infection Control Grant,03/02/2022,3963499-INFECTIONCONTROLFUND5-2/149,"8,644.39",HC-ONE BEAMISH LTD.
Adult and Health Services,Central/Other,Creditors,952287,Creditor-DHSC Infection Control Grant,03/02/2022,3963500-INFECTIONCONTROLFUND5-2/105,"7,734.45",HC-ONE BEAMISH LTD.
Adult and Health Services,Central/Other,Creditors,952287,Creditor-DHSC Infection Control Grant,03/02/2022,3963501-INFECTIONCONTROLFUND5-2/19,"13,194.07",HC-ONE BEAMISH LTD.
Adult and Health Services,Central/Other,Creditors,952287,Creditor-DHSC Infection Control Grant,03/02/2022,3963502-INFECTIONCONTROLFUND5-2/125,"8,796.04",HC-ONE BEAMISH LTD.
Adult and Health Services,Central/Other,Creditors,952287,Creditor-DHSC Infection Control Grant,03/02/2022,3963503-INFECTIONCONTROLFUND5-2/193,"8,037.76",HC-ONE BEAMISH LTD.
Adult and Health Services,Central/Other,Creditors,952288,Creditor-DHSC Rapid Testing Fund Grant,03/02/2022,3963499-RAPIDTESTINGFUND5-2/149,"4,821.06",HC-ONE BEAMISH LTD.
Adult and Health Services,Central/Other,Creditors,952288,Creditor-DHSC Rapid Testing Fund Grant,03/02/2022,3963500-RAPIDTESTINGFUND5-2/105,"4,313.58",HC-ONE BEAMISH LTD.
Adult and Health Services,Central/Other,Creditors,952288,Creditor-DHSC Rapid Testing Fund Grant,03/02/2022,3963501-RAPIDTESTINGFUND5-2/19,"7,358.46",HC-ONE BEAMISH LTD.
Adult and Health Services,Central/Other,Creditors,952288,Creditor-DHSC Rapid Testing Fund Grant,03/02/2022,3963502-RAPIDTESTINGFUND5-2/125,"4,905.64",HC-ONE BEAMISH LTD.
Adult and Health Services,Central/Other,Creditors,952288,Creditor-DHSC Rapid Testing Fund Grant,03/02/2022,3963503-RAPIDTESTINGFUND5-2/193,"4,482.74",HC-ONE BEAMISH LTD.
Adult and Health Services,Central/Other,Creditors,952289,Creditor-DHSC Vaccine Control Fund Grant,03/02/2022,3963499-VACCINEFUND-2/149,597.13,HC-ONE BEAMISH LTD.
Adult and Health Services,Central/Other,Creditors,952289,Creditor-DHSC Vaccine Control Fund Grant,03/02/2022,3963500-VACCINEFUND-2/105,534.27,HC-ONE BEAMISH LTD.
Adult and Health Services,Central/Other,Creditors,952289,Creditor-DHSC Vaccine Control Fund Grant,03/02/2022,3963501-VACCINEFUND-2/19,911.41,HC-ONE BEAMISH LTD.
Adult and Health Services,Central/Other,Creditors,952289,Creditor-DHSC Vaccine Control Fund Grant,03/02/2022,3963502-VACCINEFUND-2/125,607.60,HC-ONE BEAMISH LTD.
Adult and Health Services,Central/Other,Creditors,952289,Creditor-DHSC Vaccine Control Fund Grant,03/02/2022,3963503-VACCINEFUND-2/193,555.22,HC-ONE BEAMISH LTD.
Adult and Health Services,Central/Other,Creditors,952287,Creditor-DHSC Infection Control Grant,03/02/2022,3963504-INFECTIONCONTROLFUND5-2/139,"6,066.24",HC-ONE LTD.
Adult and Health Services,Central/Other,Creditors,952287,Creditor-DHSC Infection Control Grant,03/02/2022,3963505-INFECTIONCONTROLFUND5-2/137,"9,099.36",HC-ONE LTD.
Adult and Health Services,Central/Other,Creditors,952287,Creditor-DHSC Infection Control Grant,03/02/2022,3963506-INFECTIONCONTROLFUND5-2/138,"5,459.61",HC-ONE LTD.
Adult and Health Services,Central/Other,Creditors,952287,Creditor-DHSC Infection Control Grant,03/02/2022,3963507-INFECTIONCONTROLFUND5-2/136,"7,279.48",HC-ONE LTD.
Adult and Health Services,Central/Other,Creditors,952287,Creditor-DHSC Infection Control Grant,03/02/2022,3963508-INFECTIONCONTROLFUND5-2/135,"6,521.20",HC-ONE LTD.
Adult and Health Services,Central/Other,Creditors,952287,Creditor-DHSC Infection Control Grant,03/02/2022,3963509-INFECTIONCONTROLFUND5-2/132,"4,852.99",HC-ONE LTD.
Adult and Health Services,Central/Other,Creditors,952287,Creditor-DHSC Infection Control Grant,03/02/2022,3963510-INFECTIONCONTROLFUND5-2/141,"7,734.45",HC-ONE LTD.
Adult and Health Services,Central/Other,Creditors,952287,Creditor-DHSC Infection Control Grant,03/02/2022,3963511-INFECTIONCONTROLFUND5-2/140,"6,217.89",HC-ONE LTD.
Adult and Health Services,Central/Other,Creditors,952288,Creditor-DHSC Rapid Testing Fund Grant,03/02/2022,3963504-RAPIDTESTINGFUND5-2/139,"3,383.20",HC-ONE LTD.
Adult and Health Services,Central/Other,Creditors,952288,Creditor-DHSC Rapid Testing Fund Grant,03/02/2022,3963505-RAPIDTESTINGFUND5-2/137,"5,074.80",HC-ONE LTD.
Adult and Health Services,Central/Other,Creditors,952288,Creditor-DHSC Rapid Testing Fund Grant,03/02/2022,3963506-RAPIDTESTINGFUND5-2/138,"3,044.88",HC-ONE LTD.
Adult and Health Services,Central/Other,Creditors,952288,Creditor-DHSC Rapid Testing Fund Grant,03/02/2022,3963507-RAPIDTESTINGFUND5-2/136,"4,059.84",HC-ONE LTD.
Adult and Health Services,Central/Other,Creditors,952288,Creditor-DHSC Rapid Testing Fund Grant,03/02/2022,3963508-RAPIDTESTINGFUND5-2/135,"3,636.94",HC-ONE LTD.
Adult and Health Services,Central/Other,Creditors,952288,Creditor-DHSC Rapid Testing Fund Grant,03/02/2022,3963509-RAPIDTESTINGFUND5-2/132,"2,706.56",HC-ONE LTD.
Adult and Health Services,Central/Other,Creditors,952288,Creditor-DHSC Rapid Testing Fund Grant,03/02/2022,3963510-RAPIDTESTINGFUND5-2/141,"4,313.58",HC-ONE LTD.
Adult and Health Services,Central/Other,Creditors,952288,Creditor-DHSC Rapid Testing Fund Grant,03/02/2022,3963511-RAPIDTESTINGFUND5-2/140,"3,467.78",HC-ONE LTD.
Adult and Health Services,Central/Other,Creditors,952289,Creditor-DHSC Vaccine Control Fund Grant,03/02/2022,3963505-VACCINEFUND-2/137,628.56,HC-ONE LTD.
Adult and Health Services,Central/Other,Creditors,952289,Creditor-DHSC Vaccine Control Fund Grant,03/02/2022,3963507-VACCINEFUND-2/136,502.84,HC-ONE LTD.
Adult and Health Services,Central/Other,Creditors,952289,Creditor-DHSC Vaccine Control Fund Grant,03/02/2022,3963510-VACCINEFUND-2/141,534.27,HC-ONE LTD.
Neighbourhoods and Climate Change,Technical Services CM0300,Supplies and Services,304358,Equipment and Materials,03/02/2022,3963515-64833,"2,027.00",HF COLTON PLANT HIRE LTD.*
Adult and Health Services,Central/Other,Creditors,952287,Creditor-DHSC Infection Control Grant,03/02/2022,3963516-INFECTIONCONTROLFUND5-2/106,"3,371.06",HIGHLEA CARE LTD.
Adult and Health Services,Central/Other,Creditors,952289,Creditor-DHSC Vaccine Control Fund Grant,03/02/2022,3963516-VACCINEFUND-2/106,751.82,HIGHLEA CARE LTD.
Adult and Health Services,Head of Adults,Third Party Payments,479151,Purchase of Care,03/02/2022,3963516-RAPIDTESTINGFUND5-2/106,"3,120.04",HIGHLEA CARE LTD.
Adult and Health Services,Head of Adults,Third Party Payments,478151,Purchase of Care,03/02/2022,3963516-HLC586,"2,949.43",HIGHLEA CARE LTD.
Adult and Health Services,Head of Adults,Third Party Payments,478151,Purchase of Care,03/02/2022,3963516-HLC587,"2,178.86",HIGHLEA CARE LTD.
Adult and Health Services,Head of Adults,Third Party Payments,478151,Purchase of Care,03/02/2022,3963516-HLC588,"4,873.82",HIGHLEA CARE LTD.
Adult and Health Services,Head of Adults,Third Party Payments,478151,Purchase of Care,03/02/2022,3963516-HLC589,"2,845.80",HIGHLEA CARE LTD.
Neighbourhoods and Climate Change,Technical Services CM0300,Third Party Payments,430100,Rendered by Private Contractors,03/02/2022,3963517-3441,"5,610.00",HIGHWAY CONSTRUCTION SERVICES LTD.
Adult and Health Services,Central/Other,Creditors,952287,Creditor-DHSC Infection Control Grant,03/02/2022,3963519-INFECTIONCONTROLFUND5-2/152,"7,582.80",HILL CARE 3 LTD.
Adult and Health Services,Central/Other,Creditors,952287,Creditor-DHSC Infection Control Grant,03/02/2022,3963520-INFECTIONCONTROLFUND5-2/151,"7,127.83",HILL CARE 3 LTD.
Adult and Health Services,Central/Other,Creditors,952288,Creditor-DHSC Rapid Testing Fund Grant,03/02/2022,3963519-RAPIDTESTINGFUND5-2/152,"4,229.00",HILL CARE 3 LTD.
Adult and Health Services,Central/Other,Creditors,952288,Creditor-DHSC Rapid Testing Fund Grant,03/02/2022,3963520-RAPIDTESTINGFUND5-2/151,"3,975.26",HILL CARE 3 LTD.
Adult and Health Services,Central/Other,Creditors,952289,Creditor-DHSC Vaccine Control Fund Grant,03/02/2022,3963519-VACCINEFUND-2/152,523.80,HILL CARE 3 LTD.
Children and Young Peoples Services,Head of Childrens Social Care,Third Party Payments,440038,Other third party payments E440,03/02/2022,3963522-68617109,"1,129.72",HOME GROUP LTD FORMERLY STONHAM HOUSING ASSOCIATION LTD.
Children and Young Peoples Services,Head of Childrens Social Care,Third Party Payments,440038,Other third party payments E440,03/02/2022,3963522-68617110,"1,129.72",HOME GROUP LTD FORMERLY STONHAM HOUSING ASSOCIATION LTD.
Children and Young Peoples Services,Head of Childrens Social Care,Third Party Payments,440038,Other third party payments E440,03/02/2022,3963522-686172108,"1,129.72",HOME GROUP LTD FORMERLY STONHAM HOUSING ASSOCIATION LTD.
Children and Young Peoples Services,Head of Childrens Social Care,Third Party Payments,440038,Other third party payments E440,03/02/2022,3963522-686172109,"1,129.72",HOME GROUP LTD FORMERLY STONHAM HOUSING ASSOCIATION LTD.
Dedicated Schools Grant BG0015,DSG High Needs Block,Central Support and Other Recharges,689996,Unclassified E690,03/02/2022,3963525-CAS-02-2022-002,"117,942.00",HOPE WOOD ACADEMY.
Dedicated Schools Grant BG0015,DSG High Needs Block,Central Support and Other Recharges,689996,Unclassified E690,03/02/2022,3963525-CAS-02-2022-003,"40,000.00",HOPE WOOD ACADEMY.
Regeneration Economy and Growth,Culture Sport and Tourism,Supplies and Services,304259,Equipment and Materials,03/02/2022,3963529-20392,"1,978.00",HUSSEY SEATWAY LTD.
Regeneration Economy and Growth,Culture Sport and Tourism,Supplies and Services,304259,Equipment and Materials,03/02/2022,3963529-20411,"1,499.00",HUSSEY SEATWAY LTD.
Neighbourhoods and Climate Change,Technical Services CM0300,Stock A926,926900,Stock in hand-Inventory system,03/02/2022,3963530-157431,"3,987.50",HYDRAM ENGINEERING LTD.
Adult and Health Services,Head of Adults,Transport,230005,Contract Hire,03/02/2022,3963531-1033,"1,900.00",I & R EXECUTIVE TRAVEL.
Children and Young Peoples Services,Head of Education and Skills,Transport,230008,Contract Hire,03/02/2022,3963531-1031,"2,532.00",I & R EXECUTIVE TRAVEL.
Children and Young Peoples Services,Head of Education and Skills,Transport,230008,Contract Hire,03/02/2022,3963531-1032,"1,978.40",I & R EXECUTIVE TRAVEL.
Neighbourhoods and Climate Change,Environmental Services,Supplies and Services,304221,Equipment and Materials,03/02/2022,3963533-8274,890.00,IBA FABRICATIONS LTD.
Adult and Health Services,Central/Other,Creditors,952287,Creditor-DHSC Infection Control Grant,03/02/2022,3963534-INFECTIONCONTROLFUND5-2/89,"9,402.67",IDEAL CARE (NORTH) LTD.
Adult and Health Services,Central/Other,Creditors,952288,Creditor-DHSC Rapid Testing Fund Grant,03/02/2022,3963534-RAPIDTESTINGFUND5-2/89,"5,243.96",IDEAL CARE (NORTH) LTD.
Adult and Health Services,Central/Other,Creditors,952289,Creditor-DHSC Vaccine Control Fund Grant,03/02/2022,3963534-VACCINEFUND-2/89,649.51,IDEAL CARE (NORTH) LTD.
Resources BK0010,Digital and Customer Services,Supplies and Services,304303,Equipment and Materials,03/02/2022,3963536-2100108797-22,"3,876.50",INSIGHT DIRECT (UK) LTD.
Adult and Health Services,Central/Other,Creditors,952287,Creditor-DHSC Infection Control Grant,03/02/2022,3963537-INFECTIONCONTROLFUND5-2/97,758.28,INTERACT CARE LTD.
Children and Young Peoples Services,Head of Early Help Inclusion & Vulnerable Children.,Supplies and Services,384700,Miscellaneous Expenses,03/02/2022,3963543-B02491,500.00,J & D CARPETS T/A THE FLOORING STORE.
Regeneration Economy and Growth,Corporate Property and Land,Construction work A908,908105,Construction work,03/02/2022,3963558-DEMOLITION-SPENNYMOOR,"36,385.00",JOHN WADE (HAULAGE) LTD.
Adult and Health Services,Head of Adults,Third Party Payments,479150,Purchase of Care,03/02/2022,3963560-INFECTIONCONTROLFUND5-2/226,766.84,JOURNEY ENTERPRISES LTD.
Adult and Health Services,Head of Adults,Third Party Payments,479151,Purchase of Care,03/02/2022,3963560-RAPIDTESTINGFUND5-2/226,660.24,JOURNEY ENTERPRISES LTD.
Children and Young Peoples Services,Head of Education and Skills,Transport,230008,Contract Hire,03/02/2022,3963561-M00944,"1,714.70",JOVIAL PRIVATE HIRE.
Children and Young Peoples Services,Head of Education and Skills,Transport,230008,Contract Hire,03/02/2022,3963561-M01545,"2,640.05",JOVIAL PRIVATE HIRE.
Children and Young Peoples Services,Head of Education and Skills,Transport,230008,Contract Hire,03/02/2022,3963561-M01605,"1,330.00",JOVIAL PRIVATE HIRE.
Children and Young Peoples Services,Head of Education and Skills,Transport,230008,Contract Hire,03/02/2022,3963561-M01744,886.73,JOVIAL PRIVATE HIRE.
Neighbourhoods and Climate Change,Environmental Services,Supplies and Services,304221,Equipment and Materials,03/02/2022,3963564-0123/00564039,518.40,JT DOVE LTD.
Children and Young Peoples Services,Head of Education and Skills,Transport,230012,Contract Hire,03/02/2022,3963565-1232,"3,192.00",K & R TAXIS (STANLEY).
Children and Young Peoples Services,Head of Education and Skills,Transport,230012,Contract Hire,03/02/2022,3963565-1234,"3,306.00",K & R TAXIS (STANLEY).
Children and Young Peoples Services,Head of Education and Skills,Transport,230008,Contract Hire,03/02/2022,3963565-1240,"3,833.50",K & R TAXIS (STANLEY).
Children and Young Peoples Services,Head of Education and Skills,Transport,230008,Contract Hire,03/02/2022,3963565-1237,"3,211.00",K & R TAXIS (STANLEY).
Children and Young Peoples Services,Head of Education and Skills,Transport,230008,Contract Hire,03/02/2022,3963565-1233,"2,736.00",K & R TAXIS (STANLEY).
Children and Young Peoples Services,Head of Education and Skills,Transport,230008,Contract Hire,03/02/2022,3963565-1235,"3,026.70",K & R TAXIS (STANLEY).
Children and Young Peoples Services,Head of Education and Skills,Transport,230008,Contract Hire,03/02/2022,3963565-1236,"2,736.00",K & R TAXIS (STANLEY).
Children and Young Peoples Services,Head of Education and Skills,Transport,230008,Contract Hire,03/02/2022,3963565-1239,"3,724.00",K & R TAXIS (STANLEY).
Children and Young Peoples Services,Head of Education and Skills,Transport,230008,Contract Hire,03/02/2022,3963565-1238,"3,450.00",K & R TAXIS (STANLEY).
Neighbourhoods and Climate Change,Technical Services CM0300,Third Party Payments,430128,Rendered by Private Contractors,03/02/2022,3963566-SI-30,591.00,K & W HALL.
Regeneration Economy and Growth,Development and Housing,Supplies and Services,384700,Miscellaneous Expenses,03/02/2022,3963568-RED-02-2022-006,"35,561.64",KARBON HOMES LTD FORMERLY CESTRIA HOUSING ASSOCIATION LTD.
Regeneration Economy and Growth,Development and Housing,Supplies and Services,384700,Miscellaneous Expenses,03/02/2022,3963568-RED-02-2022-007,"26,690.47",KARBON HOMES LTD FORMERLY CESTRIA HOUSING ASSOCIATION LTD.
Adult and Health Services,Central/Other,Creditors,952287,Creditor-DHSC Infection Control Grant,03/02/2022,3963571-INFECTIONCONTROLFUND5-2/123,"16,942.86",KELLY PARK LTD..
Adult and Health Services,Central/Other,Creditors,952289,Creditor-DHSC Vaccine Control Fund Grant,03/02/2022,3963571-VACCINEFUND-2/123,"3,778.66",KELLY PARK LTD..
Adult and Health Services,Head of Adults,Third Party Payments,479151,Purchase of Care,03/02/2022,3963571-RAPIDTESTINGFUND5-2/123,"5,052.67",KELLY PARK LTD..
Dedicated Schools Grant BG0015,DSG High Needs Block,Supplies and Services,384302,Miscellaneous Expenses,03/02/2022,3963574-1001398,"3,075.00",KING JAMES I ACADEMY.
Adult and Health Services,Central/Other,Creditors,952287,Creditor-DHSC Infection Control Grant,03/02/2022,3963575-INFECTIONCONTROLFUND5-2/150,"6,369.55",KINGSWAY CARE HOME LTD.
Adult and Health Services,Central/Other,Creditors,952288,Creditor-DHSC Rapid Testing Fund Grant,03/02/2022,3963575-RAPIDTESTINGFUND5-2/150,"3,552.36",KINGSWAY CARE HOME LTD.
Adult and Health Services,Central/Other,Creditors,952287,Creditor-DHSC Infection Control Grant,03/02/2022,3963580-INFECTIONCONTROLFUND5-2/50,"8,644.39",LAMBTON HOUSE LTD.
Adult and Health Services,Central/Other,Creditors,952288,Creditor-DHSC Rapid Testing Fund Grant,03/02/2022,3963580-RAPIDTESTINGFUND5-2/50,"4,821.06",LAMBTON HOUSE LTD.
Adult and Health Services,Central/Other,Creditors,952289,Creditor-DHSC Vaccine Control Fund Grant,03/02/2022,3963580-VACCINEFUND-2/50,597.13,LAMBTON HOUSE LTD.
Adult and Health Services,Central/Other,Creditors,952287,Creditor-DHSC Infection Control Grant,03/02/2022,3963582-INFECTIONCONTROLFUND5-2/163,"4,549.68",LANGLEY HOUSE CARE HOME LTD.
Adult and Health Services,Central/Other,Creditors,952288,Creditor-DHSC Rapid Testing Fund Grant,03/02/2022,3963582-RAPIDTESTINGFUND5-2/163,"2,537.40",LANGLEY HOUSE CARE HOME LTD.
Children and Young Peoples Services,Head of Education and Skills,Transport,230008,Contract Hire,03/02/2022,3963583-DEC21-N013,"1,430.00",LARS CARS LTD T/A STREETCARS.
Children and Young Peoples Services,Head of Education and Skills,Transport,230008,Contract Hire,03/02/2022,3963583-DEC21-N325,"1,430.00",LARS CARS LTD T/A STREETCARS.
Children and Young Peoples Services,Head of Education and Skills,Transport,230008,Contract Hire,03/02/2022,3963583-DEC21-N041,"1,560.00",LARS CARS LTD T/A STREETCARS.
Children and Young Peoples Services,Head of Education and Skills,Transport,230008,Contract Hire,03/02/2022,3963585-1983,"2,394.00",LD TAXIS.
Children and Young Peoples Services,Head of Education and Skills,Transport,230006,Contract Hire,03/02/2022,3963585-1978,720.00,LD TAXIS.
Children and Young Peoples Services,Head of Education and Skills,Transport,230006,Contract Hire,03/02/2022,3963585-1987,720.00,LD TAXIS.
Children and Young Peoples Services,Head of Education and Skills,Transport,230010,Contract Hire,03/02/2022,3963585-1981,"1,583.27",LD TAXIS.
Adult and Health Services,Head of Adults,Transport,230005,Contract Hire,03/02/2022,3963585-1977,"1,447.60",LD TAXIS.
Children and Young Peoples Services,Head of Education and Skills,Transport,230008,Contract Hire,03/02/2022,3963585-1984,"1,440.00",LD TAXIS.
Adult and Health Services,Central/Other,Creditors,952287,Creditor-DHSC Infection Control Grant,03/02/2022,3963587-INFECTIONCONTROLFUND5-2/6,"7,582.80",LEAZES HALL CARE HOME LTD.
Adult and Health Services,Central/Other,Creditors,952288,Creditor-DHSC Rapid Testing Fund Grant,03/02/2022,3963587-RAPIDTESTINGFUND5-2/6,"4,229.00",LEAZES HALL CARE HOME LTD.
Adult and Health Services,Central/Other,Creditors,952289,Creditor-DHSC Vaccine Control Fund Grant,03/02/2022,3963587-VACCINEFUND-2/6,523.80,LEAZES HALL CARE HOME LTD.
Children and Young Peoples Services,Head of Education and Skills,Transport,230007,Contract Hire,03/02/2022,3963589-30458,"2,185.00",LEE`S COACHES LTD.
Children and Young Peoples Services,Head of Education and Skills,Transport,230007,Contract Hire,03/02/2022,3963589-30459,"2,185.00",LEE`S COACHES LTD.
Children and Young Peoples Services,Head of Education and Skills,Transport,230007,Contract Hire,03/02/2022,3963589-30460,"2,850.00",LEE`S COACHES LTD.
Children and Young Peoples Services,Head of Education and Skills,Transport,230003,Contract Hire,03/02/2022,3963589-30455,"4,161.00",LEE`S COACHES LTD.
Children and Young Peoples Services,Head of Education and Skills,Transport,230007,Contract Hire,03/02/2022,3963589-30456,"1,890.50",LEE`S COACHES LTD.
Children and Young Peoples Services,Head of Education and Skills,Transport,230007,Contract Hire,03/02/2022,3963589-30457,"3,591.00",LEE`S COACHES LTD.
Children and Young Peoples Services,Head of Education and Skills,Transport,230003,Contract Hire,03/02/2022,3963589-30452,"3,129.12",LEE`S COACHES LTD.
Children and Young Peoples Services,Head of Education and Skills,Transport,230003,Contract Hire,03/02/2022,3963589-30453,"3,832.00",LEE`S COACHES LTD.
Children and Young Peoples Services,Head of Education and Skills,Transport,230003,Contract Hire,03/02/2022,3963589-30454,"3,672.00",LEE`S COACHES LTD.
Adult and Health Services,Commissioning inc Supporting People,Third Party Payments,470111,Purchase of Care,03/02/2022,3963591-LCD-FTI072690,"5,317.92",LEONARD CHESHIRE DISABILITY.
Adult and Health Services,Commissioning inc Supporting People,Third Party Payments,470111,Purchase of Care,03/02/2022,3963591-LCD-FTI072691,"4,797.12",LEONARD CHESHIRE DISABILITY.
Adult and Health Services,Central/Other,Creditors,952287,Creditor-DHSC Infection Control Grant,03/02/2022,3963590-INFECTIONCONTROLFUND5-2/36,"3,791.40",LEONARD CHESHIRE DISABILITY.
Adult and Health Services,Central/Other,Creditors,952288,Creditor-DHSC Rapid Testing Fund Grant,03/02/2022,3963590-RAPIDTESTINGFUND5-2/36,"2,114.50",LEONARD CHESHIRE DISABILITY.
Adult and Health Services,Head of Adults,Transport,230005,Contract Hire,03/02/2022,3963592-PEACO-006-JAN22,"1,234.96",LETS TRAVEL.
Adult and Health Services,Central/Other,Creditors,952287,Creditor-DHSC Infection Control Grant,03/02/2022,3963595-INFECTIONCONTROLFUND5-2/124,"3,336.43",LIFEWAYS COMMUNITY CARE LTD.
Adult and Health Services,Central/Other,Creditors,952288,Creditor-DHSC Rapid Testing Fund Grant,03/02/2022,3963595-RAPIDTESTINGFUND5-2/124,"1,860.76",LIFEWAYS COMMUNITY CARE LTD.
Adult and Health Services,Head of Adults,Third Party Payments,479150,Purchase of Care,03/02/2022,3963596-INFECTIONCONTROLFUND5/229,708.05,LION MOUTH COMMUNITY INTEREST COMPANY.
Adult and Health Services,Head of Adults,Third Party Payments,473101,Purchase of Care,03/02/2022,3963596-WAGEUPLIFTFUND151,"1,342.12",LION MOUTH COMMUNITY INTEREST COMPANY.
Adult and Health Services,Head of Adults,Third Party Payments,479151,Purchase of Care,03/02/2022,3963596-RAPIDTESTINGFUND5/229,609.62,LION MOUTH COMMUNITY INTEREST COMPANY.
Regeneration Economy and Growth,Development and Housing,Supplies and Services,384700,Miscellaneous Expenses,03/02/2022,3963598-RED-02-2022-008,"37,836.59",LIVIN HOUSING LTD.
Regeneration Economy and Growth,Development and Housing,Supplies and Services,384700,Miscellaneous Expenses,03/02/2022,3963598-RED-02-2022-009,"44,045.97",LIVIN HOUSING LTD.
Children and Young Peoples Services,Head of Childrens Social Care,Third Party Payments,440046,Other third party payments E440,03/02/2022,3963606-22263,"6,769.50",MAJOR RECRUITMENT LTD.
Children and Young Peoples Services,Head of Childrens Social Care,Third Party Payments,440046,Other third party payments E440,03/02/2022,3963606-22264,"8,755.07",MAJOR RECRUITMENT LTD.
Children and Young Peoples Services,Head of Childrens Social Care,Third Party Payments,440046,Other third party payments E440,03/02/2022,3963606-22265,668.72,MAJOR RECRUITMENT LTD.
Children and Young Peoples Services,Head of Childrens Social Care,Third Party Payments,440046,Other third party payments E440,03/02/2022,3963606-22267,"2,517.82",MAJOR RECRUITMENT LTD.
Children and Young Peoples Services,Head of Childrens Social Care,Third Party Payments,440046,Other third party payments E440,03/02/2022,3963606-22268,804.81,MAJOR RECRUITMENT LTD.
Children and Young Peoples Services,Head of Childrens Social Care,Third Party Payments,440046,Other third party payments E440,03/02/2022,3963606-22374,"1,184.30",MAJOR RECRUITMENT LTD.
Children and Young Peoples Services,Head of Childrens Social Care,Third Party Payments,440046,Other third party payments E440,03/02/2022,3963606-22377,"1,482.24",MAJOR RECRUITMENT LTD.
Children and Young Peoples Services,Head of Childrens Social Care,Third Party Payments,440046,Other third party payments E440,03/02/2022,3963606-22378,634.82,MAJOR RECRUITMENT LTD.
Children and Young Peoples Services,Head of Childrens Social Care,Third Party Payments,440046,Other third party payments E440,03/02/2022,3963606-22380,"2,813.08",MAJOR RECRUITMENT LTD.
Children and Young Peoples Services,Head of Childrens Social Care,Third Party Payments,440046,Other third party payments E440,03/02/2022,3963606-22382,822.18,MAJOR RECRUITMENT LTD.
Children and Young Peoples Services,Head of Childrens Social Care,Third Party Payments,440046,Other third party payments E440,03/02/2022,3963606-22575,"1,605.48",MAJOR RECRUITMENT LTD.
Children and Young Peoples Services,Head of Childrens Social Care,Third Party Payments,440046,Other third party payments E440,03/02/2022,3963606-22576,"6,660.72",MAJOR RECRUITMENT LTD.
Children and Young Peoples Services,Head of Childrens Social Care,Third Party Payments,440046,Other third party payments E440,03/02/2022,3963606-22577,"5,232.00",MAJOR RECRUITMENT LTD.
Children and Young Peoples Services,Head of Childrens Social Care,Third Party Payments,440046,Other third party payments E440,03/02/2022,3963606-22578,"4,491.72",MAJOR RECRUITMENT LTD.
Children and Young Peoples Services,Head of Childrens Social Care,Third Party Payments,440046,Other third party payments E440,03/02/2022,3963606-22579,"8,370.58",MAJOR RECRUITMENT LTD.
Children and Young Peoples Services,Head of Childrens Social Care,Third Party Payments,440046,Other third party payments E440,03/02/2022,3963606-22581,"6,007.23",MAJOR RECRUITMENT LTD.
Children and Young Peoples Services,Head of Childrens Social Care,Third Party Payments,440046,Other third party payments E440,03/02/2022,3963606-22582,"1,721.20",MAJOR RECRUITMENT LTD.
Children and Young Peoples Services,Head of Childrens Social Care,Third Party Payments,440046,Other third party payments E440,03/02/2022,3963606-22651,"5,426.80",MAJOR RECRUITMENT LTD.
Children and Young Peoples Services,Head of Childrens Social Care,Third Party Payments,440046,Other third party payments E440,03/02/2022,3963606-22652,"4,790.88",MAJOR RECRUITMENT LTD.
Children and Young Peoples Services,Head of Childrens Social Care,Third Party Payments,440046,Other third party payments E440,03/02/2022,3963606-22653,"4,724.64",MAJOR RECRUITMENT LTD.
Children and Young Peoples Services,Head of Childrens Social Care,Third Party Payments,440046,Other third party payments E440,03/02/2022,3963606-22654,"10,974.62",MAJOR RECRUITMENT LTD.
Children and Young Peoples Services,Head of Childrens Social Care,Third Party Payments,440046,Other third party payments E440,03/02/2022,3963606-22655,"2,105.40",MAJOR RECRUITMENT LTD.
Children and Young Peoples Services,Head of Childrens Social Care,Third Party Payments,440046,Other third party payments E440,03/02/2022,3963606-22656,"1,671.72",MAJOR RECRUITMENT LTD.
Adult and Health Services,Central/Other,Creditors,952287,Creditor-DHSC Infection Control Grant,03/02/2022,3963607-INFECTIONCONTROLFUND5-2/174,"8,189.42",MALHOTRA CARE HOMES LTD.
Adult and Health Services,Central/Other,Creditors,952288,Creditor-DHSC Rapid Testing Fund Grant,03/02/2022,3963607-RAPIDTESTINGFUND5-2/174,"4,567.32",MALHOTRA CARE HOMES LTD.
Adult and Health Services,Central/Other,Creditors,952289,Creditor-DHSC Vaccine Control Fund Grant,03/02/2022,3963607-VACCINEFUND-2/174,565.70,MALHOTRA CARE HOMES LTD.
Adult and Health Services,Central/Other,Creditors,952287,Creditor-DHSC Infection Control Grant,03/02/2022,3963610-INFECTIONCONTROLFUND5-2/46,"7,279.48",MARIA MALLABAND CARE GROUP LTD.
Adult and Health Services,Central/Other,Creditors,952288,Creditor-DHSC Rapid Testing Fund Grant,03/02/2022,3963610-RAPIDTESTINGFUND5-2/46,"4,059.84",MARIA MALLABAND CARE GROUP LTD.
Adult and Health Services,Central/Other,Creditors,952289,Creditor-DHSC Vaccine Control Fund Grant,03/02/2022,3963610-VACCINEFUND-2/46,502.84,MARIA MALLABAND CARE GROUP LTD.
Adult and Health Services,Central/Other,Creditors,952287,Creditor-DHSC Infection Control Grant,03/02/2022,3963611-INFECTIONCONTROLFUND5-2/162,"6,824.52",MARIPOSA CARE GROUP LTD.
Adult and Health Services,Central/Other,Creditors,952288,Creditor-DHSC Rapid Testing Fund Grant,03/02/2022,3963611-RAPIDTESTINGFUND5-2/162,"3,806.10",MARIPOSA CARE GROUP LTD.
Adult and Health Services,Central/Other,Creditors,952287,Creditor-DHSC Infection Control Grant,03/02/2022,3963612-INFECTIONCONTROLFUND5-2/166,"6,217.89",MARIPOSA CARE LTD.
Adult and Health Services,Central/Other,Creditors,952288,Creditor-DHSC Rapid Testing Fund Grant,03/02/2022,3963612-RAPIDTESTINGFUND5-2/166,"3,467.78",MARIPOSA CARE LTD.
Adult and Health Services,Central/Other,Creditors,952287,Creditor-DHSC Infection Control Grant,03/02/2022,3963617-INFECTIONCONTROLFUND5-2/176,"6,976.17",MARTON CARE HOMES LTD T/A LANGLEY PARK CARE HOME.
Adult and Health Services,Central/Other,Creditors,952288,Creditor-DHSC Rapid Testing Fund Grant,03/02/2022,3963617-RAPIDTESTINGFUND5-2/176,"3,890.68",MARTON CARE HOMES LTD T/A LANGLEY PARK CARE HOME.
Adult and Health Services,Central/Other,Creditors,952287,Creditor-DHSC Infection Control Grant,03/02/2022,3963618-INFECTIONCONTROLFUND5-2/175,"6,066.24",MARTON CARE HOMES LTD T/A ST HELENS CARE HOME.
Adult and Health Services,Central/Other,Creditors,952288,Creditor-DHSC Rapid Testing Fund Grant,03/02/2022,3963618-RAPIDTESTINGFUND5-2/175,"3,383.20",MARTON CARE HOMES LTD T/A ST HELENS CARE HOME.
Children and Young Peoples Services,Head of Childrens Social Care,Supplies and Services,338045,Services,03/02/2022,3963624-FH025862,815.00,MEIKLES SOLICITORS LLP - CLIENT ACCOUNT.
Adult and Health Services,Central/Other,Creditors,952287,Creditor-DHSC Infection Control Grant,03/02/2022,3963625-INFECTIONCONTROLFUND5-2/29,"4,549.68",MERRYWELL CARE (BELMONT GRANGE) LTD.
Adult and Health Services,Central/Other,Creditors,952288,Creditor-DHSC Rapid Testing Fund Grant,03/02/2022,3963625-RAPIDTESTINGFUND5-2/29,"2,537.40",MERRYWELL CARE (BELMONT GRANGE) LTD.
Children and Young Peoples Services,Head of Education and Skills,Transport,230007,Contract Hire,03/02/2022,3963631-411,608.00,MICKS TAXIS - MURTON.
Children and Young Peoples Services,Head of Education and Skills,Transport,230006,Contract Hire,03/02/2022,3963631-415,"1,200.00",MICKS TAXIS - MURTON.
Children and Young Peoples Services,Head of Education and Skills,Transport,230034,Contract Hire,03/02/2022,3963631-412,572.00,MICKS TAXIS - MURTON.
Adult and Health Services,Central/Other,Creditors,952287,Creditor-DHSC Infection Control Grant,03/02/2022,3963632-INFECTIONCONTROLFUND5-2/31,"2,670.58",MIDDLETON CARE LTD.
Adult and Health Services,Central/Other,Creditors,952289,Creditor-DHSC Vaccine Control Fund Grant,03/02/2022,3963632-VACCINEFUND-2/31,595.60,MIDDLETON CARE LTD.
Adult and Health Services,Head of Adults,Third Party Payments,479151,Purchase of Care,03/02/2022,3963632-RAPIDTESTINGFUND5-2/31,796.41,MIDDLETON CARE LTD.
Children and Young Peoples Services,Head of Education and Skills,Transport,230006,Contract Hire,03/02/2022,3963634-A204-JAN22,"2,527.00",MOLLY`S TAXIS LTD.
Children and Young Peoples Services,Head of Education and Skills,Transport,230008,Contract Hire,03/02/2022,3963634-A009-JAN22,"2,590.84",MOLLY`S TAXIS LTD.
Children and Young Peoples Services,Head of Education and Skills,Transport,230008,Contract Hire,03/02/2022,3963634-A051-JAN22,"3,363.00",MOLLY`S TAXIS LTD.
Children and Young Peoples Services,Head of Education and Skills,Transport,230008,Contract Hire,03/02/2022,3963634-A161-JAN22,"2,565.00",MOLLY`S TAXIS LTD.
Children and Young Peoples Services,Head of Education and Skills,Transport,230008,Contract Hire,03/02/2022,3963634-A190-JAN22,"2,603.00",MOLLY`S TAXIS LTD.
Children and Young Peoples Services,Head of Education and Skills,Transport,230008,Contract Hire,03/02/2022,3963634-N038-JAN22,"3,340.00",MOLLY`S TAXIS LTD.
Regeneration Economy and Growth,Culture Sport and Tourism,Supplies and Services,324117,Provisions E324,03/02/2022,3963635-906310317,516.02,MOLSON COORS BREWING COMPANY (UK) LTD.
Adult and Health Services,Central/Other,Creditors,952287,Creditor-DHSC Infection Control Grant,03/02/2022,3963636-INFECTIONCONTROLFUND5-2/96,"1,516.56",MOORLAND HOLDINGS (NE) LTD.
Adult and Health Services,Central/Other,Creditors,952288,Creditor-DHSC Rapid Testing Fund Grant,03/02/2022,3963636-RAPIDTESTINGFUND5-2/96,845.80,MOORLAND HOLDINGS (NE) LTD.
Children and Young Peoples Services,Head of Childrens Social Care,Third Party Payments,440038,Other third party payments E440,03/02/2022,3963638-CAL010,"11,640.00",MOVING UP CARE LTD.
Children and Young Peoples Services,Head of Childrens Social Care,Third Party Payments,440038,Other third party payments E440,03/02/2022,3963638-CBE002,"9,200.00",MOVING UP CARE LTD.
Children and Young Peoples Services,Head of Childrens Social Care,Third Party Payments,440038,Other third party payments E440,03/02/2022,3963638-EPR001,"2,160.00",MOVING UP CARE LTD.
Children and Young Peoples Services,Head of Childrens Social Care,Third Party Payments,440038,Other third party payments E440,03/02/2022,3963638-EPR002,"10,800.00",MOVING UP CARE LTD.
Children and Young Peoples Services,Head of Childrens Social Care,Third Party Payments,440038,Other third party payments E440,03/02/2022,3963638-EPR003,"8,640.00",MOVING UP CARE LTD.
Children and Young Peoples Services,Head of Childrens Social Care,Third Party Payments,440038,Other third party payments E440,03/02/2022,3963638-EPR004,"8,640.00",MOVING UP CARE LTD.
Children and Young Peoples Services,Head of Childrens Social Care,Third Party Payments,440038,Other third party payments E440,03/02/2022,3963638-JFH003,"10,190.00",MOVING UP CARE LTD.
Children and Young Peoples Services,Head of Childrens Social Care,Third Party Payments,440038,Other third party payments E440,03/02/2022,3963638-JFH007,"2,300.00",MOVING UP CARE LTD.
Children and Young Peoples Services,Head of Childrens Social Care,Third Party Payments,440038,Other third party payments E440,03/02/2022,3963638-RLB010,"13,600.00",MOVING UP CARE LTD.
Children and Young Peoples Services,Head of Childrens Social Care,Third Party Payments,440038,Other third party payments E440,03/02/2022,3963638-WCR009,"13,610.00",MOVING UP CARE LTD.
Children and Young Peoples Services,Head of Childrens Social Care,Third Party Payments,440038,Other third party payments E440,03/02/2022,3963638-WCR010,"11,500.00",MOVING UP CARE LTD.
Children and Young Peoples Services,Head of Childrens Social Care,Third Party Payments,440038,Other third party payments E440,03/02/2022,3963638-WCR014,"7,190.00",MOVING UP CARE LTD.
Children and Young Peoples Services,Head of Childrens Social Care,Third Party Payments,440039,Other third party payments E440,03/02/2022,3963638-GB003,"12,200.00",MOVING UP CARE LTD.
Children and Young Peoples Services,Head of Childrens Social Care,Third Party Payments,440039,Other third party payments E440,03/02/2022,3963638-GB007,"9,760.00",MOVING UP CARE LTD.
Children and Young Peoples Services,Head of Childrens Social Care,Third Party Payments,440039,Other third party payments E440,03/02/2022,3963638-EWC015,"2,875.00",MOVING UP CARE LTD.
Neighbourhoods and Climate Change,Technical Services CM0300,Third Party Payments,460351,Contract Payments,03/02/2022,3963654-27572,"31,500.00",MULTEVO LTD.
Adult and Health Services,Central/Other,Creditors,952287,Creditor-DHSC Infection Control Grant,03/02/2022,3963655-INFECTIONCONTROLFUND5-2/155,"9,850.50",MY HOMECARE ASSISTANCE LTD T/A MY HOMECARE.
Adult and Health Services,Central/Other,Creditors,952289,Creditor-DHSC Vaccine Control Fund Grant,03/02/2022,3963655-VACCINEFUND-2/155,"2,196.90",MY HOMECARE ASSISTANCE LTD T/A MY HOMECARE.
Adult and Health Services,Head of Adults,Third Party Payments,479151,Purchase of Care,03/02/2022,3963655-RAPIDTESTINGFUND5-2/155,"2,937.60",MY HOMECARE ASSISTANCE LTD T/A MY HOMECARE.
Adult and Health Services,Central/Other,Creditors,952287,Creditor-DHSC Infection Control Grant,03/02/2022,3963656-INFECTIONCONTROLFUND5-2/157,"1,970.10",MYCHOICE HOMECARE LTD.
Adult and Health Services,Head of Adults,Third Party Payments,479151,Purchase of Care,03/02/2022,3963656-RAPIDTESTINGFUND5-2/157,587.52,MYCHOICE HOMECARE LTD.
Children and Young Peoples Services,Head of Education and Skills,Supplies and Services,372009,Subscriptions E372,03/02/2022,3963658-INV-0975.,500.00,NATIONAL ASSOCIATION OF VIRTUAL SCHOOL HEADS.
Children and Young Peoples Services,Head of Education and Skills,Transport,230035,Contract Hire,03/02/2022,3963660-1-JANUARY2022,"1,300.00",NC TAXI`S.
Children and Young Peoples Services,Head of Education and Skills,Transport,230007,Contract Hire,03/02/2022,3963662-JANUARY22/5431,"1,360.00",ND TAXIS.
Children and Young Peoples Services,Head of Education and Skills,Transport,230006,Contract Hire,03/02/2022,3963662-JANUARY2022/F806,"1,140.00",ND TAXIS.
Regeneration Economy and Growth,Corporate Property and Land,Third Party Payments,430100,Rendered by Private Contractors,03/02/2022,3963663-36548,"19,892.00",NE & C WINDOWS & DOORS LTD.
Regeneration Economy and Growth,Corporate Property and Land,Third Party Payments,430100,Rendered by Private Contractors,03/02/2022,3963663-36549,"8,159.00",NE & C WINDOWS & DOORS LTD.
Regeneration Economy and Growth,Corporate Property and Land,Third Party Payments,430100,Rendered by Private Contractors,03/02/2022,3963663-36550,944.00,NE & C WINDOWS & DOORS LTD.
Dedicated Schools Grant BG0015,Dedicated Schools Grant CG0050,Central Support and Other Recharges,615208,Support Services,03/02/2022,3963666-RES-02-2022-004,"20,524.90",NEW COLLEGE ACADEMIES TRUST - CONSETT ACADEMY.
Adult and Health Services,Head of Adults,Third Party Payments,479150,Purchase of Care,03/02/2022,3963667-INFECTIONCONTROLFUND5-2/230,647.08,NEW STEPS CARE IN THE COMMUNITY LLP.
Adult and Health Services,Head of Adults,Third Party Payments,479151,Purchase of Care,03/02/2022,3963667-RAPIDTESTINGFUND5-2/230,557.12,NEW STEPS CARE IN THE COMMUNITY LLP.
Regeneration Economy and Growth,Transport and Contracted Services,Third Party Payments,430108,Rendered by Private Contractors,03/02/2022,3963668-1800011032990,"14,537.46",NEWCASTLE UPON TYNE CITY COUNCIL.
Adult and Health Services,Central/Other,Creditors,952287,Creditor-DHSC Infection Control Grant,03/02/2022,3963669-INFECTIONCONTROLFUND5-2/52,"1,061.59",NEWLIFE CARE SERVICES LTD.
Adult and Health Services,Central/Other,Creditors,952288,Creditor-DHSC Rapid Testing Fund Grant,03/02/2022,3963669-RAPIDTESTINGFUND5-2/52,592.06,NEWLIFE CARE SERVICES LTD.
Regeneration Economy and Growth,Development and Housing,Supplies and Services,336005,Advertising E336,03/02/2022,3963670-39030952,"1,557.81",NEWSQUEST (YORKSHIRE & NORTH EAST) LTD.
Adult and Health Services,Central/Other,Creditors,952287,Creditor-DHSC Infection Control Grant,03/02/2022,3963672-INFECTIONCONTROLFUND5-2/111,612.92,NIGHTINGALES COMMUNITY CARE LTD.
Children and Young Peoples Services,Head of Childrens Social Care,Supplies and Services,384500,Miscellaneous Expenses,03/02/2022,3963675-2838,850.00,NORTH EAST ADOPTION THERAPY SERVICES LTD (NEATS).
Children and Young Peoples Services,Head of Childrens Social Care,Supplies and Services,384500,Miscellaneous Expenses,03/02/2022,3963675-2840,"1,300.00",NORTH EAST ADOPTION THERAPY SERVICES LTD (NEATS).
Children and Young Peoples Services,Head of Education and Skills,Transport,230007,Contract Hire,03/02/2022,3963676-INV-7052,"3,211.00",NORTH EAST COACHWAYS LTD.
Children and Young Peoples Services,Head of Education and Skills,Transport,230007,Contract Hire,03/02/2022,3963676-INV-7053,"2,831.00",NORTH EAST COACHWAYS LTD.
Children and Young Peoples Services,Head of Education and Skills,Transport,230007,Contract Hire,03/02/2022,3963676-INV-7054,"2,400.00",NORTH EAST COACHWAYS LTD.
Children and Young Peoples Services,Head of Education and Skills,Transport,230007,Contract Hire,03/02/2022,3963676-INV-7055,"2,500.00",NORTH EAST COACHWAYS LTD.
Children and Young Peoples Services,Head of Education and Skills,Transport,230007,Contract Hire,03/02/2022,3963676-INV-7056,"5,960.00",NORTH EAST COACHWAYS LTD.
Children and Young Peoples Services,Head of Education and Skills,Transport,230007,Contract Hire,03/02/2022,3963676-INV-7057,"2,680.00",NORTH EAST COACHWAYS LTD.
Children and Young Peoples Services,Head of Education and Skills,Transport,230007,Contract Hire,03/02/2022,3963676-INV-7058,"2,780.00",NORTH EAST COACHWAYS LTD.
Regeneration Economy and Growth,Development and Housing,Supplies and Services,384700,Miscellaneous Expenses,03/02/2022,3963680-RED-02-2022-005,"32,760.11",NORTHERN LEARNING TRUST.
Neighbourhoods and Climate Change,Technical Services CM0300,Third Party Payments,430100,Rendered by Private Contractors,03/02/2022,3963681-DI20369786,"1,595.80",NORTHERN POWERGRID (NORTHEAST) LTD.
Neighbourhoods and Climate Change,Environmental Services,Transport,230005,Contract Hire,03/02/2022,3963682-SL06892049INV,511.84,NORTHGATE VEHICLE HIRE LTD.
Resources BK0010,Legal & Democratic Services,Supplies and Services,338099,Services,03/02/2022,3963683-915148226,"1,441.10",NORTHUMBRIAN WATER LTD.
Adult and Health Services,Central/Other,Creditors,952287,Creditor-DHSC Infection Control Grant,03/02/2022,3963685-INFECTIONCONTROLFUND5-2/101,"2,889.48",OAKLEA TRUST.
Adult and Health Services,Central/Other,Creditors,952289,Creditor-DHSC Vaccine Control Fund Grant,03/02/2022,3963685-VACCINEFUND-2/101,644.42,OAKLEA TRUST.
Adult and Health Services,Head of Adults,Third Party Payments,479151,Purchase of Care,03/02/2022,3963685-RAPIDTESTINGFUND5-2/101,"2,674.32",OAKLEA TRUST.
Adult and Health Services,Central/Other,Creditors,952287,Creditor-DHSC Infection Control Grant,03/02/2022,3963686-INFECTIONCONTROLFUND5-2/5,"4,701.33",OBJECT QUEST LTD.
Adult and Health Services,Central/Other,Creditors,952288,Creditor-DHSC Rapid Testing Fund Grant,03/02/2022,3963686-RAPIDTESTINGFUND5-2/5,"2,621.98",OBJECT QUEST LTD.
Adult and Health Services,Central/Other,Creditors,952287,Creditor-DHSC Infection Control Grant,03/02/2022,3963690-INFECTIONCONTROLFUND5-2/48,"9,456.48",ORCHARD HOME CARE SERVICES LTD.
Adult and Health Services,Central/Other,Creditors,952289,Creditor-DHSC Vaccine Control Fund Grant,03/02/2022,3963690-VACCINEFUND-2/48,"2,109.02",ORCHARD HOME CARE SERVICES LTD.
Adult and Health Services,Head of Adults,Third Party Payments,479151,Purchase of Care,03/02/2022,3963690-RAPIDTESTINGFUND5-2/48,"2,820.09",ORCHARD HOME CARE SERVICES LTD.
Adult and Health Services,Central/Other,Creditors,952287,Creditor-DHSC Infection Control Grant,03/02/2022,3963692-INFECTIONCONTROLFUND5-2/118,"1,213.24",OSWALD HOUSE CARE HOME LTD.
Adult and Health Services,Central/Other,Creditors,952288,Creditor-DHSC Rapid Testing Fund Grant,03/02/2022,3963692-RAPIDTESTINGFUND5-2/118,676.64,OSWALD HOUSE CARE HOME LTD.
Adult and Health Services,Central/Other,Creditors,952287,Creditor-DHSC Infection Control Grant,03/02/2022,3963696-INFECTIONCONTROLFUND5-2/167,"1,668.21",PARAMOUNT CARE (GATESHEAD) LTD.
Adult and Health Services,Central/Other,Creditors,952288,Creditor-DHSC Rapid Testing Fund Grant,03/02/2022,3963696-RAPIDTESTINGFUND5-2/167,930.38,PARAMOUNT CARE (GATESHEAD) LTD.
Neighbourhoods and Climate Change,Technical Services CM0300,Stock A926,926900,Stock in hand-Inventory system,03/02/2022,3963697-DT161568,585.00,PARK ELECTRICAL DISTRIBUTORS LTD.
Neighbourhoods and Climate Change,Technical Services CM0300,Stock A926,926900,Stock in hand-Inventory system,03/02/2022,3963697-XL281085,"2,119.80",PARK ELECTRICAL DISTRIBUTORS LTD.
Neighbourhoods and Climate Change,Technical Services CM0300,Supplies and Services,338066,Services,03/02/2022,3963701-64019825,"31,774.00",PELL FRISCHMANN CONSULTANTS LTD.
Adult and Health Services,Central/Other,Creditors,952287,Creditor-DHSC Infection Control Grant,03/02/2022,3963702-INFECTIONCONTROLFUND5-2/130,"15,191.66",PERFECT CARE LTD.
Adult and Health Services,Central/Other,Creditors,952289,Creditor-DHSC Vaccine Control Fund Grant,03/02/2022,3963702-VACCINEFUND-2/130,"3,388.10",PERFECT CARE LTD.
Adult and Health Services,Head of Adults,Third Party Payments,479151,Purchase of Care,03/02/2022,3963702-RAPIDTESTINGFUND5-2/130,"4,530.43",PERFECT CARE LTD.
Children and Young Peoples Services,Head of Education and Skills,Transport,230006,Contract Hire,03/02/2022,3963710-43571,"1,835.94",PHOENIX TAXIS T/A PRATT`S TAXIS.
Children and Young Peoples Services,Head of Education and Skills,Transport,230006,Contract Hire,03/02/2022,3963710-43931,"1,445.24",PHOENIX TAXIS T/A PRATT`S TAXIS.
Children and Young Peoples Services,Head of Education and Skills,Transport,230008,Contract Hire,03/02/2022,3963714-1378,"1,800.00",PODA TAXIS LTD.
Children and Young Peoples Services,Head of Education and Skills,Transport,230008,Contract Hire,03/02/2022,3963714-1379,"2,705.79",PODA TAXIS LTD.
Adult and Health Services,Central/Other,Creditors,952287,Creditor-DHSC Infection Control Grant,03/02/2022,3963715-INFECTIONCONTROLFUND5-2/43,"6,672.86",POPULAR CARE LTD..
Adult and Health Services,Central/Other,Creditors,952288,Creditor-DHSC Rapid Testing Fund Grant,03/02/2022,3963715-RAPIDTESTINGFUND5-2/43,"3,721.52",POPULAR CARE LTD..
Adult and Health Services,Central/Other,Creditors,952287,Creditor-DHSC Infection Control Grant,03/02/2022,3963717-INFECTIONCONTROLFUND5-2/74,"2,426.49",POTENSIAL LTD.
Adult and Health Services,Central/Other,Creditors,952287,Creditor-DHSC Infection Control Grant,03/02/2022,3963718-INFECTIONCONTROLFUND5-2/180,"1,006.94",POTENSIAL LTD.
Adult and Health Services,Central/Other,Creditors,952288,Creditor-DHSC Rapid Testing Fund Grant,03/02/2022,3963717-RAPIDTESTINGFUND5-2/74,"1,353.28",POTENSIAL LTD.
Adult and Health Services,Head of Adults,Third Party Payments,479151,Purchase of Care,03/02/2022,3963718-RAPIDTESTINGFUND5-2/180,"1,785.39",POTENSIAL LTD.
Neighbourhoods and Climate Change,Environmental Services,Premises,108135,Service Repairs and Maintenance,03/02/2022,3963722-2123023376,"3,159.00",PRECIA-MOLEN UK LTD T/A SHERING WEIGHING LTD.
Adult and Health Services,Central/Other,Creditors,952287,Creditor-DHSC Infection Control Grant,03/02/2022,3963723-INFECTIONCONTROLFUND5-2/16,"4,701.33",PREMIER CARE HOMES LTD.
Adult and Health Services,Central/Other,Creditors,952287,Creditor-DHSC Infection Control Grant,03/02/2022,3963724-INFECTIONCONTROLFUND5-2/114,"13,345.72",PREMIER CARE HOMES LTD.
Adult and Health Services,Central/Other,Creditors,952288,Creditor-DHSC Rapid Testing Fund Grant,03/02/2022,3963723-RAPIDTESTINGFUND5-2/16,"2,621.98",PREMIER CARE HOMES LTD.
Adult and Health Services,Central/Other,Creditors,952288,Creditor-DHSC Rapid Testing Fund Grant,03/02/2022,3963724-RAPIDTESTINGFUND5-2/114,"7,443.04",PREMIER CARE HOMES LTD.
Adult and Health Services,Central/Other,Creditors,952289,Creditor-DHSC Vaccine Control Fund Grant,03/02/2022,3963724-VACCINEFUND-2/114,921.88,PREMIER CARE HOMES LTD.
Adult and Health Services,Central/Other,Creditors,952287,Creditor-DHSC Infection Control Grant,03/02/2022,3963725-INFECTIONCONTROLFUND5-2/67,"15,541.90",PREMIER COMMUNITY CARE LTD.
Adult and Health Services,Central/Other,Creditors,952289,Creditor-DHSC Vaccine Control Fund Grant,03/02/2022,3963725-VACCINEFUND-2/67,"3,466.22",PREMIER COMMUNITY CARE LTD.
Adult and Health Services,Head of Adults,Third Party Payments,479151,Purchase of Care,03/02/2022,3963725-RAPIDTESTINGFUND5-2/67,"4,634.88",PREMIER COMMUNITY CARE LTD.
Adult and Health Services,Central/Other,Creditors,952287,Creditor-DHSC Infection Control Grant,03/02/2022,3963733-INFECTIONCONTROLFUND5-2/160,"1,138.28",QUALITY FIRST CARE SERVICES LTD.
Neighbourhoods and Climate Change,Technical Services CM0300,Third Party Payments,430100,Rendered by Private Contractors,03/02/2022,3963734-13850,951.81,QUANTUM POWER CONNECTIONS LTD.
Resources BK0010,Digital and Customer Services,Supplies and Services,332029,Printing Stationery and Gen Off Exps,03/02/2022,3963735-19593,560.00,RADECAL SIGNS GRAPHICS & ADVERTISING.
Adult and Health Services,Central/Other,Creditors,952287,Creditor-DHSC Infection Control Grant,03/02/2022,3963738-INFECTIONCONTROLFUND5-2/87,"4,549.68",RAYSON HOMES LTD.
Adult and Health Services,Central/Other,Creditors,952287,Creditor-DHSC Infection Control Grant,03/02/2022,3963739-INFECTIONCONTROLFUND5-2/88,"2,123.18",RAYSON HOMES LTD.
Adult and Health Services,Central/Other,Creditors,952288,Creditor-DHSC Rapid Testing Fund Grant,03/02/2022,3963738-RAPIDTESTINGFUND5-2/87,"2,537.40",RAYSON HOMES LTD.
